Workbook

Sheet Composições
A1: =Orçamentária!A1 -> Implementação de sistema de climatização para a sala de leitura da Biblioteca do Senado Federal
A2: COMPOSIÇÕES DE CUSTO UNITÁRIO
A3: =Orçamentária!A3 -> Data: março de 2023
A5: ITEM | B5: DESCRIÇÃO | C5: DISCRIMINAÇÃO DA COMPOSIÇÃO | D5: UNIDADE | E5: COEFICIENTE | F5: CUSTO UNITÁRIO | G5: CUSTO TOTAL | H5: TOTAL DO SERVIÇO | J5: QTD
A6: SF-00001 | B6: =INDEX(Orçamentária!A:B,MATCH(Composições!A6,Orçamentária!A:A,0),2) -> Engenheiro(a) /Arquiteto(a) júnior | D6: hh | G6: =IF(ISNUMBER(F6),E6*F6,"") ->  | J6: 40
G7: =IF(ISNUMBER(F7),E7*F7,"") ->  | J7: 40
C8: Engenheiro civil de obra junior com encargos complementares | D8: h | E8: 1 | F8: 104.082 | G8: =IF(ISNUMBER(F8),E8*F8,"") -> 104.082 | H8: =SUM(G8:G8) -> 104.082 | J8: 40
G9: =IF(ISNUMBER(F9),E9*F9,"") ->  | J9: 40
A10: SF-00002 | B10: =INDEX(Orçamentária!A:B,MATCH(Composições!A10,Orçamentária!A:A,0),2) -> Mestre de obras | D10: hh | G10: =IF(ISNUMBER(F10),E10*F10,"") ->  | J10: 120
G11: =IF(ISNUMBER(F11),E11*F11,"") ->  | J11: 120
C12: Mestre de obras com encargos complementares | D12: h | E12: 1 | F12: 44.5645 | G12: =IF(ISNUMBER(F12),E12*F12,"") -> 44.5645 | H12: =SUM(G12:G12) -> 44.5645 | J12: 120
G13: =IF(ISNUMBER(F13),E13*F13,"") ->  | J13: 120
A14: SF-00003 | B14: =INDEX(Orçamentária!A:B,MATCH(Composições!A14,Orçamentária!A:A,0),2) -> Planejamento físico-financeiro | D14: un | G14: =IF(ISNUMBER(F14),E14*F14,"") ->  | J14: 0
G15: =IF(ISNUMBER(F15),E15*F15,"") ->  | J15: 0
C16: Engenheiro Civil de Obra Pleno com encargos complementares | D16: h | E16: 16 | F16: 118.2085 | G16: =IF(ISNUMBER(F16),E16*F16,"") -> 1891.336 | H16: =SUM(G16:G16) -> 1891.336 | J16: 0
G17: =IF(ISNUMBER(F17),E17*F17,"") ->  | J17: 0
A18: SF-00004 | B18: =INDEX(Orçamentária!A:B,MATCH(Composições!A18,Orçamentária!A:A,0),2) -> Projetos de segurança do trabalho | D18: un | G18: =IF(ISNUMBER(F18),E18*F18,"") ->  | J18: 0
G19: =IF(ISNUMBER(F19),E19*F19,"") ->  | J19: 0
C20: ENGENHEIRO CIVIL PLENO COM ENCARGOS COMPLEMENTARES | D20: H | E20: 20 | F20: 118.465 | G20: =IF(ISNUMBER(F20),E20*F20,"") -> 2369.3 | H20: =SUM(G20:G21) -> 2623.89 | J20: 0
C21: Anotação de Responsabilidade Técnica | D21: un | E21: 1 | F21: 254.59 | G21: =IF(ISNUMBER(F21),E21*F21,"") -> 254.59 | J21: 0
G22: =IF(ISNUMBER(F22),E22*F22,"") ->  | J22: 0
A23: SF-00005 | B23: =INDEX(Orçamentária!A:B,MATCH(Composições!A23,Orçamentária!A:A,0),2) -> Demolição de alvenarias | D23: m3 | G23: =IF(ISNUMBER(F23),E23*F23,"") ->  | J23: 0
G24: =IF(ISNUMBER(F24),E24*F24,"") ->  | J24: 0
C25: Pedreiro com Encargos Complementares | D25: h | E25: 0.225 | F25: 27.1605 | G25: =IF(ISNUMBER(F25),E25*F25,"") -> 6.1111125 | H25: =SUM(G25:G26) -> 53.1313549 | J25: 0
C26: Servente com Encargos Complementares | D26: h | E26: 2.3248 | F26: 20.2255 | G26: =IF(ISNUMBER(F26),E26*F26,"") -> 47.0202424 | J26: 0
G27: =IF(ISNUMBER(F27),E27*F27,"") ->  | J27: 0
A28: SF-00006 | B28: =INDEX(Orçamentária!A:B,MATCH(Composições!A28,Orçamentária!A:A,0),2) -> Demolição de concreto simples | D28: m3 | G28: =IF(ISNUMBER(F28),E28*F28,"") ->  | J28: 1
G29: =IF(ISNUMBER(F29),E29*F29,"") ->  | J29: 1
C30: Pedreiro com Encargos Complementares | D30: h | E30: 1.3 | F30: 27.1605 | G30: =IF(ISNUMBER(F30),E30*F30,"") -> 35.30865 | H30: =SUM(G30:G31) -> 298.24015 | J30: 1
C31: Servente com Encargos Complementares | D31: h | E31: 13 | F31: 20.2255 | G31: =IF(ISNUMBER(F31),E31*F31,"") -> 262.9315 | J31: 1
G32: =IF(ISNUMBER(F32),E32*F32,"") ->  | J32: 1
A33: SF-00007 | B33: =INDEX(Orçamentária!A:B,MATCH(Composições!A33,Orçamentária!A:A,0),2) -> Demolição de contrapiso | D33: m2 | G33: =IF(ISNUMBER(F33),E33*F33,"") ->  | J33: 0
G34: =IF(ISNUMBER(F34),E34*F34,"") ->  | J34: 0
C35: Pedreiro com Encargos Complementares | D35: h | E35: 0.08 | F35: 27.1605 | G35: =IF(ISNUMBER(F35),E35*F35,"") -> 2.17284 | H35: =SUM(G35:G36) -> 18.35324 | J35: 0
C36: Servente com Encargos Complementares | D36: h | E36: 0.8 | F36: 20.2255 | G36: =IF(ISNUMBER(F36),E36*F36,"") -> 16.1804 | J36: 0
G37: =IF(ISNUMBER(F37),E37*F37,"") ->  | J37: 0
A38: SF-00008 | B38: =INDEX(Orçamentária!A:B,MATCH(Composições!A38,Orçamentária!A:A,0),2) -> Demolição de fechamento ou parede em gesso acartonado | D38: m2 | G38: =IF(ISNUMBER(F38),E38*F38,"") ->  | J38: 20
G39: =IF(ISNUMBER(F39),E39*F39,"") ->  | J39: 20
C40: Montador de estrutura metálica com encargos complementares | D40: h | E40: 0.1186 | F40: 20.7195 | G40: =IF(ISNUMBER(F40),E40*F40,"") -> 2.4573327 | H40: =SUM(G40:G41) -> 7.16785165 | J40: 20
C41: Servente com Encargos Complementares | D41: h | E41: 0.2329 | F41: 20.2255 | G41: =IF(ISNUMBER(F41),E41*F41,"") -> 4.71051895 | J41: 20
G42: =IF(ISNUMBER(F42),E42*F42,"") ->  | J42: 20
A43: SF-00009 | B43: =INDEX(Orçamentária!A:B,MATCH(Composições!A43,Orçamentária!A:A,0),2) -> Demolição de forro | D43: m2 | G43: =IF(ISNUMBER(F43),E43*F43,"") ->  | J43: 125
G44: =IF(ISNUMBER(F44),E44*F44,"") ->  | J44: 125
C45: Montador de estrutura metálica com encargos complementares | D45: h | E45: 0.0258 | F45: 20.7195 | G45: =IF(ISNUMBER(F45),E45*F45,"") -> 0.5345631 | H45: =SUM(G45:G46) -> 1.55999595 | J45: 125
C46: Servente com Encargos Complementares | D46: h | E46: 0.0507 | F46: 20.2255 | G46: =IF(ISNUMBER(F46),E46*F46,"") -> 1.02543285 | J46: 125
G47: =IF(ISNUMBER(F47),E47*F47,"") ->  | J47: 125
A48: SF-00010 | B48: =INDEX(Orçamentária!A:B,MATCH(Composições!A48,Orçamentária!A:A,0),2) -> Demolição de infraestrutura elétrica (eletrodutos, eletrocalhas, cabos) | D48: m | G48: =IF(ISNUMBER(F48),E48*F48,"") ->  | J48: 27
G49: =IF(ISNUMBER(F49),E49*F49,"") ->  | J49: 27
C50: Eletricista com encargos complementares | D50: h | E50: =ROUND(0.0096*5,4) -> 0.048 | F50: 27.474 | G50: =IF(ISNUMBER(F50),E50*F50,"") -> 1.318752 | H50: =SUM(G50:G51) -> 3.219949 | J50: 27
C51: Servente com Encargos Complementares | D51: h | E51: =ROUND(0.0188*5,4) -> 0.094 | F51: 20.2255 | G51: =IF(ISNUMBER(F51),E51*F51,"") -> 1.901197 | J51: 27
G52: =IF(ISNUMBER(F52),E52*F52,"") ->  | J52: 27
A53: SF-00011 | B53: =INDEX(Orçamentária!A:B,MATCH(Composições!A53,Orçamentária!A:A,0),2) -> Demolição de revestimento cerâmico, granito, mármore ou granitina | D53: m2 | G53: =IF(ISNUMBER(F53),E53*F53,"") ->  | J53: 18
G54: =IF(ISNUMBER(F54),E54*F54,"") ->  | J54: 18
C55: Martelete ou rompedor pneumático manual, 28 kg, com silenciador - CHP diurno. AF_07/2016 | D55: chp | E55: 0.0699 | F55: 24.6525 | G55: =IF(ISNUMBER(F55),E55*F55,"") -> 1.72320975 | H55: =SUM(G55:G58) -> 11.69566565 | J55: 18
C56: Martelete ou rompedor pneumático manual, 28 kg, com silenciador - CHI diurno. AF_07/2016 | D56: chi | E56: 0.0482 | F56: 23.009 | G56: =IF(ISNUMBER(F56),E56*F56,"") -> 1.1090338 | J56: 18
C57: Azulejista ou ladrilhista com encargos complementares | D57: h | E57: 0.1055 | F57: 27.037 | G57: =IF(ISNUMBER(F57),E57*F57,"") -> 2.8524035 | J57: 18
C58: Servente com Encargos Complementares | D58: h | E58: 0.2972 | F58: 20.2255 | G58: =IF(ISNUMBER(F58),E58*F58,"") -> 6.0110186 | J58: 18
G59: =IF(ISNUMBER(F59),E59*F59,"") ->  | J59: 18
A60: SF-00012 | B60: =INDEX(Orçamentária!A:B,MATCH(Composições!A60,Orçamentária!A:A,0),2) -> Demolição de revestimento em argamassa | D60: m2 | G60: =IF(ISNUMBER(F60),E60*F60,"") ->  | J60: 0
G61: =IF(ISNUMBER(F61),E61*F61,"") ->  | J61: 0
C62: Pedreiro com Encargos Complementares | D62: h | E62: 0.0374 | F62: 27.1605 | G62: =IF(ISNUMBER(F62),E62*F62,"") -> 1.0158027 | H62: =SUM(G62:G63) -> 3.14554785 | J62: 0
C63: Servente com Encargos Complementares | D63: h | E63: 0.1053 | F63: 20.2255 | G63: =IF(ISNUMBER(F63),E63*F63,"") -> 2.12974515 | J63: 0
G64: =IF(ISNUMBER(F64),E64*F64,"") ->  | J64: 0
A65: SF-00013 | B65: =INDEX(Orçamentária!A:B,MATCH(Composições!A65,Orçamentária!A:A,0),2) -> Demolição de tubulação hidrossanitária embutida com conexões e acessórios | D65: m | G65: =IF(ISNUMBER(F65),E65*F65,"") ->  | J65: 0
G66: =IF(ISNUMBER(F66),E66*F66,"") ->  | J66: 0
C67: Encanador ou Bombeiro Hidráulico com Encargos Complementares | D67: h | E67: 0.0071 | F67: 26.4575 | G67: =IF(ISNUMBER(F67),E67*F67,"") -> 0.18784825 | H67: =SUM(G67:G68) -> 0.47100525 | J67: 0
C68: Servente com Encargos Complementares | D68: h | E68: 0.014 | F68: 20.2255 | G68: =IF(ISNUMBER(F68),E68*F68,"") -> 0.283157 | J68: 0
G69: =IF(ISNUMBER(F69),E69*F69,"") ->  | J69: 0
A70: SF-00014 | B70: =INDEX(Orçamentária!A:B,MATCH(Composições!A70,Orçamentária!A:A,0),2) -> Demolição em concreto armado | D70: m3 | G70: =IF(ISNUMBER(F70),E70*F70,"") ->  | J70: 0
G71: =IF(ISNUMBER(F71),E71*F71,"") ->  | J71: 0
C72: Martelete ou rompedor pneumático manual, 28 kg, com silenciador - CHP diurno. AF_07/2016 | D72: chp | E72: 3.2468 | F72: 24.6525 | G72: =IF(ISNUMBER(F72),E72*F72,"") -> 80.041737 | H72: =SUM(G72:G76) -> 271.8359241 | J72: 0
C73: Martelete ou rompedor pneumático manual, 28 kg, com silenciador - CHI diurno. AF_07/2016 | D73: chi | E73: 0.9202 | F73: 23.009 | G73: =IF(ISNUMBER(F73),E73*F73,"") -> 21.1728818 | J73: 0
C74: CABO DE ACO GALVANIZADO, DIAMETRO 9,53 MM (3/8"), COM ALMA DE FIBRA 6 X 25 F | D74: kg | E74: 0.2835 | F74: 71.5255 | G74: =IF(ISNUMBER(F74),E74*F74,"") -> 20.27747925 | J74: 0
C75: Pedreiro com Encargos Complementares | D75: h | E75: 0.6366 | F75: 27.1605 | G75: =IF(ISNUMBER(F75),E75*F75,"") -> 17.2903743 | J75: 0
C76: Servente com Encargos Complementares | D76: h | E76: 6.5785 | F76: 20.2255 | G76: =IF(ISNUMBER(F76),E76*F76,"") -> 133.0534517 | J76: 0
G77: =IF(ISNUMBER(F77),E77*F77,"") ->  | J77: 0
A78: SF-00016 | B78: =INDEX(Orçamentária!A:B,MATCH(Composições!A78,Orçamentária!A:A,0),2) -> Remoção de armários | D78: m2 | G78: =IF(ISNUMBER(F78),E78*F78,"") ->  | J78: 0
G79: =IF(ISNUMBER(F79),E79*F79,"") ->  | J79: 0
C80: Carpinteiro de esquadria com encargos complementares | D80: h | E80: 0.35 | F80: 25.726 | G80: =IF(ISNUMBER(F80),E80*F80,"") -> 9.0041 | H80: =SUM(G80:G81) -> 16.083025 | J80: 0
C81: Servente com Encargos Complementares | D81: h | E81: 0.35 | F81: 20.2255 | G81: =IF(ISNUMBER(F81),E81*F81,"") -> 7.078925 | J81: 0
G82: =IF(ISNUMBER(F82),E82*F82,"") ->  | J82: 0
A83: SF-00017 | B83: =INDEX(Orçamentária!A:B,MATCH(Composições!A83,Orçamentária!A:A,0),2) -> Remoção de bancadas | D83: m2 | G83: =IF(ISNUMBER(F83),E83*F83,"") ->  | J83: 0
G84: =IF(ISNUMBER(F84),E84*F84,"") ->  | J84: 0
C85: Pedreiro com Encargos Complementares | D85: h | E85: 0.15 | F85: 27.1605 | G85: =IF(ISNUMBER(F85),E85*F85,"") -> 4.074075 | H85: =SUM(G85:G86) -> 24.299575 | J85: 0
C86: Servente com Encargos Complementares | D86: h | E86: 1 | F86: 20.2255 | G86: =IF(ISNUMBER(F86),E86*F86,"") -> 20.2255 | J86: 0
G87: =IF(ISNUMBER(F87),E87*F87,"") ->  | J87: 0
A88: SF-00018 | B88: =INDEX(Orçamentária!A:B,MATCH(Composições!A88,Orçamentária!A:A,0),2) -> Remoção de batentes de madeira | D88: un | G88: =IF(ISNUMBER(F88),E88*F88,"") ->  | J88: 0
G89: =IF(ISNUMBER(F89),E89*F89,"") ->  | J89: 0
C90: Pedreiro com Encargos Complementares | D90: h | E90: =0.08/2 -> 0.04 | F90: 27.1605 | G90: =IF(ISNUMBER(F90),E90*F90,"") -> 1.08642 | H90: =SUM(G90:G91) -> 9.17662 | J90: 0
C91: Servente com Encargos Complementares | D91: h | E91: =0.8/2 -> 0.4 | F91: 20.2255 | G91: =IF(ISNUMBER(F91),E91*F91,"") -> 8.0902 | J91: 0
G92: =IF(ISNUMBER(F92),E92*F92,"") ->  | J92: 0
A93: SF-00019 | B93: =INDEX(Orçamentária!A:B,MATCH(Composições!A93,Orçamentária!A:A,0),2) -> Remoção de canaleta em alumínio | D93: m | G93: =IF(ISNUMBER(F93),E93*F93,"") ->  | J93: 0
G94: =IF(ISNUMBER(F94),E94*F94,"") ->  | J94: 0
C95: Eletricista com encargos complementares | D95: h | E95: =0.75*0.1 -> 0.075 | F95: 27.474 | G95: =IF(ISNUMBER(F95),E95*F95,"") -> 2.06055 | H95: =SUM(G95:G96) -> 5.094375 | J95: 0
C96: Servente com Encargos Complementares | D96: h | E96: =0.75*0.2 -> 0.15 | F96: 20.2255 | G96: =IF(ISNUMBER(F96),E96*F96,"") -> 3.033825 | J96: 0
G97: =IF(ISNUMBER(F97),E97*F97,"") ->  | J97: 0
A98: SF-00020 | B98: =INDEX(Orçamentária!A:B,MATCH(Composições!A98,Orçamentária!A:A,0),2) -> Remoção de carpete | D98: m2 | G98: =IF(ISNUMBER(F98),E98*F98,"") ->  | J98: 0
G99: =IF(ISNUMBER(F99),E99*F99,"") ->  | J99: 0
C100: Pedreiro com Encargos Complementares | D100: h | E100: 0.01 | F100: 27.1605 | G100: =IF(ISNUMBER(F100),E100*F100,"") -> 0.271605 | H100: =SUM(G100:G101) -> 2.294155 | J100: 0
C101: Servente com Encargos Complementares | D101: h | E101: 0.1 | F101: 20.2255 | G101: =IF(ISNUMBER(F101),E101*F101,"") -> 2.02255 | J101: 0
G102: =IF(ISNUMBER(F102),E102*F102,"") ->  | J102: 0
A103: SF-00021 | B103: =INDEX(Orçamentária!A:B,MATCH(Composições!A103,Orçamentária!A:A,0),2) -> Remoção de cortinas | D103: m | G103: =IF(ISNUMBER(F103),E103*F103,"") ->  | J103: 0
G104: =IF(ISNUMBER(F104),E104*F104,"") ->  | J104: 0
C105: Ajudante especializado com encargos complementares | D105: h | E105: =ROUND(1/6,4) -> 0.1667 | F105: 21.318 | G105: =IF(ISNUMBER(F105),E105*F105,"") -> 3.5537106 | H105: =SUM(G105:G105) -> 3.5537106 | J105: 0
G106: =IF(ISNUMBER(F106),E106*F106,"") ->  | J106: 0
A107: SF-00022 | B107: =INDEX(Orçamentária!A:B,MATCH(Composições!A107,Orçamentária!A:A,0),2) -> Remoção de difusores, grelhas e acessórios de climatização | D107: un | G107: =IF(ISNUMBER(F107),E107*F107,"") ->  | J107: 2
G108: =IF(ISNUMBER(F108),E108*F108,"") ->  | J108: 2
C109: Ajudante de operação em geral com encargos complementares | D109: h | E109: 0.6 | F109: 23.161 | G109: =IF(ISNUMBER(F109),E109*F109,"") -> 13.8966 | H109: =SUM(G109:G110) -> 26.0319 | J109: 2
C110: Servente com Encargos Complementares | D110: h | E110: 0.6 | F110: 20.2255 | G110: =IF(ISNUMBER(F110),E110*F110,"") -> 12.1353 | J110: 2
G111: =IF(ISNUMBER(F111),E111*F111,"") ->  | J111: 2
A112: SF-00023 | B112: =INDEX(Orçamentária!A:B,MATCH(Composições!A112,Orçamentária!A:A,0),2) -> Remoção de divisória de mármore ou granito | D112: m2 | G112: =IF(ISNUMBER(F112),E112*F112,"") ->  | J112: 0
G113: =IF(ISNUMBER(F113),E113*F113,"") ->  | J113: 0
C114: Marmorista/graniteiro com encargos complementares | D114: h | E114: 0.6 | F114: 27.037 | G114: =IF(ISNUMBER(F114),E114*F114,"") -> 16.2222 | H114: =SUM(G114:G115) -> 40.4928 | J114: 0
C115: Servente com Encargos Complementares | D115: h | E115: 1.2 | F115: 20.2255 | G115: =IF(ISNUMBER(F115),E115*F115,"") -> 24.2706 | J115: 0
G116: =IF(ISNUMBER(F116),E116*F116,"") ->  | J116: 0
A117: SF-00024 | B117: =INDEX(Orçamentária!A:B,MATCH(Composições!A117,Orçamentária!A:A,0),2) -> Remoção de divisórias de MDF e gesso acartonado | D117: m2 | G117: =IF(ISNUMBER(F117),E117*F117,"") ->  | J117: 27
G118: =IF(ISNUMBER(F118),E118*F118,"") ->  | J118: 27
C119: Montador de estrutura metálica com encargos complementares | D119: h | E119: 0.1186 | F119: 20.7195 | G119: =IF(ISNUMBER(F119),E119*F119,"") -> 2.4573327 | H119: =SUM(G119:G120) -> 7.16785165 | J119: 27
C120: Servente com Encargos Complementares | D120: h | E120: 0.2329 | F120: 20.2255 | G120: =IF(ISNUMBER(F120),E120*F120,"") -> 4.71051895 | J120: 27
G121: =IF(ISNUMBER(F121),E121*F121,"") ->  | J121: 27
A122: SF-00025 | B122: =INDEX(Orçamentária!A:B,MATCH(Composições!A122,Orçamentária!A:A,0),2) -> Remoção de dutos/tubulações | D122: m | G122: =IF(ISNUMBER(F122),E122*F122,"") ->  | J122: 0
G123: =IF(ISNUMBER(F123),E123*F123,"") ->  | J123: 0
C124: Encanador ou Bombeiro Hidráulico com Encargos Complementares | D124: h | E124: 0.175 | F124: 26.4575 | G124: =IF(ISNUMBER(F124),E124*F124,"") -> 4.6300625 | H124: =SUM(G124:G125) -> 10.6977125 | J124: 0
C125: Servente com Encargos Complementares | D125: h | E125: 0.3 | F125: 20.2255 | G125: =IF(ISNUMBER(F125),E125*F125,"") -> 6.06765 | J125: 0
G126: =IF(ISNUMBER(F126),E126*F126,"") ->  | J126: 0
A127: SF-00026 | B127: =INDEX(Orçamentária!A:B,MATCH(Composições!A127,Orçamentária!A:A,0),2) -> Remoção de esquadrias metálicas | D127: m2 | G127: =IF(ISNUMBER(F127),E127*F127,"") ->  | J127: 0
G128: =IF(ISNUMBER(F128),E128*F128,"") ->  | J128: 0
C129: Pedreiro com Encargos Complementares | D129: h | E129: 0.05 | F129: 27.1605 | G129: =IF(ISNUMBER(F129),E129*F129,"") -> 1.358025 | H129: =SUM(G129:G130) -> 11.470775 | J129: 0
C130: Servente com Encargos Complementares | D130: h | E130: 0.5 | F130: 20.2255 | G130: =IF(ISNUMBER(F130),E130*F130,"") -> 10.11275 | J130: 0
G131: =IF(ISNUMBER(F131),E131*F131,"") ->  | J131: 0
A132: SF-00027 | B132: =INDEX(Orçamentária!A:B,MATCH(Composições!A132,Orçamentária!A:A,0),2) -> Remoção de exaustor | D132: un | G132: =IF(ISNUMBER(F132),E132*F132,"") ->  | J132: 0
G133: =IF(ISNUMBER(F133),E133*F133,"") ->  | J133: 0
C134: Eletricista com encargos complementares | D134: h | E134: 0.3 | F134: 27.474 | G134: =IF(ISNUMBER(F134),E134*F134,"") -> 8.2422 | H134: =SUM(G134:G134) -> 8.2422 | J134: 0
G135: =IF(ISNUMBER(F135),E135*F135,"") ->  | J135: 0
A136: SF-00028 | B136: =INDEX(Orçamentária!A:B,MATCH(Composições!A136,Orçamentária!A:A,0),2) -> Remoção de fechadura/puxador de porta | D136: un | G136: =IF(ISNUMBER(F136),E136*F136,"") ->  | J136: 0
G137: =IF(ISNUMBER(F137),E137*F137,"") ->  | J137: 0
C138: Carpinteiro de esquadria com encargos complementares | D138: h | E138: =0.25 -> 0.25 | F138: 25.726 | G138: =IF(ISNUMBER(F138),E138*F138,"") -> 6.4315 | H138: =SUM(G138:G138) -> 6.4315 | J138: 0
G139: =IF(ISNUMBER(F139),E139*F139,"") ->  | J139: 0
A140: SF-00029 | B140: =INDEX(Orçamentária!A:B,MATCH(Composições!A140,Orçamentária!A:A,0),2) -> Remoção de folha de porta e dobradiças / pivôs | D140: un | G140: =IF(ISNUMBER(F140),E140*F140,"") ->  | J140: 0
G141: =IF(ISNUMBER(F141),E141*F141,"") ->  | J141: 0
C142: Pedreiro com Encargos Complementares | D142: h | E142: 0.1315 | F142: 27.1605 | G142: =IF(ISNUMBER(F142),E142*F142,"") -> 3.57160575 | H142: =SUM(G142:G143) -> 8.79382985 | J142: 0
C143: Servente com Encargos Complementares | D143: h | E143: 0.2582 | F143: 20.2255 | G143: =IF(ISNUMBER(F143),E143*F143,"") -> 5.2222241 | J143: 0
G144: =IF(ISNUMBER(F144),E144*F144,"") ->  | J144: 0
A145: SF-00030 | B145: =INDEX(Orçamentária!A:B,MATCH(Composições!A145,Orçamentária!A:A,0),2) -> Remoção de laminado melamínico (LDAP), em PVC ou vinílico | D145: m2 | G145: =IF(ISNUMBER(F145),E145*F145,"") ->  | J145: 0
G146: =IF(ISNUMBER(F146),E146*F146,"") ->  | J146: 0
C147: Pedreiro com Encargos Complementares | D147: h | E147: 0.09 | F147: 27.1605 | G147: =IF(ISNUMBER(F147),E147*F147,"") -> 2.444445 | H147: =SUM(G147:G148) -> 20.647395 | J147: 0
C148: Servente com Encargos Complementares | D148: h | E148: 0.9 | F148: 20.2255 | G148: =IF(ISNUMBER(F148),E148*F148,"") -> 18.20295 | J148: 0
G149: =IF(ISNUMBER(F149),E149*F149,"") ->  | J149: 0
A150: SF-00031 | B150: =INDEX(Orçamentária!A:B,MATCH(Composições!A150,Orçamentária!A:A,0),2) -> Remoção de louças | D150: un | G150: =IF(ISNUMBER(F150),E150*F150,"") ->  | J150: 0
G151: =IF(ISNUMBER(F151),E151*F151,"") ->  | J151: 0
C152: Encanador ou Bombeiro Hidráulico com Encargos Complementares | D152: h | E152: 0.1755 | F152: 26.4575 | G152: =IF(ISNUMBER(F152),E152*F152,"") -> 4.64329125 | H152: =SUM(G152:G153) -> 11.61704365 | J152: 0
C153: Servente com Encargos Complementares | D153: h | E153: 0.3448 | F153: 20.2255 | G153: =IF(ISNUMBER(F153),E153*F153,"") -> 6.9737524 | J153: 0
G154: =IF(ISNUMBER(F154),E154*F154,"") ->  | J154: 0
A155: SF-00032 | B155: =INDEX(Orçamentária!A:B,MATCH(Composições!A155,Orçamentária!A:A,0),2) -> Remoção de luminária | D155: un | G155: =IF(ISNUMBER(F155),E155*F155,"") ->  | J155: 39
G156: =IF(ISNUMBER(F156),E156*F156,"") ->  | J156: 39
C157: Eletricista com encargos complementares | D157: h | E157: =0.0183*5 -> 0.0915 | F157: 27.474 | G157: =IF(ISNUMBER(F157),E157*F157,"") -> 2.513871 | H157: =SUM(G157:G158) -> 6.14434825 | J157: 39
C158: Servente com Encargos Complementares | D158: h | E158: =0.0359*5 -> 0.1795 | F158: 20.2255 | G158: =IF(ISNUMBER(F158),E158*F158,"") -> 3.63047725 | J158: 39
G159: =IF(ISNUMBER(F159),E159*F159,"") ->  | J159: 39
C160: Obs.: Remoção com reaproveitamento | G160: =IF(ISNUMBER(F160),E160*F160,"") ->  | J160: 39
G161: =IF(ISNUMBER(F161),E161*F161,"") ->  | J161: 39
A162: SF-00033 | B162: =INDEX(Orçamentária!A:B,MATCH(Composições!A162,Orçamentária!A:A,0),2) -> Remoção de metais e acessórios | D162: un | G162: =IF(ISNUMBER(F162),E162*F162,"") ->  | J162: 0
G163: =IF(ISNUMBER(F163),E163*F163,"") ->  | J163: 0
C164: Encanador ou Bombeiro Hidráulico com Encargos Complementares | D164: h | E164: 0.128 | F164: 26.4575 | G164: =IF(ISNUMBER(F164),E164*F164,"") -> 3.38656 | H164: =SUM(G164:G165) -> 8.4712507 | J164: 0
C165: Servente com Encargos Complementares | D165: h | E165: 0.2514 | F165: 20.2255 | G165: =IF(ISNUMBER(F165),E165*F165,"") -> 5.0846907 | J165: 0
G166: =IF(ISNUMBER(F166),E166*F166,"") ->  | J166: 0
A167: SF-00034 | B167: =INDEX(Orçamentária!A:B,MATCH(Composições!A167,Orçamentária!A:A,0),2) -> Remoção de painéis de vidro temperado | D167: m2 | G167: =IF(ISNUMBER(F167),E167*F167,"") ->  | J167: 0
G168: =IF(ISNUMBER(F168),E168*F168,"") ->  | J168: 0
C169: Servente com Encargos Complementares | D169: h | E169: 0.338 | F169: 20.2255 | G169: =IF(ISNUMBER(F169),E169*F169,"") -> 6.836219 | H169: =SUM(G169:G170) -> 15.557447 | J169: 0
C170: Vidraceiro com encargos complementares | D170: h | E170: 0.348 | F170: 25.061 | G170: =IF(ISNUMBER(F170),E170*F170,"") -> 8.721228 | J170: 0
G171: =IF(ISNUMBER(F171),E171*F171,"") ->  | J171: 0
A172: SF-00035 | B172: =INDEX(Orçamentária!A:B,MATCH(Composições!A172,Orçamentária!A:A,0),2) -> Remoção de película | D172: m2 | G172: =IF(ISNUMBER(F172),E172*F172,"") ->  | J172: 0
G173: =IF(ISNUMBER(F173),E173*F173,"") ->  | J173: 0
C174: Vidraceiro com encargos complementares | D174: h | E174: 0.4 | F174: 25.061 | G174: =IF(ISNUMBER(F174),E174*F174,"") -> 10.0244 | H174: =SUM(G174:G174) -> 10.0244 | J174: 0
G175: =IF(ISNUMBER(F175),E175*F175,"") ->  | J175: 0
A176: SF-00036 | B176: =INDEX(Orçamentária!A:B,MATCH(Composições!A176,Orçamentária!A:A,0),2) -> Remoção de persianas | D176: m | G176: =IF(ISNUMBER(F176),E176*F176,"") ->  | J176: 0
G177: =IF(ISNUMBER(F177),E177*F177,"") ->  | J177: 0
C178: Ajudante especializado com encargos complementares | D178: h | E178: =ROUND(1/6,4) -> 0.1667 | F178: 21.318 | G178: =IF(ISNUMBER(F178),E178*F178,"") -> 3.5537106 | H178: =SUM(G178:G178) -> 3.5537106 | J178: 0
G179: =IF(ISNUMBER(F179),E179*F179,"") ->  | J179: 0
A180: SF-00037 | B180: =INDEX(Orçamentária!A:B,MATCH(Composições!A180,Orçamentária!A:A,0),2) -> Remoção de pintura ou textura | D180: m2 | G180: =IF(ISNUMBER(F180),E180*F180,"") ->  | J180: 0
G181: =IF(ISNUMBER(F181),E181*F181,"") ->  | J181: 0
C182: Servente com Encargos Complementares | D182: h | E182: 0.4 | F182: 20.2255 | G182: =IF(ISNUMBER(F182),E182*F182,"") -> 8.0902 | H182: =SUM(G182:G182) -> 8.0902 | J182: 0
G183: =IF(ISNUMBER(F183),E183*F183,"") ->  | J183: 0
A184: SF-00038 | B184: =INDEX(Orçamentária!A:B,MATCH(Composições!A184,Orçamentária!A:A,0),2) -> Remoção de placas de forro | D184: m2 | G184: =IF(ISNUMBER(F184),E184*F184,"") ->  | J184: 0
G185: =IF(ISNUMBER(F185),E185*F185,"") ->  | J185: 0
C186: Montador de estrutura metálica com encargos complementares | D186: h | E186: =0.0258*3 -> 0.0774 | F186: 20.7195 | G186: =IF(ISNUMBER(F186),E186*F186,"") -> 1.6036893 | H186: =SUM(G186:G187) -> 4.67998785 | J186: 0
C187: Servente com Encargos Complementares | D187: h | E187: =0.0507*3 -> 0.1521 | F187: 20.2255 | G187: =IF(ISNUMBER(F187),E187*F187,"") -> 3.07629855 | J187: 0
G188: =IF(ISNUMBER(F188),E188*F188,"") ->  | J188: 0
C189: Obs.: remoção com reaproveitamento | G189: =IF(ISNUMBER(F189),E189*F189,"") ->  | J189: 0
G190: =IF(ISNUMBER(F190),E190*F190,"") ->  | J190: 0
A191: SF-00039 | B191: =INDEX(Orçamentária!A:B,MATCH(Composições!A191,Orçamentária!A:A,0),2) -> Remoção de quadros de elétricos ou de telecomunicações | D191: un | G191: =IF(ISNUMBER(F191),E191*F191,"") ->  | J191: 0
G192: =IF(ISNUMBER(F192),E192*F192,"") ->  | J192: 0
C193: Auxiliar de eletricista com encargos complementares | D193: h | E193: 0.5 | F193: 21.337 | G193: =IF(ISNUMBER(F193),E193*F193,"") -> 10.6685 | H193: =SUM(G193:G196) -> 71.7915 | J193: 0
C194: Eletricista com encargos complementares | D194: h | E194: 0.5 | F194: 27.474 | G194: =IF(ISNUMBER(F194),E194*F194,"") -> 13.737 | J194: 0
C195: Pedreiro com Encargos Complementares | D195: h | E195: 1 | F195: 27.1605 | G195: =IF(ISNUMBER(F195),E195*F195,"") -> 27.1605 | J195: 0
C196: Servente com Encargos Complementares | D196: h | E196: 1 | F196: 20.2255 | G196: =IF(ISNUMBER(F196),E196*F196,"") -> 20.2255 | J196: 0
G197: =IF(ISNUMBER(F197),E197*F197,"") ->  | J197: 0
A198: SF-00040 | B198: =INDEX(Orçamentária!A:B,MATCH(Composições!A198,Orçamentária!A:A,0),2) -> Remoção de revestimento acústico | D198: m2 | G198: =IF(ISNUMBER(F198),E198*F198,"") ->  | J198: 62
G199: =IF(ISNUMBER(F199),E199*F199,"") ->  | J199: 62
C200: Servente com Encargos Complementares | D200: h | E200: 0.2 | F200: 20.2255 | G200: =IF(ISNUMBER(F200),E200*F200,"") -> 4.0451 | H200: =SUM(G200:G200) -> 4.0451 | J200: 62
G201: =IF(ISNUMBER(F201),E201*F201,"") ->  | J201: 62
... 7351 more rows

Sheet Comp.Aux1
A1: Implementação de sistema de climatização para a sala de leitura da Biblioteca do Senado Federal
A2: COMPOSIÇÕES DE CUSTO UNITÁRIO AUXILIARES DE 1º NÍVEL
A3: Data: março de 2023
A5: DESCRIÇÃO | B5: DISCRIMINAÇÃO DA COMPOSIÇÃO | C5: UNIDADE | D5: COEFICIENTE | E5: CUSTO UNITÁRIO | F5: CUSTO TOTAL | G5: TOTAL | I5: QTD
A6: ARGAMASSA TRAÇO 1:3 (EM VOLUME DE CIMENTO E AREIA MÉDIA ÚMIDA), PREPARO MANUAL. AF_08/2019 | C6: M3 | F6: =IF(ISNUMBER(E6),E6*$D6,"") ->  | I6: 0.0027
F7: =IF(ISNUMBER(E7),E7*$D7,"") ->  | I7: 0.0027
B8: AREIA MEDIA - POSTO JAZIDA/FORNECEDOR (RETIRADO NA JAZIDA, SEM TRANSPORTE) | C8: M3 | D8: 1.07 | E8: 202.2835 | F8: =IF(ISNUMBER(E8),E8*$D8,"") -> 216.443345 | G8: =SUM(F8:F12) -> 758.1773121 | I8: 0.0027
B9: CIMENTO PORTLAND COMPOSTO CP II-32 | C9: KG | D9: 482.96 | E9: 0.627 | F9: =IF(ISNUMBER(E9),E9*$D9,"") -> 302.81592 | I9: 0.0027
B10: Servente com encargos complementares | C10: H | D10: 8.57 | E10: 20.2255 | F10: =IF(ISNUMBER(E10),E10*$D10,"") -> 173.332535 | I10: 0.0027
B11: CARGA, MANOBRA E DESCARGA DE SOLOS E MATERIAIS GRANULARES EM CAMINHÃO BASCULANTE 6 M³ - CARGA COM PÁ CARREGADEIRA (CAÇAMBA DE 1,7 A 2,8 M³ / 128 HP) E DESCARGA LIVRE (UNIDADE: M3). AF_07/2020 | C11: M3 | D11: =ROUND(1*D8,4) -> 1.07 | E11: 7.98432915 | F11: =IF(ISNUMBER(E11),E11*$D11,"") -> 8.54323219 | I11: 0.0027
B12: TRANSPORTE COM CAMINHÃO BASCULANTE DE 6 M³, EM VIA URBANA PAVIMENTADA, DMT ATÉ 30 KM (UNIDADE: M3XKM). AF_07/2020 | C12: M3xKM | D12: =ROUND(D8*20,4) -> 21.4 | E12: 2.6655271 | F12: =IF(ISNUMBER(E12),E12*$D12,"") -> 57.04227994 | I12: 0.0027
F13: =IF(ISNUMBER(E13),E13*$D13,"") ->  | I13: 0.0027
B14: Obs.: Considerando fornecedor de areia a 20 km do Senado Federal. | F14: =IF(ISNUMBER(E14),E14*$D14,"") ->  | I14: 0.0027
F15: =IF(ISNUMBER(E15),E15*$D15,"") ->  | I15: 0.0027
A16: FIXAÇÃO UTILIZANDO PARAFUSO E BUCHA DE NYLON, SOMENTE MÃO DE OBRA. AF_10/2016 | C16: UN | F16: =IF(ISNUMBER(E16),E16*$D16,"") ->  | I16: 0
F17: =IF(ISNUMBER(E17),E17*$D17,"") ->  | I17: 0
B18: Auxiliar de encanador ou bombeiro hidráulico com encargos complementares | C18: H | D18: 0.0227 | E18: 20.9095 | F18: =IF(ISNUMBER(E18),E18*$D18,"") -> 0.47464565 | G18: =SUM(F18:F19) -> 4.7634064 | I18: 0
B19: Encanador ou bombeiro hidráulico com encargos complementares | C19: H | D19: 0.1621 | E19: 26.4575 | F19: =IF(ISNUMBER(E19),E19*$D19,"") -> 4.28876075 | I19: 0
F20: =IF(ISNUMBER(E20),E20*$D20,"") ->  | I20: 0
A21: FIXAÇÃO DE TUBOS HORIZONTAIS DE PVC, CPVC OU COBRE DIÂMETROS MENORES OU IGUAIS A 40 MM OU ELETROCALHAS ATÉ 150MM DE LARGURA, COM ABRAÇADEIRA METÁLICA RÍGIDA TIPO D 1/2, FIXADA EM PERFILADO EM LAJE. AF_05/2015 | C21: M | F21: =IF(ISNUMBER(E21),E21*$D21,"") ->  | I21: 15
F22: =IF(ISNUMBER(E22),E22*$D22,"") ->  | I22: 15
B23: ABRACADEIRA EM ACO PARA AMARRACAO DE ELETRODUTOS, TIPO D, COM 1/2" E PARAFUSO DE FIXACAO | C23: UN | D23: 0.65 | E23: 1.463 | F23: =IF(ISNUMBER(E23),E23*$D23,"") -> 0.95095 | G23: =SUM(F23:F25) -> 2.9856125 | I23: 15
B24: Auxiliar de encanador ou bombeiro hidráulico com encargos complementares | C24: H | D24: 0.01 | E24: 20.9095 | F24: =IF(ISNUMBER(E24),E24*$D24,"") -> 0.209095 | I24: 15
B25: Encanador ou bombeiro hidráulico com encargos complementares | C25: H | D25: 0.069 | E25: 26.4575 | F25: =IF(ISNUMBER(E25),E25*$D25,"") -> 1.8255675 | I25: 15
F26: =IF(ISNUMBER(E26),E26*$D26,"") ->  | I26: 15
A27: FABRICAÇÃO DE FÔRMA PARA VIGAS, EM CHAPA DE MADEIRA COMPENSADA RESINADA, E = 17 MM. AF_09/2020 | C27: M2 | F27: =IF(ISNUMBER(E27),E27*$D27,"") ->  | I27: 0
F28: =IF(ISNUMBER(E28),E28*$D28,"") ->  | I28: 0
B29: CHAPA/PAINEL DE MADEIRA COMPENSADA RESINADA (MADEIRITE RESINADO ROSA) PARA FORMA DE CONCRETO, DE 2200 x 1100 MM, E = 17 MM | C29: M2 | D29: 1.146 | E29: 59.033 | F29: =IF(ISNUMBER(E29),E29*$D29,"") -> 67.651818 | G29: =SUM(F29:F36) -> 128.030683 | I29: 0
B30: PONTALETE *7,5 X 7,5* CM EM PINUS, MISTA OU EQUIVALENTE DA REGIAO - BRUTA | C30: M | D30: 0.166 | E30: 8.151 | F30: =IF(ISNUMBER(E30),E30*$D30,"") -> 1.353066 | I30: 0
B31: SARRAFO *2,5 X 7,5* CM EM PINUS, MISTA OU EQUIVALENTE DA REGIAO - BRUTA | C31: M | D31: 6.952 | E31: 2.85 | F31: =IF(ISNUMBER(E31),E31*$D31,"") -> 19.8132 | I31: 0
B32: Prego de aco polido com cabeca 17 x 21 (2 x 11) | C32: KG | D32: 0.159 | E32: 21.603 | F32: =IF(ISNUMBER(E32),E32*$D32,"") -> 3.434877 | I32: 0
B33: Ajudante de carpinteiro com encargos complementares | C33: H | D33: 0.202 | E33: 21.337 | F33: =IF(ISNUMBER(E33),E33*$D33,"") -> 4.310074 | I33: 0
B34: Carpinteiro de formas com encargos complementares | C34: H | D34: 1.012 | E34: 26.7995 | F34: =IF(ISNUMBER(E34),E34*$D34,"") -> 27.121094 | I34: 0
B35: Serra circular de bancada com motor elétrico potência de 5HP, com coifa para disco 10" - CHP diurno. af_08/2015 | C35: CHP | D35: 0.05 | E35: 22.211 | F35: =IF(ISNUMBER(E35),E35*$D35,"") -> 1.11055 | I35: 0
B36: Serra circular de bancada com motor elétrico potência de 5HP, com coifa para disco 10" - CHI diurno. af_08/2015 | C36: CHI | D36: 0.152 | E36: 21.2895 | F36: =IF(ISNUMBER(E36),E36*$D36,"") -> 3.236004 | I36: 0
F37: =IF(ISNUMBER(E37),E37*$D37,"") ->  | I37: 0
A38: FABRICAÇÃO DE ESCORAS DE VIGA DO TIPO GARFO, EM MADEIRA. AF_09/2020 | C38: M | F38: =IF(ISNUMBER(E38),E38*$D38,"") ->  | I38: 0
F39: =IF(ISNUMBER(E39),E39*$D39,"") ->  | I39: 0
B40: CHAPA/PAINEL DE MADEIRA COMPENSADA PLASTIFICADA (MADEIRITE PLASTIFICADO) PARA FORMA DE CONCRETO, DE 2200 x 1100 MM, E = *17* MM | C40: M2 | D40: 0.136 | E40: 99.9685 | F40: =IF(ISNUMBER(E40),E40*$D40,"") -> 13.595716 | G40: =SUM(F40:F46) -> 38.6436345 | I40: 0
B41: PONTALETE *7,5 X 7,5* CM EM PINUS, MISTA OU EQUIVALENTE DA REGIAO - BRUTA | C41: M | D41: 2.342 | E41: 8.151 | F41: =IF(ISNUMBER(E41),E41*$D41,"") -> 19.089642 | I41: 0
B42: PREGO DE ACO POLIDO COM CABECA 17 X 21 (2 X 11) | C42: KG | D42: 0.012 | E42: 21.603 | F42: =IF(ISNUMBER(E42),E42*$D42,"") -> 0.259236 | I42: 0
B43: AJUDANTE DE CARPINTEIRO COM ENCARGOS COMPLEMENTARES | C43: H | D43: 0.032 | E43: 21.337 | F43: =IF(ISNUMBER(E43),E43*$D43,"") -> 0.682784 | I43: 0
B44: CARPINTEIRO DE FORMAS COM ENCARGOS COMPLEMENTARES | C44: H | D44: 0.161 | E44: 26.7995 | F44: =IF(ISNUMBER(E44),E44*$D44,"") -> 4.3147195 | I44: 0
B45: SERRA CIRCULAR DE BANCADA COM MOTOR ELÉTRICO POTÊNCIA DE 5HP, COM COIFA PARA DISCO 10" - CHP DIURNO. AF_08/2015 | C45: CHP | D45: 0.022 | E45: 22.211 | F45: =IF(ISNUMBER(E45),E45*$D45,"") -> 0.488642 | I45: 0
B46: SERRA CIRCULAR DE BANCADA COM MOTOR ELÉTRICO POTÊNCIA DE 5HP, COM COIFA PARA DISCO 10" - CHI DIURNO. AF_08/2015 | C46: CHI | D46: 0.01 | E46: 21.2895 | F46: =IF(ISNUMBER(E46),E46*$D46,"") -> 0.212895 | I46: 0
F47: =IF(ISNUMBER(E47),E47*$D47,"") ->  | I47: 0
A48: ARGAMASSA TRAÇO 1:2:8 (EM VOLUME DE CIMENTO, CAL E AREIA MÉDIA ÚMIDA) PARA EMBOÇO/MASSA ÚNICA/ASSENTAMENTO DE ALVENARIA DE VEDAÇÃO, PREPARO MECÂNICO COM BETONEIRA 400 L. AF_08/2019 | C48: M3 | F48: =IF(ISNUMBER(E48),E48*$D48,"") ->  | I48: 0.3913
F49: =IF(ISNUMBER(E49),E49*$D49,"") ->  | I49: 0.3913
B50: AREIA MEDIA - POSTO JAZIDA/FORNECEDOR (RETIRADO NA JAZIDA, SEM TRANSPORTE) | C50: M3 | D50: 1.16 | E50: 202.2835 | F50: =IF(ISNUMBER(E50),E50*$D50,"") -> 234.64886 | G50: =SUM(F50:F57) -> 729.8134305 | I50: 0.3913
B51: Cal hidratada CH-I para argamassas | C51: KG | D51: 174.1 | E51: 1.1875 | F51: =IF(ISNUMBER(E51),E51*$D51,"") -> 206.74375 | I51: 0.3913
B52: CIMENTO PORTLAND COMPOSTO CP II-32 | C52: KG | D52: 195.86 | E52: 0.627 | F52: =IF(ISNUMBER(E52),E52*$D52,"") -> 122.80422 | I52: 0.3913
B53: Operador de betoneira estacionária/misturador com encargos complementares | C53: H | D53: 4.5 | E53: 20.292 | F53: =IF(ISNUMBER(E53),E53*$D53,"") -> 91.314 | I53: 0.3913
B54: Betoneira capacidade nominal de 400 L, capacidade de mistura 280 L, motor elétrico trifásico potência de 2 cv, sem carregador - CHP diurno. af_10/2014 | C54: CHP | D54: 1.05 | E54: 1.6435 | F54: =IF(ISNUMBER(E54),E54*$D54,"") -> 1.725675 | I54: 0.3913
B55: Betoneira capacidade nominal de 400 L, capacidade de mistura 280 L, motor elétrico trifásico potência de 2 cv, sem carregador - CHI diurno. af_10/2014 | C55: CHI | D55: 3.45 | E55: 0.4275 | F55: =IF(ISNUMBER(E55),E55*$D55,"") -> 1.474875 | I55: 0.3913
B56: CARGA, MANOBRA E DESCARGA DE SOLOS E MATERIAIS GRANULARES EM CAMINHÃO BASCULANTE 6 M³ - CARGA COM PÁ CARREGADEIRA (CAÇAMBA DE 1,7 A 2,8 M³ / 128 HP) E DESCARGA LIVRE (UNIDADE: M3). AF_07/2020 | C56: M3 | D56: =ROUND(1*D50,4) -> 1.16 | E56: 7.98432915 | F56: =IF(ISNUMBER(E56),E56*$D56,"") -> 9.261821814 | I56: 0.3913
B57: TRANSPORTE COM CAMINHÃO BASCULANTE DE 6 M³, EM VIA URBANA PAVIMENTADA, DMT ATÉ 30 KM (UNIDADE: M3XKM). AF_07/2020 | C57: M3xKM | D57: =ROUND(D50*20,4) -> 23.2 | E57: 2.6655271 | F57: =IF(ISNUMBER(E57),E57*$D57,"") -> 61.84022872 | I57: 0.3913
F58: =IF(ISNUMBER(E58),E58*$D58,"") ->  | I58: 0.3913
B59: Obs.: Considerando fornecedor de areia a 20 km do Senado Federal. | F59: =IF(ISNUMBER(E59),E59*$D59,"") ->  | I59: 0.3913
F60: =IF(ISNUMBER(E60),E60*$D60,"") ->  | I60: 0.3913
A61: CONTRAPISO EM ARGAMASSA TRAÇO 1:4 (CIMENTO E AREIA), PREPARO MECÂNICO COM BETONEIRA 400 L, APLICADO EM ÁREAS SECAS SOBRE LAJE, ADERIDO, ACABAMENTO NÃO REFORÇADO, ESPESSURA 3CM. AF_07/2021 | C61: M2 | F61: =IF(ISNUMBER(E61),E61*$D61,"") ->  | I61: 0
F62: =IF(ISNUMBER(E62),E62*$D62,"") ->  | I62: 0
B63: CIMENTO PORTLAND COMPOSTO CP II-32 | C63: KG | D63: 0.5 | E63: 0.627 | F63: =IF(ISNUMBER(E63),E63*$D63,"") -> 0.3135 | G63: =SUM(F63:F67) -> 45.14606078 | I63: 0
B64: Aditivo adesivo liquido para argamassas de revestimentos cimenticios | C64: L | D64: 0.21 | E64: 16.302 | F64: =IF(ISNUMBER(E64),E64*$D64,"") -> 3.42342 | I64: 0
B65: ARGAMASSA TRAÇO 1:4 (EM VOLUME DE CIMENTO E AREIA MÉDIA ÚMIDA) PARA CONTRAPISO, PREPARO MECÂNICO COM BETONEIRA 400 L. AF_08/2019 | C65: M3 | D65: 0.0431 | E65: 748.6561898 | F65: =IF(ISNUMBER(E65),E65*$D65,"") -> 32.26708178 | I65: 0
B66: Pedreiro com encargos complementares | C66: H | D66: 0.245 | E66: 27.1605 | F66: =IF(ISNUMBER(E66),E66*$D66,"") -> 6.6543225 | I66: 0
B67: Servente com encargos complementares | C67: H | D67: 0.123 | E67: 20.2255 | F67: =IF(ISNUMBER(E67),E67*$D67,"") -> 2.4877365 | I67: 0
F68: =IF(ISNUMBER(E68),E68*$D68,"") ->  | I68: 0
A69: ARGAMASSA TRAÇO 1:3 (EM VOLUME DE CIMENTO E AREIA GROSSA ÚMIDA) PARA CHAPISCO CONVENCIONAL, PREPARO MANUAL. AF_08/2019 | C69: M3 | F69: =IF(ISNUMBER(E69),E69*$D69,"") ->  | I69: 0.2553
F70: =IF(ISNUMBER(E70),E70*$D70,"") ->  | I70: 0.2553
B71: Areia grossa - posto jazida/fornecedor (retirado na jazida, sem transporte) | C71: M3 | D71: 0.94 | E71: 204.9245 | F71: =IF(ISNUMBER(E71),E71*$D71,"") -> 192.62903 | G71: =SUM(F71:F75) -> 738.1202289 | I71: 0.2553
B72: CIMENTO PORTLAND COMPOSTO CP II-32 | C72: KG | D72: 422.63 | E72: 0.627 | F72: =IF(ISNUMBER(E72),E72*$D72,"") -> 264.98901 | I72: 0.2553
B73: Servente com encargos complementares | C73: H | D73: 11.02 | E73: 20.2255 | F73: =IF(ISNUMBER(E73),E73*$D73,"") -> 222.88501 | I73: 0.2553
B74: CARGA, MANOBRA E DESCARGA DE SOLOS E MATERIAIS GRANULARES EM CAMINHÃO BASCULANTE 6 M³ - CARGA COM PÁ CARREGADEIRA (CAÇAMBA DE 1,7 A 2,8 M³ / 128 HP) E DESCARGA LIVRE (UNIDADE: M3). AF_07/2020 | C74: M3 | D74: =ROUND(1*D71,4) -> 0.94 | E74: 7.98432915 | F74: =IF(ISNUMBER(E74),E74*$D74,"") -> 7.505269401 | I74: 0.2553
B75: TRANSPORTE COM CAMINHÃO BASCULANTE DE 6 M³, EM VIA URBANA PAVIMENTADA, DMT ATÉ 30 KM (UNIDADE: M3XKM). AF_07/2020 | C75: M3xKM | D75: =ROUND(D71*20,4) -> 18.8 | E75: 2.6655271 | F75: =IF(ISNUMBER(E75),E75*$D75,"") -> 50.11190948 | I75: 0.2553
F76: =IF(ISNUMBER(E76),E76*$D76,"") ->  | I76: 0.2553
B77: Obs.: Considerando fornecedor de areia a 20 km do Senado Federal. | F77: =IF(ISNUMBER(E77),E77*$D77,"") ->  | I77: 0.2553
F78: =IF(ISNUMBER(E78),E78*$D78,"") ->  | I78: 0.2553
A79: ARGAMASSA INDUSTRIALIZADA PARA CHAPISCO COLANTE, PREPARO COM MISTURADOR DE EIXO HORIZONTAL DE 300 KG. AF_08/2019 | C79: M3 | F79: =IF(ISNUMBER(E79),E79*$D79,"") ->  | I79: 0
F80: =IF(ISNUMBER(E80),E80*$D80,"") ->  | I80: 0
B81: Argamassa industrializada para chapisco colante | C81: KG | D81: 1981.23 | E81: 1.159 | F81: =IF(ISNUMBER(E81),E81*$D81,"") -> 2296.24557 | G81: =SUM(F81:F84) -> 2400.97718 | I81: 0
B82: Operador de betoneira estacionária/misturador com encargos complementares | C82: H | D82: 4.72 | E82: 20.292 | F82: =IF(ISNUMBER(E82),E82*$D82,"") -> 95.77824 | I82: 0
B83: Misturador de argamassa, eixo horizontal, capacidade de mistura 300 kg, motor elétrico potência 5 cv - CHP diurno. af_06/2014 | C83: CHP | D83: 1.1 | E83: 4.294 | F83: =IF(ISNUMBER(E83),E83*$D83,"") -> 4.7234 | I83: 0
B84: Misturador de argamassa, eixo horizontal, capacidade de mistura 300 kg, motor elétrico potência 5 cv - CHI diurno. af_06/2014 | C84: CHI | D84: 3.62 | E84: 1.1685 | F84: =IF(ISNUMBER(E84),E84*$D84,"") -> 4.22997 | I84: 0
F85: =IF(ISNUMBER(E85),E85*$D85,"") ->  | I85: 0
A86: ARGAMASSA TRAÇO 1:4 (EM VOLUME DE CIMENTO E AREIA MÉDIA ÚMIDA) PARA CONTRAPISO, PREPARO MANUAL. AF_08/2019 | C86: M3 | F86: =IF(ISNUMBER(E86),E86*$D86,"") ->  | I86: 0.558
F87: =IF(ISNUMBER(E87),E87*$D87,"") ->  | I87: 0.558
B88: AREIA MEDIA - POSTO JAZIDA/FORNECEDOR (RETIRADO NA JAZIDA, SEM TRANSPORTE) | C88: M3 | D88: 1.35 | E88: 202.2835 | F88: =IF(ISNUMBER(E88),E88*$D88,"") -> 273.082725 | G88: =SUM(F88:F92) -> 863.7374711 | I88: 0.558
B89: CIMENTO PORTLAND COMPOSTO CP II-32 | C89: KG | D89: 454.58 | E89: 0.627 | F89: =IF(ISNUMBER(E89),E89*$D89,"") -> 285.02166 | I89: 0.558
B90: Servente com encargos complementares | C90: H | D90: 11.02 | E90: 20.2255 | F90: =IF(ISNUMBER(E90),E90*$D90,"") -> 222.88501 | I90: 0.558
B91: CARGA, MANOBRA E DESCARGA DE SOLOS E MATERIAIS GRANULARES EM CAMINHÃO BASCULANTE 6 M³ - CARGA COM PÁ CARREGADEIRA (CAÇAMBA DE 1,7 A 2,8 M³ / 128 HP) E DESCARGA LIVRE (UNIDADE: M3). AF_07/2020 | C91: M3 | D91: =ROUND(1*D88,4) -> 1.35 | E91: 7.98432915 | F91: =IF(ISNUMBER(E91),E91*$D91,"") -> 10.77884435 | I91: 0.558
B92: TRANSPORTE COM CAMINHÃO BASCULANTE DE 6 M³, EM VIA URBANA PAVIMENTADA, DMT ATÉ 30 KM (UNIDADE: M3XKM). AF_07/2020 | C92: M3xKM | D92: =ROUND(D88*20,4) -> 27 | E92: 2.6655271 | F92: =IF(ISNUMBER(E92),E92*$D92,"") -> 71.9692317 | I92: 0.558
F93: =IF(ISNUMBER(E93),E93*$D93,"") ->  | I93: 0.558
B94: Obs.: Considerando fornecedor de areia a 20 km do Senado Federal. | F94: =IF(ISNUMBER(E94),E94*$D94,"") ->  | I94: 0.558
F95: =IF(ISNUMBER(E95),E95*$D95,"") ->  | I95: 0.558
A96: ARGAMASSA TRAÇO 1:4 (EM VOLUME DE CIMENTO E AREIA MÉDIA ÚMIDA), PREPARO MANUAL. AF_08/2019 | C96: M3 | F96: =IF(ISNUMBER(E96),E96*$D96,"") ->  | I96: 0
F97: =IF(ISNUMBER(E97),E97*$D97,"") ->  | I97: 0
B98: AREIA MEDIA - POSTO JAZIDA/FORNECEDOR (RETIRADO NA JAZIDA, SEM TRANSPORTE) | C98: M3 | D98: 1.15 | E98: 202.2835 | F98: =IF(ISNUMBER(E98),E98*$D98,"") -> 232.626025 | G98: =SUM(F98:F102) -> 715.0261018 | I98: 0
B99: CIMENTO PORTLAND COMPOSTO CP II-32 | C99: KG | D99: 389.54 | E99: 0.627 | F99: =IF(ISNUMBER(E99),E99*$D99,"") -> 244.24158 | I99: 0
B100: Servente com encargos complementares | C100: H | D100: 8.29 | E100: 20.2255 | F100: =IF(ISNUMBER(E100),E100*$D100,"") -> 167.669395 | I100: 0
B101: CARGA, MANOBRA E DESCARGA DE SOLOS E MATERIAIS GRANULARES EM CAMINHÃO BASCULANTE 6 M³ - CARGA COM PÁ CARREGADEIRA (CAÇAMBA DE 1,7 A 2,8 M³ / 128 HP) E DESCARGA LIVRE (UNIDADE: M3). AF_07/2020 | C101: M3 | D101: =ROUND(1*D98,4) -> 1.15 | E101: 7.98432915 | F101: =IF(ISNUMBER(E101),E101*$D101,"") -> 9.181978522 | I101: 0
B102: TRANSPORTE COM CAMINHÃO BASCULANTE DE 6 M³, EM VIA URBANA PAVIMENTADA, DMT ATÉ 30 KM (UNIDADE: M3XKM). AF_07/2020 | C102: M3xKM | D102: =ROUND(D98*20,4) -> 23 | E102: 2.6655271 | F102: =IF(ISNUMBER(E102),E102*$D102,"") -> 61.3071233 | I102: 0
F103: =IF(ISNUMBER(E103),E103*$D103,"") ->  | I103: 0
B104: Obs.: Considerando fornecedor de areia a 20 km do Senado Federal. | F104: =IF(ISNUMBER(E104),E104*$D104,"") ->  | I104: 0
F105: =IF(ISNUMBER(E105),E105*$D105,"") ->  | I105: 0
A106: FIXAÇÃO DE TUBOS VERTICAIS DE PPR DIÂMETROS MENORES OU IGUAIS A 40 MM COM ABRAÇADEIRA METÁLICA RÍGIDA TIPO D 1/2", FIXADA EM PERFILADO EM ALVENARIA. AF_05/2015 | C106: M | F106: =IF(ISNUMBER(E106),E106*$D106,"") ->  | I106: 0
F107: =IF(ISNUMBER(E107),E107*$D107,"") ->  | I107: 0
B108: ABRACADEIRA EM ACO PARA AMARRACAO DE ELETRODUTOS, TIPO D, COM 1/2" E PARAFUSO DE FIXACAO | C108: UN | D108: 0.333 | E108: 1.463 | F108: =IF(ISNUMBER(E108),E108*$D108,"") -> 0.487179 | G108: =SUM(F108:F110) -> 1.517739 | I108: 0
B109: Auxiliar de encanador ou bombeiro hidráulico com encargos complementares | C109: H | D109: 0.005 | E109: 20.9095 | F109: =IF(ISNUMBER(E109),E109*$D109,"") -> 0.1045475 | I109: 0
B110: Encanador ou bombeiro hidráulico com encargos complementares | C110: H | D110: 0.035 | E110: 26.4575 | F110: =IF(ISNUMBER(E110),E110*$D110,"") -> 0.9260125 | I110: 0
F111: =IF(ISNUMBER(E111),E111*$D111,"") ->  | I111: 0
A112: LUVA DE AÇO GALVANIZADO PARA ELETRODUTO Ø 20 MM - 3/4" | C112: UN | F112: =IF(ISNUMBER(E112),E112*$D112,"") ->  | I112: 0
F113: =IF(ISNUMBER(E113),E113*$D113,"") ->  | I113: 0
B114: Luva para eletroduto, em aco galvanizado eletrolitico, diametro de 20 mm (3/4") | C114: UN | D114: 1 | E114: 2.432 | F114: =IF(ISNUMBER(E114),E114*$D114,"") -> 2.432 | G114: =SUM(F114:F116) -> 5.1053 | I114: 0
B115: Auxiliar de eletricista com encargos complementares | C115: H | D115: 0.06 | E115: 19.4085 | F115: =IF(ISNUMBER(E115),E115*$D115,"") -> 1.16451 | I115: 0
B116: Eletricista com encargos complementares | C116: H | D116: 0.06 | E116: 25.1465 | F116: =IF(ISNUMBER(E116),E116*$D116,"") -> 1.50879 | I116: 0
F117: =IF(ISNUMBER(E117),E117*$D117,"") ->  | I117: 0
A118: LUVA DE AÇO GALVANIZADO PARA ELETRODUTO Ø 25 MM - 1" | C118: UN | F118: =IF(ISNUMBER(E118),E118*$D118,"") ->  | I118: 0
F119: =IF(ISNUMBER(E119),E119*$D119,"") ->  | I119: 0
B120: Luva para eletroduto, em aco galvanizado eletrolitico, diametro de 25 mm (1") | C120: UN | D120: 1 | E120: 2.831 | F120: =IF(ISNUMBER(E120),E120*$D120,"") -> 2.831 | G120: =SUM(F120:F122) -> 5.5043 | I120: 0
B121: Auxiliar de eletricista com encargos complementares | C121: H | D121: 0.06 | E121: 19.4085 | F121: =IF(ISNUMBER(E121),E121*$D121,"") -> 1.16451 | I121: 0
B122: Eletricista com encargos complementares | C122: H | D122: 0.06 | E122: 25.1465 | F122: =IF(ISNUMBER(E122),E122*$D122,"") -> 1.50879 | I122: 0
F123: =IF(ISNUMBER(E123),E123*$D123,"") ->  | I123: 0
A124: LUVA DE AÇO GALVANIZADO PARA ELETRODUTO Ø 32 MM - 1 1/4" | C124: UN | F124: =IF(ISNUMBER(E124),E124*$D124,"") ->  | I124: 0
F125: =IF(ISNUMBER(E125),E125*$D125,"") ->  | I125: 0
B126: Luva para eletroduto, em aco galvanizado eletrolitico, diametro de 32 mm (1 1/4") | C126: UN | D126: 1 | E126: 5.016 | F126: =IF(ISNUMBER(E126),E126*$D126,"") -> 5.016 | G126: =SUM(F126:F128) -> 9.02595 | I126: 0
B127: Auxiliar de eletricista com encargos complementares | C127: H | D127: 0.09 | E127: 19.4085 | F127: =IF(ISNUMBER(E127),E127*$D127,"") -> 1.746765 | I127: 0
B128: Eletricista com encargos complementares | C128: H | D128: 0.09 | E128: 25.1465 | F128: =IF(ISNUMBER(E128),E128*$D128,"") -> 2.263185 | I128: 0
F129: =IF(ISNUMBER(E129),E129*$D129,"") ->  | I129: 0
A130: LUVA DE AÇO GALVANIZADO PARA ELETRODUTO Ø 40 MM - 1 1/2" | C130: UN | F130: =IF(ISNUMBER(E130),E130*$D130,"") ->  | I130: 0
F131: =IF(ISNUMBER(E131),E131*$D131,"") ->  | I131: 0
B132: Luva para eletroduto, em aco galvanizado eletrolitico, diametro de 40 mm (1 1/2") | C132: UN | D132: 1 | E132: 7.258 | F132: =IF(ISNUMBER(E132),E132*$D132,"") -> 7.258 | G132: =SUM(F132:F134) -> 11.26795 | I132: 0
B133: Auxiliar de eletricista com encargos complementares | C133: H | D133: 0.09 | E133: 19.4085 | F133: =IF(ISNUMBER(E133),E133*$D133,"") -> 1.746765 | I133: 0
B134: Eletricista com encargos complementares | C134: H | D134: 0.09 | E134: 25.1465 | F134: =IF(ISNUMBER(E134),E134*$D134,"") -> 2.263185 | I134: 0
F135: =IF(ISNUMBER(E135),E135*$D135,"") ->  | I135: 0
A136: FIXAÇÃO DE TUBOS VERTICAIS DE PPR DIÂMETROS MAIORES QUE 40 MM E MENORES OU IGUAIS A 75 MM COM ABRAÇADEIRA METÁLICA RÍGIDA TIPO D 1 1/2", FIXADA EM PERFILADO EM ALVENARIA. AF_05/2015 | C136: M | F136: =IF(ISNUMBER(E136),E136*$D136,"") ->  | I136: 0
F137: =IF(ISNUMBER(E137),E137*$D137,"") ->  | I137: 0
B138: Abracadeira em aco para amarracao de eletrodutos, tipo D, com 1 1/2" e parafuso de fixacao | C138: UN | D138: 0.333 | E138: 3.0115 | F138: =IF(ISNUMBER(E138),E138*$D138,"") -> 1.0028295 | G138: =SUM(F138:F140) -> 2.9636675 | I138: 0
B139: Auxiliar de encanador ou bombeiro hidráulico com encargos complementares | C139: H | D139: 0.009 | E139: 20.9095 | F139: =IF(ISNUMBER(E139),E139*$D139,"") -> 0.1881855 | I139: 0
B140: Encanador ou bombeiro hidráulico com encargos complementares | C140: H | D140: 0.067 | E140: 26.4575 | F140: =IF(ISNUMBER(E140),E140*$D140,"") -> 1.7726525 | I140: 0
F141: =IF(ISNUMBER(E141),E141*$D141,"") ->  | I141: 0
A142: ARGAMASSA TRAÇO 1:2:9 (EM VOLUME DE CIMENTO, CAL E AREIA MÉDIA ÚMIDA) PARA EMBOÇO/MASSA ÚNICA/ASSENTAMENTO DE ALVENARIA DE VEDAÇÃO, PREPARO MECÂNICO COM BETONEIRA 600 L. AF_08/2019 | C142: M3 | F142: =IF(ISNUMBER(E142),E142*$D142,"") ->  | I142: 0
F143: =IF(ISNUMBER(E143),E143*$D143,"") ->  | I143: 0
B144: AREIA MEDIA - POSTO JAZIDA/FORNECEDOR (RETIRADO NA JAZIDA, SEM TRANSPORTE) | C144: M3 | D144: 1.18 | E144: 202.2835 | F144: =IF(ISNUMBER(E144),E144*$D144,"") -> 238.69453 | G144: =SUM(F144:F152) -> 708.476638 | I144: 0
B145: Cal hidratada CH-I para argamassas | C145: KG | D145: 157.44 | E145: 1.1875 | F145: =IF(ISNUMBER(E145),E145*$D145,"") -> 186.96 | I145: 0
B146: CIMENTO PORTLAND COMPOSTO CP II-32 | C146: KG | D146: 177.12 | E146: 0.627 | F146: =IF(ISNUMBER(E146),E146*$D146,"") -> 111.05424 | I146: 0
B147: Servente com encargos complementares | C147: H | D147: 0.79 | E147: 20.2255 | F147: =IF(ISNUMBER(E147),E147*$D147,"") -> 15.978145 | I147: 0
B148: Operador de betoneira estacionária/misturador com encargos complementares | C148: H | D148: 3.65 | E148: 20.292 | F148: =IF(ISNUMBER(E148),E148*$D148,"") -> 74.0658 | I148: 0
B149: Betoneira capacidade nominal de 600 L, capacidade de mistura 360 L, motor elétrico trifásico potência de 4 cv, sem carregador - CHP diurno. af_11/2014 | C149: CHP | D149: 0.85 | E149: 5.1395 | F149: =IF(ISNUMBER(E149),E149*$D149,"") -> 4.368575 | I149: 0
B150: Betoneira capacidade nominal de 600 L, capacidade de mistura 360 L, motor elétrico trifásico potência de 4 cv, sem carregador - CHI diurno. af_11/2014 | C150: CHI | D150: 2.8 | E150: 1.7955 | F150: =IF(ISNUMBER(E150),E150*$D150,"") -> 5.0274 | I150: 0
B151: CARGA, MANOBRA E DESCARGA DE SOLOS E MATERIAIS GRANULARES EM CAMINHÃO BASCULANTE 6 M³ - CARGA COM PÁ CARREGADEIRA (CAÇAMBA DE 1,7 A 2,8 M³ / 128 HP) E DESCARGA LIVRE (UNIDADE: M3). AF_07/2020 | C151: M3 | D151: =ROUND(1*D144,4) -> 1.18 | E151: 7.98432915 | F151: =IF(ISNUMBER(E151),E151*$D151,"") -> 9.421508397 | I151: 0
B152: TRANSPORTE COM CAMINHÃO BASCULANTE DE 6 M³, EM VIA URBANA PAVIMENTADA, DMT ATÉ 30 KM (UNIDADE: M3XKM). AF_07/2020 | C152: M3xKM | D152: =ROUND(D144*20,4) -> 23.6 | E152: 2.6655271 | F152: =IF(ISNUMBER(E152),E152*$D152,"") -> 62.90643956 | I152: 0
F153: =IF(ISNUMBER(E153),E153*$D153,"") ->  | I153: 0
B154: Obs.: Considerando fornecedor de areia a 20 km do Senado Federal. | F154: =IF(ISNUMBER(E154),E154*$D154,"") ->  | I154: 0
F155: =IF(ISNUMBER(E155),E155*$D155,"") ->  | I155: 0
A156: ARGAMASSA TRAÇO 1:4 (EM VOLUME DE CIMENTO E AREIA MÉDIA ÚMIDA) PARA CONTRAPISO, PREPARO MECÂNICO COM BETONEIRA 400 L. AF_08/2019 | C156: M3 | F156: =IF(ISNUMBER(E156),E156*$D156,"") ->  | I156: 0
F157: =IF(ISNUMBER(E157),E157*$D157,"") ->  | I157: 0
B158: AREIA MEDIA - POSTO JAZIDA/FORNECEDOR (RETIRADO NA JAZIDA, SEM TRANSPORTE) | C158: M3 | D158: 1.36 | E158: 202.2835 | F158: =IF(ISNUMBER(E158),E158*$D158,"") -> 275.10556 | G158: =SUM(F158:F164) -> 748.6561898 | I158: 0
B159: CIMENTO PORTLAND COMPOSTO CP II-32 | C159: KG | D159: 459.85 | E159: 0.627 | F159: =IF(ISNUMBER(E159),E159*$D159,"") -> 288.32595 | I159: 0
B160: Operador de betoneira estacionária/misturador com encargos complementares | C160: H | D160: 4.85 | E160: 20.292 | F160: =IF(ISNUMBER(E160),E160*$D160,"") -> 98.4162 | I160: 0
B161: Betoneira capacidade nominal de 400 L, capacidade de mistura 280 L, motor elétrico trifásico potência de 2 cv, sem carregador - CHP diurno. af_10/2014 | C161: CHP | D161: 1.13 | E161: 1.6435 | F161: =IF(ISNUMBER(E161),E161*$D161,"") -> 1.857155 | I161: 0
B162: Betoneira capacidade nominal de 400 L, capacidade de mistura 280 L, motor elétrico trifásico potência de 2 cv, sem carregador - CHI diurno. af_10/2014 | C162: CHI | D162: 3.72 | E162: 0.4275 | F162: =IF(ISNUMBER(E162),E162*$D162,"") -> 1.5903 | I162: 0
B163: CARGA, MANOBRA E DESCARGA DE SOLOS E MATERIAIS GRANULARES EM CAMINHÃO BASCULANTE 6 M³ - CARGA COM PÁ CARREGADEIRA (CAÇAMBA DE 1,7 A 2,8 M³ / 128 HP) E DESCARGA LIVRE (UNIDADE: M3). AF_07/2020 | C163: M3 | D163: =ROUND(1*D158,4) -> 1.36 | E163: 7.98432915 | F163: =IF(ISNUMBER(E163),E163*$D163,"") -> 10.85868764 | I163: 0
B164: TRANSPORTE COM CAMINHÃO BASCULANTE DE 6 M³, EM VIA URBANA PAVIMENTADA, DMT ATÉ 30 KM (UNIDADE: M3XKM). AF_07/2020 | C164: M3xKM | D164: =ROUND(D158*20,4) -> 27.2 | E164: 2.6655271 | F164: =IF(ISNUMBER(E164),E164*$D164,"") -> 72.50233712 | I164: 0
F165: =IF(ISNUMBER(E165),E165*$D165,"") ->  | I165: 0
B166: Obs.: Considerando fornecedor de areia a 20 km do Senado Federal. | F166: =IF(ISNUMBER(E166),E166*$D166,"") ->  | I166: 0
F167: =IF(ISNUMBER(E167),E167*$D167,"") ->  | I167: 0
A168: UMIDIFICAÇÃO DE MATERIAL PARA VALAS COM CAMINHÃO PIPA 10000L. AF_11/2016 | C168: M3 | F168: =IF(ISNUMBER(E168),E168*$D168,"") ->  | I168: 0
F169: =IF(ISNUMBER(E169),E169*$D169,"") ->  | I169: 0
B170: CAMINHÃO PIPA 10.000 L TRUCADO, PESO BRUTO TOTAL 23.000 KG, CARGA ÚTIL MÁXIMA 15.935 KG, DISTÂNCIA ENTRE EIXOS 4,8 M, POTÊNCIA 230 CV, INCLUSIVE TANQUE DE AÇO PARA TRANSPORTE DE ÁGUA - CHP DIURNO. AF_06/2014 | C170: CHP | D170: 0.006 | E170: 302.765 | F170: =IF(ISNUMBER(E170),E170*$D170,"") -> 1.81659 | G170: =SUM(F170:F172) -> 2.1730395 | I170: 0
B171: CAMINHÃO PIPA 10.000 L TRUCADO, PESO BRUTO TOTAL 23.000 KG, CARGA ÚTIL MÁXIMA 15.935 KG, DISTÂNCIA ENTRE EIXOS 4,8 M, POTÊNCIA 230 CV, INCLUSIVE TANQUE DE AÇO PARA TRANSPORTE DE ÁGUA - CHI DIURNO. AF_06/2014 | C171: CHI | D171: 0.003 | E171: 58.14 | F171: =IF(ISNUMBER(E171),E171*$D171,"") -> 0.17442 | I171: 0
B172: SERVENTE COM ENCARGOS COMPLEMENTARES | C172: H | D172: 0.009 | E172: 20.2255 | F172: =IF(ISNUMBER(E172),E172*$D172,"") -> 0.1820295 | I172: 0
F173: =IF(ISNUMBER(E173),E173*$D173,"") ->  | I173: 0
A174: CORTE E DOBRA DE AÇO CA-50, DIÂMETRO DE 8,0 MM. AF_06/2022 | C174: KG | F174: =IF(ISNUMBER(E174),E174*$D174,"") ->  | I174: 0
F175: =IF(ISNUMBER(E175),E175*$D175,"") ->  | I175: 0
B176: ACO CA-50, 8,0 MM, VERGALHAO | C176: KG | D176: 1.11 | E176: 10.0985 | F176: =IF(ISNUMBER(E176),E176*$D176,"") -> 11.209335 | G176: =SUM(F176:F178) -> 11.6987693 | I176: 0
B177: AJUDANTE DE ARMADOR COM ENCARGOS COMPLEMENTARES | C177: H | D177: 0.0026 | E177: 20.197 | F177: =IF(ISNUMBER(E177),E177*$D177,"") -> 0.0525122 | I177: 0
B178: ARMADOR COM ENCARGOS COMPLEMENTARES | C178: H | D178: 0.0162 | E178: 26.9705 | F178: =IF(ISNUMBER(E178),E178*$D178,"") -> 0.4369221 | I178: 0
F179: =IF(ISNUMBER(E179),E179*$D179,"") ->  | I179: 0
A180: CORTE E DOBRA DE AÇO CA-50, DIÂMETRO DE 12,5 MM. AF_06/2022 | C180: KG | F180: =IF(ISNUMBER(E180),E180*$D180,"") ->  | I180: 0
F181: =IF(ISNUMBER(E181),E181*$D181,"") ->  | I181: 0
B182: ACO CA-50, 12,5 MM OU 16,0 MM, VERGALHAO | C182: KG | D182: 1.11 | E182: 8.246 | F182: =IF(ISNUMBER(E182),E182*$D182,"") -> 9.15306 | G182: =SUM(F182:F184) -> 9.298676 | I182: 0
B183: AJUDANTE DE ARMADOR COM ENCARGOS COMPLEMENTARES | C183: H | D183: 0.0008 | E183: 20.197 | F183: =IF(ISNUMBER(E183),E183*$D183,"") -> 0.0161576 | I183: 0
B184: ARMADOR COM ENCARGOS COMPLEMENTARES | C184: H | D184: 0.0048 | E184: 26.9705 | F184: =IF(ISNUMBER(E184),E184*$D184,"") -> 0.1294584 | I184: 0
F185: =IF(ISNUMBER(E185),E185*$D185,"") ->  | I185: 0
A186: CORTE E DOBRA DE AÇO CA-50, DIÂMETRO DE 16,0 MM. AF_06/2022 | C186: KG | F186: =IF(ISNUMBER(E186),E186*$D186,"") ->  | I186: 0
F187: =IF(ISNUMBER(E187),E187*$D187,"") ->  | I187: 0
B188: ACO CA-50, 12,5 MM OU 16,0 MM, VERGALHAO | C188: KG | D188: 1.11 | E188: 8.246 | F188: =IF(ISNUMBER(E188),E188*$D188,"") -> 9.15306 | G188: =SUM(F188:F189) -> 9.22048625 | I188: 0
B189: ARMADOR COM ENCARGOS COMPLEMENTARES | C189: H | D189: 0.0025 | E189: 26.9705 | F189: =IF(ISNUMBER(E189),E189*$D189,"") -> 0.06742625 | I189: 0
F190: =IF(ISNUMBER(E190),E190*$D190,"") ->  | I190: 0
A191: TRANSPORTE HORIZONTAL MANUAL, DE TUBO DE AÇO CARBONO LEVE OU MÉDIO, PRETO OU GALVANIZADO, COM DIÂMETRO MAIOR QUE 32 MM E MENOR OU IGUAL A 65 MM (UNIDADE: MXKM). AF_07/2019 | C191: MXKM | F191: =IF(ISNUMBER(E191),E191*$D191,"") ->  | I191: 0
F192: =IF(ISNUMBER(E192),E192*$D192,"") ->  | I192: 0
B193: SERVENTE COM ENCARGOS COMPLEMENTARES | C193: H | D193: 0.6118 | E193: 20.2255 | F193: =IF(ISNUMBER(E193),E193*$D193,"") -> 12.3739609 | G193: =SUM(F193:F193) -> 12.3739609 | I193: 0
F194: =IF(ISNUMBER(E194),E194*$D194,"") ->  | I194: 0
A195: LANÇAMENTO COM USO DE BALDES, ADENSAMENTO E ACABAMENTO DE CONCRETO EM ESTRUTURAS. AF_02/2022 | C195: M3 | F195: =IF(ISNUMBER(E195),E195*$D195,"") ->  | I195: 0
F196: =IF(ISNUMBER(E196),E196*$D196,"") ->  | I196: 0
B197: Carpinteiro de formas com encargos complementares | C197: h | D197: 2.459 | E197: 26.7995 | F197: =IF(ISNUMBER(E197),E197*$D197,"") -> 65.8999705 | G197: =SUM(F197:F201) -> 283.70895 | I197: 0
B198: Pedreiro com Encargos Complementares | C198: h | D198: 2.459 | E198: 27.1605 | F198: =IF(ISNUMBER(E198),E198*$D198,"") -> 66.7876695 | I198: 0
B199: Servente com Encargos Complementares | C199: h | D199: 7.377 | E199: 20.2255 | F199: =IF(ISNUMBER(E199),E199*$D199,"") -> 149.2035135 | I199: 0
B200: Vibrador de imersão, diâmetro de ponteira 45mm, motor elétrico trifásico potência de 2 CV - CHP diurno. AF_06/2015 | C200: chp | D200: 1.042 | E200: 1.1115 | F200: =IF(ISNUMBER(E200),E200*$D200,"") -> 1.158183 | I200: 0
B201: Vibrador de imersão, diâmetro de ponteira 45mm, motor elétrico trifásico potência de 2 CV - CHI diurno. AF_06/2015 | C201: chi | D201: 1.417 | E201: 0.4655 | F201: =IF(ISNUMBER(E201),E201*$D201,"") -> 0.6596135 | I201: 0
... 442 more rows

Sheet Comp.Aux2
A1: Implementação de sistema de climatização para a sala de leitura da Biblioteca do Senado Federal
A2: COMPOSIÇÕES DE CUSTO UNITÁRIO AUXILIARES DE 2º NÍVEL
A3: Data: março de 2023
A5: DESCRIÇÃO | B5: DISCRIMINAÇÃO DA COMPOSIÇÃO | C5: UNIDADE | D5: COEFICIENTE | E5: CUSTO UNITÁRIO | F5: FONTE DO PREÇO | G5: CUSTO TOTAL | H5: TOTAL | J5: QTD
A6: TRANSPORTE COM CAMINHÃO BASCULANTE DE 6 M³, EM VIA URBANA PAVIMENTADA, DMT ATÉ 30 KM (UNIDADE: M3XKM). AF_07/2020 | C6: M3xKM | G6: =IF(ISNUMBER(E6),ROUND(E6*$D6,2),"") ->  | J6: 30.3379
G7: =IF(ISNUMBER(E7),ROUND(E7*$D7,2),"") ->  | J7: 30.3379
B8: CAMINHÃO BASCULANTE 6 M3 TOCO, PESO BRUTO TOTAL 16.000 KG, CARGA ÚTIL MÁXIMA 11.130 KG, DISTÂNCIA ENTRE EIXOS 5,36 M, POTÊNCIA 185 CV, INCLUSIVE CAÇAMBA METÁLICA - CHP DIURNO. AF_06/2014 | C8: CHP | D8: 0.0139 | E8: 170.449 | F8: Sinapi 67826 | G8: =IF(ISNUMBER(E8),ROUND(E8*$D8,2),"") -> 2.37 | H8: =SUM(G8:G9) -> 2.67 | J8: 30.3379
B9: CAMINHÃO BASCULANTE 6 M3 TOCO, PESO BRUTO TOTAL 16.000 KG, CARGA ÚTIL MÁXIMA 11.130 KG, DISTÂNCIA ENTRE EIXOS 5,36 M, POTÊNCIA 185 CV, INCLUSIVE CAÇAMBA METÁLICA - CHI DIURNO. AF_06/2014 | C9: CHI | D9: 0.006 | E9: 49.381 | F9: Sinapi 67827 | G9: =IF(ISNUMBER(E9),ROUND(E9*$D9,2),"") -> 0.3 | J9: 30.3379
G10: =IF(ISNUMBER(E10),ROUND(E10*$D10,2),"") ->  | J10: 30.3379
A11: CORTE E DOBRA DE AÇO CA-60, DIÂMETRO DE 4,2 MM. AF_06/2022 | C11: KG | G11: =IF(ISNUMBER(E11),ROUND(E11*$D11,2),"") ->  | J11: 0
G12: =IF(ISNUMBER(E12),ROUND(E12*$D12,2),"") ->  | J12: 0
B13: ACO CA-60, 4,2 MM, OU 5,0 MM, OU 6,0 MM, OU 7,0 MM, VERGALHAO | C13: KG | D13: 1.07 | E13: 9.006 | F13: Sinapi 43059 | G13: =IF(ISNUMBER(E13),ROUND(E13*$D13,2),"") -> 9.64 | H13: =SUM(G13:G15) -> 12.42 | J13: 0
B14: AJUDANTE DE ARMADOR COM ENCARGOS COMPLEMENTARES | C14: H | D14: 0.0131 | E14: 20.197 | F14: Sinapi 88238 | G14: =IF(ISNUMBER(E14),ROUND(E14*$D14,2),"") -> 0.26 | J14: 0
B15: ARMADOR COM ENCARGOS COMPLEMENTARES | C15: H | D15: 0.0933 | E15: 26.9705 | F15: Sinapi 88245 | G15: =IF(ISNUMBER(E15),ROUND(E15*$D15,2),"") -> 2.52 | J15: 0
G16: =IF(ISNUMBER(E16),ROUND(E16*$D16,2),"") ->  | J16: 0
A17: CARGA, MANOBRA E DESCARGA DE SOLOS E MATERIAIS GRANULARES EM CAMINHÃO BASCULANTE 6 M³ - CARGA COM PÁ CARREGADEIRA (CAÇAMBA DE 1,7 A 2,8 M³ / 128 HP) E DESCARGA LIVRE (UNIDADE: M3). AF_07/2020 | C17: M3 | G17: =IF(ISNUMBER(E17),ROUND(E17*$D17,2),"") ->  | J17: 1.516895
G18: =IF(ISNUMBER(E18),ROUND(E18*$D18,2),"") ->  | J18: 1.516895
B19: PÁ CARREGADEIRA SOBRE RODAS, POTÊNCIA LÍQUIDA 128 HP, CAPACIDADE DA CAÇAMBA 1,7 A 2,8 M3, PESO OPERACIONAL 11632 KG - CHP DIURNO. AF_06/2014 | C19: CHP | D19: 0.0083 | E19: 175.8735 | F19: Sinapi 5940 | G19: =IF(ISNUMBER(E19),ROUND(E19*$D19,2),"") -> 1.46 | H19: =SUM(G19:G22) -> 7.9845791 | J19: 1.516895
B20: PÁ CARREGADEIRA SOBRE RODAS, POTÊNCIA LÍQUIDA 128 HP, CAPACIDADE DA CAÇAMBA 1,7 A 2,8 M3, PESO OPERACIONAL 11632 KG - CHI DIURNO. AF_06/2014 | C20: CHI | D20: 0.0151 | E20: 64.315 | F20: Sinapi 5942 | G20: =IF(ISNUMBER(E20),E20*$D20,"") -> 0.9711565 | J20: 1.516895
B21: CAMINHÃO BASCULANTE 6 M3 TOCO, PESO BRUTO TOTAL 16.000 KG, CARGA ÚTIL MÁXIMA 11.130 KG, DISTÂNCIA ENTRE EIXOS 5,36 M, POTÊNCIA 185 CV, INCLUSIVE CAÇAMBA METÁLICA - CHP DIURNO. AF_06/2014 | C21: CHP | D21: 0.0267 | E21: 170.449 | F21: Sinapi 67826 | G21: =IF(ISNUMBER(E21),E21*$D21,"") -> 4.5509883 | J21: 1.516895
B22: CAMINHÃO BASCULANTE 6 M3 TOCO, PESO BRUTO TOTAL 16.000 KG, CARGA ÚTIL MÁXIMA 11.130 KG, DISTÂNCIA ENTRE EIXOS 5,36 M, POTÊNCIA 185 CV, INCLUSIVE CAÇAMBA METÁLICA - CHI DIURNO. AF_06/2014 | C22: CHI | D22: 0.0203 | E22: 49.381 | F22: Sinapi 67827 | G22: =IF(ISNUMBER(E22),E22*$D22,"") -> 1.0024343 | J22: 1.516895
G23: =IF(ISNUMBER(E23),ROUND(E23*$D23,2),"") ->  | J23: 1.516895
A24: ARGAMASSA TRAÇO 1:4 (EM VOLUME DE CIMENTO E AREIA MÉDIA ÚMIDA) PARA CONTRAPISO, PREPARO MECÂNICO COM BETONEIRA 400 L. AF_08/2019 | C24: M3 | G24: =IF(ISNUMBER(E24),ROUND(E24*$D24,2),"") ->  | J24: 0
G25: =IF(ISNUMBER(E25),ROUND(E25*$D25,2),"") ->  | J25: 0
B26: Areia media - posto jazida/fornecedor (retirado na jazida, sem transporte) | C26: M3 | D26: 1.36 | E26: 202.2835 | F26: Sinapi 370 | G26: =IF(ISNUMBER(E26),ROUND(E26*$D26,2),"") -> 275.11 | H26: =SUM(G26:G32) -> 748.6686876 | J26: 0
B27: Cimento Portland composto CP II-32 | C27: KG | D27: 459.85 | E27: 0.627 | F27: Sinapi 1379 | G27: =IF(ISNUMBER(E27),ROUND(E27*$D27,2),"") -> 288.33 | J27: 0
B28: Operador de betoneira estacionária/misturador com encargos complementares | C28: H | D28: 4.85 | E28: 20.292 | F28: Sinapi 88377 | G28: =IF(ISNUMBER(E28),ROUND(E28*$D28,2),"") -> 98.42 | J28: 0
B29: Betoneira capacidade nominal de 400 L, capacidade de mistura 280 L, motor elétrico trifásico potência de 2 cv, sem carregador - CHP diurno. af_10/2014 | C29: CHP | D29: 1.13 | E29: 1.6435 | F29: Sinapi 88830 | G29: =IF(ISNUMBER(E29),ROUND(E29*$D29,2),"") -> 1.86 | J29: 0
B30: Betoneira capacidade nominal de 400 L, capacidade de mistura 280 L, motor elétrico trifásico potência de 2 cv, sem carregador - CHI diurno. af_10/2014 | C30: CHI | D30: 3.72 | E30: 0.4275 | F30: Sinapi 88831 | G30: =IF(ISNUMBER(E30),ROUND(E30*$D30,2),"") -> 1.59 | J30: 0
B31: CARGA, MANOBRA E DESCARGA DE SOLOS E MATERIAIS GRANULARES EM CAMINHÃO BASCULANTE 6 M³ - CARGA COM PÁ CARREGADEIRA (CAÇAMBA DE 1,7 A 2,8 M³ / 128 HP) E DESCARGA LIVRE (UNIDADE: M3). AF_07/2020 | C31: M3 | D31: =D26 -> 1.36 | E31: 7.98432915 | F31: Sinapi 100973 | G31: =IF(ISNUMBER(E31),E31*$D31,"") -> 10.85868764 | J31: 0
B32: TRANSPORTE COM CAMINHÃO BASCULANTE DE 6 M³, EM VIA URBANA PAVIMENTADA, DMT ATÉ 30 KM (UNIDADE: M3XKM). AF_07/2020 | C32: M3xKM | D32: =20*D26 -> 27.2 | E32: 2.6655271 | F32: Sinapi 97914 | G32: =IF(ISNUMBER(E32),ROUND(E32*$D32,2),"") -> 72.5 | J32: 0
G33: =IF(ISNUMBER(E33),ROUND(E33*$D33,2),"") ->  | J33: 0
B34: Obs.: Considerando fornecedor de areia a 20 km do Senado Federal. | G34: =IF(ISNUMBER(E34),ROUND(E34*$D34,2),"") ->  | J34: 0
B35: Obs.2: Inclusão de composições Sinapi 100973 e 97914. | G35: =IF(ISNUMBER(E35),ROUND(E35*$D35,2),"") ->  | J35: 0
A36: FABRICAÇÃO DE FÔRMA PARA PILARES E ESTRUTURAS SIMILARES, EM MADEIRA SERRADA, E=25 MM. AF_09/2020 | C36: M2 | G36: =IF(ISNUMBER(E36),ROUND(E36*$D36,2),"") ->  | J36: 0
G37: =IF(ISNUMBER(E37),ROUND(E37*$D37,2),"") ->  | J37: 0
B38: SARRAFO *2,5 X 7,5* CM EM PINUS, MISTA OU EQUIVALENTE DA REGIAO - BRUTA | C38: M | D38: 4.432 | E38: 2.85 | F38: Sinapi 4517 | G38: =IF(ISNUMBER(E38),ROUND(E38*$D38,2),"") -> 12.63 | H38: =SUM(G38:G44) -> 262.81 | J38: 0
B39: PREGO DE ACO POLIDO COM CABECA 17 X 21 (2 X 11) | C39: KG | D39: 0.086 | E39: 21.603 | F39: Sinapi 5068 | G39: =IF(ISNUMBER(E39),ROUND(E39*$D39,2),"") -> 1.86 | J39: 0
B40: TABUA NAO APARELHADA *2,5 X 30* CM, EM MACARANDUBA, ANGELIM OU EQUIVALENTE DA REGIAO - BRUTA | C40: M | D40: 6.53 | E40: 34.1525 | F40: Sinapi 6189 | G40: =IF(ISNUMBER(E40),ROUND(E40*$D40,2),"") -> 223.02 | J40: 0
B41: AJUDANTE DE CARPINTEIRO COM ENCARGOS COMPLEMENTARES | C41: H | D41: 0.143 | E41: 21.337 | F41: Sinapi 88239 | G41: =IF(ISNUMBER(E41),ROUND(E41*$D41,2),"") -> 3.05 | J41: 0
B42: CARPINTEIRO DE FORMAS COM ENCARGOS COMPLEMENTARES | C42: H | D42: 0.715 | E42: 26.7995 | F42: Sinapi 88262 | G42: =IF(ISNUMBER(E42),ROUND(E42*$D42,2),"") -> 19.16 | J42: 0
B43: SERRA CIRCULAR DE BANCADA COM MOTOR ELÉTRICO POTÊNCIA DE 5HP, COM COIFA PARA DISCO 10" - CHP DIURNO. AF_08/2015 | C43: CHP | D43: 0.05 | E43: 22.211 | F43: Sinapi 91692 | G43: =IF(ISNUMBER(E43),ROUND(E43*$D43,2),"") -> 1.11 | J43: 0
B44: SERRA CIRCULAR DE BANCADA COM MOTOR ELÉTRICO POTÊNCIA DE 5HP, COM COIFA PARA DISCO 10" - CHI DIURNO. AF_08/2015 | C44: CHI | D44: 0.093 | E44: 21.2895 | F44: Sinapi 91693 | G44: =IF(ISNUMBER(E44),ROUND(E44*$D44,2),"") -> 1.98 | J44: 0
G45: =IF(ISNUMBER(E45),ROUND(E45*$D45,2),"") ->  | J45: 0
A46: ARGAMASSA TRAÇO 1:3 (EM VOLUME DE CIMENTO E AREIA GROSSA ÚMIDA) PARA CHAPISCO CONVENCIONAL, PREPARO MECÂNICO COM BETONEIRA 400 L. AF_08/2019 | C46: M3 | G46: =IF(ISNUMBER(E46),ROUND(E46*$D46,2),"") ->  | J46: 0
G47: =IF(ISNUMBER(E47),ROUND(E47*$D47,2),"") ->  | J47: 0
B48: AREIA GROSSA - POSTO JAZIDA/FORNECEDOR (RETIRADO NA JAZIDA, SEM TRANSPORTE) | C48: M3 | D48: 0.95 | E48: 204.9245 | F48: Sinapi 367 | G48: =IF(ISNUMBER(E48),ROUND(E48*$D48,2),"") -> 194.68 | H48: =SUM(G48:G57) -> 611.0651127 | J48: 0
B49: CIMENTO PORTLAND COMPOSTO CP II-32 | C49: KG | D49: 426.49 | E49: 0.627 | F49: Sinapi 1379 | G49: =IF(ISNUMBER(E49),ROUND(E49*$D49,2),"") -> 267.41 | J49: 0
B50: OPERADOR DE BETONEIRA ESTACIONÁRIA/MISTURADOR COM ENCARGOS COMPLEMENTARES | C50: H | D50: 4.32 | E50: 20.292 | F50: Sinapi 88377 | G50: =IF(ISNUMBER(E50),ROUND(E50*$D50,2),"") -> 87.66 | J50: 0
B51: BETONEIRA CAPACIDADE NOMINAL DE 400 L, CAPACIDADE DE MISTURA 280 L, MOTOR ELÉTRICO TRIFÁSICO POTÊNCIA DE 2 CV, SEM CARREGADOR - CHP DIURNO. AF_10/2014 | C51: CHP | D51: 1.01 | E51: 1.6435 | F51: Sinapi 88830 | G51: =IF(ISNUMBER(E51),ROUND(E51*$D51,2),"") -> 1.66 | J51: 0
B52: BETONEIRA CAPACIDADE NOMINAL DE 400 L, CAPACIDADE DE MISTURA 280 L, MOTOR ELÉTRICO TRIFÁSICO POTÊNCIA DE 2 CV, SEM CARREGADOR - CHI DIURNO. AF_10/2014 | C52: CHI | D52: 3.31 | E52: 0.4275 | F52: Sinapi 88831 | G52: =IF(ISNUMBER(E52),ROUND(E52*$D52,2),"") -> 1.42 | J52: 0
B53: CARGA, MANOBRA E DESCARGA DE SOLOS E MATERIAIS GRANULARES EM CAMINHÃO BASCULANTE 6 M³ - CARGA COM PÁ CARREGADEIRA (CAÇAMBA DE 1,7 A 2,8 M³ / 128 HP) E DESCARGA LIVRE (UNIDADE: M3). AF_07/2020 | C53: M3 | D53: =D48 -> 0.95 | E53: 7.98432915 | F53: Sinapi 100973 | G53: =IF(ISNUMBER(E53),E53*$D53,"") -> 7.585112692 | J53: 0
B54: TRANSPORTE COM CAMINHÃO BASCULANTE DE 6 M³, EM VIA URBANA PAVIMENTADA, DMT ATÉ 30 KM (UNIDADE: M3XKM). AF_07/2020 | C54: M3xKM | D54: =20*D48 -> 19 | E54: 2.6655271 | F54: Sinapi 97914 | G54: =IF(ISNUMBER(E54),ROUND(E54*$D54,2),"") -> 50.65 | J54: 0
G55: =IF(ISNUMBER(E55),ROUND(E55*$D55,2),"") ->  | J55: 0
B56: Obs.: Considerando fornecedor de areia a 20 km do Senado Federal. | G56: =IF(ISNUMBER(E56),ROUND(E56*$D56,2),"") ->  | J56: 0
B57: Obs.2: Inclusão de composições (abertas) Sinapi 100973 e 97914. | G57: =IF(ISNUMBER(E57),ROUND(E57*$D57,2),"") ->  | J57: 0
G58: =IF(ISNUMBER(E58),ROUND(E58*$D58,2),"") ->  | J58: 0
A59: ARGAMASSA TRAÇO 1:2:8 (EM VOLUME DE CIMENTO, CAL E AREIA MÉDIA ÚMIDA) PARA EMBOÇO/MASSA ÚNICA/ASSENTAMENTO DE ALVENARIA DE VEDAÇÃO, PREPARO MECÂNICO COM BETONEIRA 400 L. AF_08/2019 | C59: M3 | G59: =IF(ISNUMBER(E59),ROUND(E59*$D59,2),"") ->  | J59: 0
G60: =IF(ISNUMBER(E60),ROUND(E60*$D60,2),"") ->  | J60: 0
B61: AREIA MEDIA - POSTO JAZIDA/FORNECEDOR (RETIRADO NA JAZIDA, SEM TRANSPORTE) | C61: M3 | D61: 1.16 | E61: 202.2835 | F61: Sinapi 370 | G61: =IF(ISNUMBER(E61),ROUND(E61*$D61,2),"") -> 234.65 | H61: =SUM(G61:G71) -> 729.8018218 | J61: 0
B62: CAL HIDRATADA CH-I PARA ARGAMASSAS | C62: KG | D62: 174.1 | E62: 1.1875 | F62: Sinapi 1106 | G62: =IF(ISNUMBER(E62),ROUND(E62*$D62,2),"") -> 206.74 | J62: 0
B63: CIMENTO PORTLAND COMPOSTO CP II-32 | C63: KG | D63: 195.86 | E63: 0.627 | F63: Sinapi 1379 | G63: =IF(ISNUMBER(E63),ROUND(E63*$D63,2),"") -> 122.8 | J63: 0
B64: OPERADOR DE BETONEIRA ESTACIONÁRIA/MISTURADOR COM ENCARGOS COMPLEMENTARES | C64: H | D64: 4.5 | E64: 20.292 | F64: Sinapi 88377 | G64: =IF(ISNUMBER(E64),ROUND(E64*$D64,2),"") -> 91.31 | J64: 0
B65: BETONEIRA CAPACIDADE NOMINAL DE 400 L, CAPACIDADE DE MISTURA 280 L, MOTOR ELÉTRICO TRIFÁSICO POTÊNCIA DE 2 CV, SEM CARREGADOR - CHP DIURNO. AF_10/2014 | C65: CHP | D65: 1.05 | E65: 1.6435 | F65: Sinapi 88830 | G65: =IF(ISNUMBER(E65),ROUND(E65*$D65,2),"") -> 1.73 | J65: 0
B66: Betoneira capacidade nominal de 400 L, capacidade de mistura 280 L, motor elétrico trifásico potência de 2 cv, sem carregador - CHI diurno. af_10/2014 | C66: CHI | D66: 3.45 | E66: 0.4275 | F66: Sinapi 88831 | G66: =IF(ISNUMBER(E66),ROUND(E66*$D66,2),"") -> 1.47 | J66: 0
B67: CARGA, MANOBRA E DESCARGA DE SOLOS E MATERIAIS GRANULARES EM CAMINHÃO BASCULANTE 6 M³ - CARGA COM PÁ CARREGADEIRA (CAÇAMBA DE 1,7 A 2,8 M³ / 128 HP) E DESCARGA LIVRE (UNIDADE: M3). AF_07/2020 | C67: M3 | D67: =D61 -> 1.16 | E67: 7.98432915 | F67: Sinapi 100973 | G67: =IF(ISNUMBER(E67),E67*$D67,"") -> 9.261821814 | J67: 0
B68: TRANSPORTE COM CAMINHÃO BASCULANTE DE 6 M³, EM VIA URBANA PAVIMENTADA, DMT ATÉ 30 KM (UNIDADE: M3XKM). AF_07/2020 | C68: M3xKM | D68: =20*D61 -> 23.2 | E68: 2.6655271 | F68: Sinapi 97914 | G68: =IF(ISNUMBER(E68),ROUND(E68*$D68,2),"") -> 61.84 | J68: 0
G69: =IF(ISNUMBER(E69),ROUND(E69*$D69,2),"") ->  | J69: 0
B70: Obs.: Considerando fornecedor de areia a 20 km do Senado Federal. | G70: =IF(ISNUMBER(E70),ROUND(E70*$D70,2),"") ->  | J70: 0
B71: Obs.2: Inclusão de composições (abertas) Sinapi 100973 e 97914. | G71: =IF(ISNUMBER(E71),ROUND(E71*$D71,2),"") ->  | J71: 0
G72: =IF(ISNUMBER(E72),ROUND(E72*$D72,2),"") ->  | J72: 0
A73: ARMAÇÃO DE LAJE DE ESTRUTURA CONVENCIONAL DE CONCRETO ARMADO UTILIZANDO AÇO CA-60 DE 4,2 MM - MONTAGEM. AF_06/2022 | C73: KG | G73: =IF(ISNUMBER(E73),ROUND(E73*$D73,2),"") ->  | J73: 0
G74: =IF(ISNUMBER(E74),ROUND(E74*$D74,2),"") ->  | J74: 0
B75: ESPACADOR / DISTANCIADOR CIRCULAR COM ENTRADA LATERAL, EM PLASTICO, PARA VERGALHAO *4,2 A 12,5* MM, COBRIMENTO 20 MM | C75: UN | D75: 2.816 | E75: 0.209 | F75: Sinapi 39017 | G75: =IF(ISNUMBER(E75),ROUND(E75*$D75,2),"") -> 0.59 | H75: =SUM(G75:G79) -> 16.78 | J75: 0
B76: ARAME RECOZIDO 16 BWG, D = 1,65 MM (0,016 KG/M) OU 18 BWG, D = 1,25 MM (0,01 KG/M) | C76: KG | D76: 0.025 | E76: 22.61 | F76: Sinapi 43132 | G76: =IF(ISNUMBER(E76),ROUND(E76*$D76,2),"") -> 0.57 | J76: 0
B77: AJUDANTE DE ARMADOR COM ENCARGOS COMPLEMENTARES | C77: H | D77: 0.0172 | E77: 20.197 | F77: Sinapi 88238 | G77: =IF(ISNUMBER(E77),ROUND(E77*$D77,2),"") -> 0.35 | J77: 0
B78: ARMADOR COM ENCARGOS COMPLEMENTARES | C78: H | D78: 0.1055 | E78: 26.9705 | F78: Sinapi 88245 | G78: =IF(ISNUMBER(E78),ROUND(E78*$D78,2),"") -> 2.85 | J78: 0
B79: CORTE E DOBRA DE AÇO CA-60, DIÂMETRO DE 4,2 MM. AF_06/2022 | C79: KG | D79: 1 | E79: 12.41734835 | F79: Sinapi 92799 | G79: =IF(ISNUMBER(E79),ROUND(E79*$D79,2),"") -> 12.42 | J79: 0
G80: =IF(ISNUMBER(E80),ROUND(E80*$D80,2),"") ->  | J80: 0
A81: CONCRETO FCK = 30MPA, TRAÇO 1:2,1:2,5 (EM MASSA SECA DE CIMENTO/ AREIA MÉDIA/ BRITA 1) - PREPARO MECÂNICO COM BETONEIRA 600 L. AF_05/2021 | C81: M3 | G81: =IF(ISNUMBER(E81),ROUND(E81*$D81,2),"") ->  | J81: 0
G82: =IF(ISNUMBER(E82),ROUND(E82*$D82,2),"") ->  | J82: 0
B83: AREIA MEDIA - POSTO JAZIDA/FORNECEDOR (RETIRADO NA JAZIDA, SEM TRANSPORTE) | C83: M3 | D83: 0.7119 | E83: 202.2835 | F83: Sinapi 370 | G83: =IF(ISNUMBER(E83),ROUND(E83*$D83,2),"") -> 144.01 | H83: =SUM(G83:G91) -> 633.6869166 | J83: 0
B84: CIMENTO PORTLAND COMPOSTO CP II-32 | C84: KG | D84: 391.1663 | E84: 0.627 | F84: Sinapi 1379 | G84: =IF(ISNUMBER(E84),ROUND(E84*$D84,2),"") -> 245.26 | J84: 0
B85: PEDRA BRITADA N. 1 (9,5 a 19 MM) POSTO PEDREIRA/FORNECEDOR, SEM FRETE | C85: M3 | D85: 0.5927 | E85: 160.6545 | F85: Sinapi 4721 | G85: =IF(ISNUMBER(E85),ROUND(E85*$D85,2),"") -> 95.22 | J85: 0
B86: SERVENTE COM ENCARGOS COMPLEMENTARES | C86: H | D86: 1.9633 | E86: 20.2255 | F86: Sinapi 88316 | G86: =IF(ISNUMBER(E86),ROUND(E86*$D86,2),"") -> 39.71 | J86: 0
B87: OPERADOR DE BETONEIRA ESTACIONÁRIA/MISTURADOR COM ENCARGOS COMPLEMENTARES | C87: H | D87: 1.24 | E87: 20.292 | F87: Sinapi 88377 | G87: =IF(ISNUMBER(E87),ROUND(E87*$D87,2),"") -> 25.16 | J87: 0
B88: BETONEIRA CAPACIDADE NOMINAL DE 600 L, CAPACIDADE DE MISTURA 360 L, MOTOR ELÉTRICO TRIFÁSICO POTÊNCIA DE 4 CV, SEM CARREGADOR - CHP DIURNO. AF_11/2014 | C88: CHP | D88: 0.6382 | E88: 5.1395 | F88: Sinapi 89225 | G88: =IF(ISNUMBER(E88),E88*$D88,"") -> 3.2800289 | J88: 0
B89: BETONEIRA CAPACIDADE NOMINAL DE 600 L, CAPACIDADE DE MISTURA 360 L, MOTOR ELÉTRICO TRIFÁSICO POTÊNCIA DE 4 CV, SEM CARREGADOR - CHI DIURNO. AF_11/2014 | C89: CHI | D89: 0.6018 | E89: 1.7955 | F89: Sinapi 89226 | G89: =IF(ISNUMBER(E89),E89*$D89,"") -> 1.0805319 | J89: 0
B90: CARGA, MANOBRA E DESCARGA DE SOLOS E MATERIAIS GRANULARES EM CAMINHÃO BASCULANTE 6 M³ - CARGA COM PÁ CARREGADEIRA (CAÇAMBA DE 1,7 A 2,8 M³ / 128 HP) E DESCARGA LIVRE (UNIDADE: M3). AF_07/2020 | C90: M3 | D90: =D83+D85 -> 1.3046 | E90: 7.98432915 | F90: Sinapi 100973 | G90: =IF(ISNUMBER(E90),E90*$D90,"") -> 10.41635581 | J90: 0
B91: TRANSPORTE COM CAMINHÃO BASCULANTE DE 6 M³, EM VIA URBANA PAVIMENTADA, DMT ATÉ 30 KM (UNIDADE: M3XKM). AF_07/2020 | C91: M3xKM | D91: =20*(D83+D85) -> 26.092 | E91: 2.6655271 | F91: Sinapi 97914 | G91: =IF(ISNUMBER(E91),ROUND(E91*$D91,2),"") -> 69.55 | J91: 0
G92: =IF(ISNUMBER(E92),ROUND(E92*$D92,2),"") ->  | J92: 0
B93: Obs.: Considerando fornecedor de areia a 20 km do Senado Federal. | G93: =IF(ISNUMBER(E93),ROUND(E93*$D93,2),"") ->  | J93: 0
G94: =IF(ISNUMBER(E94),ROUND(E94*$D94,2),"") ->  | J94: 0
A95: CONCRETO FCK = 25MPA, TRAÇO 1:2,3:2,7 (EM MASSA SECA DE CIMENTO/ AREIA MÉDIA/ BRITA 1) - PREPARO MECÂNICO COM BETONEIRA 600 L. AF_05/2021 | C95: M3 | G95: =IF(ISNUMBER(E95),ROUND(E95*$D95,2),"") ->  | J95: 0
G96: =IF(ISNUMBER(E96),ROUND(E96*$D96,2),"") ->  | J96: 0
B97: AREIA MEDIA - POSTO JAZIDA/FORNECEDOR (RETIRADO NA JAZIDA, SEM TRANSPORTE) | C97: M3 | D97: 0.7275 | E97: 202.2835 | F97: Sinapi 370 | G97: =IF(ISNUMBER(E97),ROUND(E97*$D97,2),"") -> 147.16 | H97: =SUM(G97:G105) -> 622.912925 | J97: 0
B98: CIMENTO PORTLAND COMPOSTO CP II-32 | C98: KG | D98: 364.9433 | E98: 0.627 | F98: Sinapi 1379 | G98: =IF(ISNUMBER(E98),ROUND(E98*$D98,2),"") -> 228.82 | J98: 0
B99: PEDRA BRITADA N. 1 (9,5 a 19 MM) POSTO PEDREIRA/FORNECEDOR, SEM FRETE | C99: M3 | D99: 0.5972 | E99: 160.6545 | F99: Sinapi 4721 | G99: =IF(ISNUMBER(E99),ROUND(E99*$D99,2),"") -> 95.94 | J99: 0
B100: SERVENTE COM ENCARGOS COMPLEMENTARES | C100: H | D100: 1.9792 | E100: 20.2255 | F100: Sinapi 88316 | G100: =IF(ISNUMBER(E100),ROUND(E100*$D100,2),"") -> 40.03 | J100: 0
B101: OPERADOR DE BETONEIRA ESTACIONÁRIA/MISTURADOR COM ENCARGOS COMPLEMENTARES | C101: H | D101: 1.2501 | E101: 20.292 | F101: Sinapi 88377 | G101: =IF(ISNUMBER(E101),ROUND(E101*$D101,2),"") -> 25.37 | J101: 0
B102: BETONEIRA CAPACIDADE NOMINAL DE 600 L, CAPACIDADE DE MISTURA 360 L, MOTOR ELÉTRICO TRIFÁSICO POTÊNCIA DE 4 CV, SEM CARREGADOR - CHP DIURNO. AF_11/2014 | C102: CHP | D102: 0.6434 | E102: 5.1395 | F102: Sinapi 89225 | G102: =IF(ISNUMBER(E102),E102*$D102,"") -> 3.3067543 | J102: 0
B103: BETONEIRA CAPACIDADE NOMINAL DE 600 L, CAPACIDADE DE MISTURA 360 L, MOTOR ELÉTRICO TRIFÁSICO POTÊNCIA DE 4 CV, SEM CARREGADOR - CHI DIURNO. AF_11/2014 | C103: CHI | D103: 0.6067 | E103: 1.7955 | F103: Sinapi 89226 | G103: =IF(ISNUMBER(E103),E103*$D103,"") -> 1.08932985 | J103: 0
B104: CARGA, MANOBRA E DESCARGA DE SOLOS E MATERIAIS GRANULARES EM CAMINHÃO BASCULANTE 6 M³ - CARGA COM PÁ CARREGADEIRA (CAÇAMBA DE 1,7 A 2,8 M³ / 128 HP) E DESCARGA LIVRE (UNIDADE: M3). AF_07/2020 | C104: M3 | D104: =D97+D99 -> 1.3247 | E104: 7.98432915 | F104: Sinapi 100973 | G104: =IF(ISNUMBER(E104),E104*$D104,"") -> 10.57684083 | J104: 0
B105: TRANSPORTE COM CAMINHÃO BASCULANTE DE 6 M³, EM VIA URBANA PAVIMENTADA, DMT ATÉ 30 KM (UNIDADE: M3XKM). AF_07/2020 | C105: M3xKM | D105: =20*(D97+D99) -> 26.494 | E105: 2.6655271 | F105: Sinapi 97914 | G105: =IF(ISNUMBER(E105),ROUND(E105*$D105,2),"") -> 70.62 | J105: 0
G106: =IF(ISNUMBER(E106),ROUND(E106*$D106,2),"") ->  | J106: 0
B107: Obs.: Considerando fornecedor de areia a 20 km do Senado Federal. | G107: =IF(ISNUMBER(E107),ROUND(E107*$D107,2),"") ->  | J107: 0
G108: =IF(ISNUMBER(E108),ROUND(E108*$D108,2),"") ->  | J108: 0
A109: GRAUTE FGK=20 MPA; TRAÇO 1:0,04:1,8:2,1 (EM MASSA SECA DE CIMENTO/ CAL/ AREIA GROSSA/ BRITA 0) - PREPARO MECÂNICO COM BETONEIRA 400 L. AF_09/2021 | C109: M3 | G109: =IF(ISNUMBER(E109),ROUND(E109*$D109,2),"") ->  | J109: 0
G110: =IF(ISNUMBER(E110),ROUND(E110*$D110,2),"") ->  | J110: 0
B111: AREIA GROSSA - POSTO JAZIDA/FORNECEDOR (RETIRADO NA JAZIDA, SEM TRANSPORTE) | C111: M3 | D111: 0.6302 | E111: 204.9245 | F111: Sinapi 367 | G111: =IF(ISNUMBER(E111),ROUND(E111*$D111,2),"") -> 129.14 | H111: =SUM(G111:G120) -> 680.526652 | J111: 0
B112: CAL HIDRATADA CH-I PARA ARGAMASSAS | C112: KG | D112: 15.1255 | E112: 1.1875 | F112: Sinapi 1106 | G112: =IF(ISNUMBER(E112),ROUND(E112*$D112,2),"") -> 17.96 | J112: 0
B113: CIMENTO PORTLAND COMPOSTO CP II-32 | C113: KG | D113: 420.1527 | E113: 0.627 | F113: Sinapi 1379 | G113: =IF(ISNUMBER(E113),ROUND(E113*$D113,2),"") -> 263.44 | J113: 0
B114: PEDRA BRITADA N. 0, OU PEDRISCO (4,8 A 9,5 MM) POSTO PEDREIRA/FORNECEDOR, SEM FRETE | C114: M3 | D114: 0.5882 | E114: 185.478 | F114: Sinapi 4720 | G114: =IF(ISNUMBER(E114),ROUND(E114*$D114,2),"") -> 109.1 | J114: 0
B115: SERVENTE COM ENCARGOS COMPLEMENTARES | C115: H | D115: 2.5492 | E115: 20.2255 | F115: Sinapi 88316 | G115: =IF(ISNUMBER(E115),ROUND(E115*$D115,2),"") -> 51.56 | J115: 0
B116: OPERADOR DE BETONEIRA ESTACIONÁRIA/MISTURADOR COM ENCARGOS COMPLEMENTARES | C116: H | D116: 1.6069 | E116: 20.292 | F116: Sinapi 88377 | G116: =IF(ISNUMBER(E116),E116*$D116,"") -> 32.6072148 | J116: 0
B117: BETONEIRA CAPACIDADE NOMINAL DE 400 L, CAPACIDADE DE MISTURA 280 L, MOTOR ELÉTRICO TRIFÁSICO POTÊNCIA DE 2 CV, SEM CARREGADOR - CHP DIURNO. AF_10/2014 | C117: CHP | D117: 1.1138 | E117: 1.6435 | F117: Sinapi 88830 | G117: =IF(ISNUMBER(E117),E117*$D117,"") -> 1.8305303 | J117: 0
B118: BETONEIRA CAPACIDADE NOMINAL DE 400 L, CAPACIDADE DE MISTURA 280 L, MOTOR ELÉTRICO TRIFÁSICO POTÊNCIA DE 2 CV, SEM CARREGADOR - CHI DIURNO. AF_10/2014 | C118: CHI | D118: 0.4931 | E118: 0.4275 | F118: Sinapi 88831 | G118: =IF(ISNUMBER(E118),E118*$D118,"") -> 0.21080025 | J118: 0
B119: CARGA, MANOBRA E DESCARGA DE SOLOS E MATERIAIS GRANULARES EM CAMINHÃO BASCULANTE 6 M³ - CARGA COM PÁ CARREGADEIRA (CAÇAMBA DE 1,7 A 2,8 M³ / 128 HP) E DESCARGA LIVRE (UNIDADE: M3). AF_07/2020 | C119: M3 | D119: =D111+D114 -> 1.2184 | E119: 7.98432915 | F119: Sinapi 100973 | G119: =IF(ISNUMBER(E119),E119*$D119,"") -> 9.728106636 | J119: 0
B120: TRANSPORTE COM CAMINHÃO BASCULANTE DE 6 M³, EM VIA URBANA PAVIMENTADA, DMT ATÉ 30 KM (UNIDADE: M3XKM). AF_07/2020 | C120: M3xKM | D120: =20*(D111+D114) -> 24.368 | E120: 2.6655271 | F120: Sinapi 97914 | G120: =IF(ISNUMBER(E120),ROUND(E120*$D120,2),"") -> 64.95 | J120: 0
G121: =IF(ISNUMBER(E121),ROUND(E121*$D121,2),"") ->  | J121: 0
B122: Obs.: Considerando fornecedor de areia a 20 km do Senado Federal. | G122: =IF(ISNUMBER(E122),ROUND(E122*$D122,2),"") ->  | J122: 0
G123: =IF(ISNUMBER(E123),ROUND(E123*$D123,2),"") ->  | J123: 0
A124: CORTE E DOBRA DE AÇO CA-25, DIÂMETRO DE 16,0 MM. AF_06/2022 | C124: KG | G124: =IF(ISNUMBER(E124),ROUND(E124*$D124,2),"") ->  | J124: 0
G125: =IF(ISNUMBER(E125),ROUND(E125*$D125,2),"") ->  | J125: 0
B126: ACO CA-25, 10,0 MM, OU 12,5 MM, OU 16,0 MM, OU 20,0 MM, OU 25,0 MM, VERGALHAO | C126: KG | D126: 1.11 | E126: 10.2315 | F126: Sinapi 43054 | G126: =IF(ISNUMBER(E126),ROUND(E126*$D126,2),"") -> 11.36 | H126: =SUM(G126:G127) -> 11.46 | J126: 0
B127: ARMADOR COM ENCARGOS COMPLEMENTARES | C127: H | D127: 0.0037 | E127: 26.9705 | F127: Sinapi 88245 | G127: =IF(ISNUMBER(E127),ROUND(E127*$D127,2),"") -> 0.1 | J127: 0
G128: =IF(ISNUMBER(E128),ROUND(E128*$D128,2),"") ->  | J128: 0
A129: CORTE E DOBRA DE AÇO CA-60, DIÂMETRO DE 5,0 MM. AF_06/2022 | C129: KG | G129: =IF(ISNUMBER(E129),ROUND(E129*$D129,2),"") ->  | J129: 0
G130: =IF(ISNUMBER(E130),ROUND(E130*$D130,2),"") ->  | J130: 0
B131: ACO CA-60, 4,2 MM, OU 5,0 MM, OU 6,0 MM, OU 7,0 MM, VERGALHAO | C131: KG | D131: 1.07 | E131: 9.006 | F131: Sinapi 43059 | G131: =IF(ISNUMBER(E131),ROUND(E131*$D131,2),"") -> 9.64 | H131: =SUM(G131:G133) -> 11.38 | J131: 0
B132: AJUDANTE DE ARMADOR COM ENCARGOS COMPLEMENTARES | C132: H | D132: 0.0082 | E132: 20.197 | F132: Sinapi 88238 | G132: =IF(ISNUMBER(E132),ROUND(E132*$D132,2),"") -> 0.17 | J132: 0
B133: ARMADOR COM ENCARGOS COMPLEMENTARES | C133: H | D133: 0.0581 | E133: 26.9705 | F133: Sinapi 88245 | G133: =IF(ISNUMBER(E133),ROUND(E133*$D133,2),"") -> 1.57 | J133: 0
G134: =IF(ISNUMBER(E134),ROUND(E134*$D134,2),"") ->  | J134: 0
A135: CORTE E DOBRA DE AÇO CA-50, DIÂMETRO DE 16,0 MM. AF_06/2022 | C135: KG | G135: =IF(ISNUMBER(E135),ROUND(E135*$D135,2),"") ->  | J135: 0
G136: =IF(ISNUMBER(E136),ROUND(E136*$D136,2),"") ->  | J136: 0
B137: ACO CA-50, 12,5 MM OU 16,0 MM, VERGALHAO | C137: KG | D137: 1.11 | E137: 8.246 | F137: Sinapi 43055 | G137: =IF(ISNUMBER(E137),ROUND(E137*$D137,2),"") -> 9.15 | H137: =SUM(G137:G138) -> 9.22 | J137: 0
B138: ARMADOR COM ENCARGOS COMPLEMENTARES | C138: H | D138: 0.0025 | E138: 26.9705 | F138: Sinapi 88245 | G138: =IF(ISNUMBER(E138),ROUND(E138*$D138,2),"") -> 0.07 | J138: 0
G139: =IF(ISNUMBER(E139),ROUND(E139*$D139,2),"") ->  | J139: 0

Sheet Orçamentária
A1: Implementação de sistema de climatização para a sala de leitura da Biblioteca do Senado Federal
A2: PLANILHA ORÇAMENTÁRIA
A3: Data: março de 2023
A5: ITEM | B5: DESCRIÇÃO | C5: UNIDADE | D5: QUANTIDADE | E5: CUSTO UNITÁRIO | F5: CUSTO DIRETO TOTAL | G5: BDI (%) | H5: PREÇO UNITÁRIO COM BDI | I5: PREÇO TOTAL
A6: SF-00001 | B6: Engenheiro(a) /Arquiteto(a) júnior | C6: hh | D6: 40 | E6: =OFFSET(INDEX(Composições!A:J,MATCH(Orçamentária!A6,Composições!A:A,0),8),2,0) -> 104.082 | F6: =IF(ISNUMBER(E6),D6*E6,"") -> 4163.28 | G6: =BDI!$B$17 -> 0.191 | H6: =IF(ISNUMBER(E6),ROUND(E6*(1+G6),2),"") -> 123.96 | I6: =IF(ISNUMBER(E6),ROUND(H6*D6,2),"") -> 4958.4
A7: SF-00002 | B7: Mestre de obras | C7: hh | D7: 120 | E7: =OFFSET(INDEX(Composições!A:J,MATCH(Orçamentária!A7,Composições!A:A,0),8),2,0) -> 44.5645 | F7: =IF(ISNUMBER(E7),D7*E7,"") -> 5347.74 | G7: =BDI!$B$17 -> 0.191 | H7: =IF(ISNUMBER(E7),ROUND(E7*(1+G7),2),"") -> 53.08 | I7: =IF(ISNUMBER(E7),ROUND(H7*D7,2),"") -> 6369.6
A8: SF-00003 | B8: Planejamento físico-financeiro | C8: un | D8: 0 | E8: =OFFSET(INDEX(Composições!A:J,MATCH(Orçamentária!A8,Composições!A:A,0),8),2,0) -> 1891.336 | F8: 0 | G8: =IF(A8<>"",IF(AND(#REF!="Padrão",$H$4=#REF!),BDI!$B$17,IF(AND(#REF!="Padrão",$H$4=#REF!),BDI!#REF!,IF(AND(#REF!="Diferenciado",$H$4=#REF!),BDI!$E$17,IF(AND(#REF!="Diferenciado",$H$4=#REF!),BDI!#REF!,IF(#REF!="ZERO",0))))),"") -> 
A9: SF-00004 | B9: Projetos de segurança do trabalho | C9: un | D9: 0 | E9: =OFFSET(INDEX(Composições!A:J,MATCH(Orçamentária!A9,Composições!A:A,0),8),2,0) -> 2623.89 | F9: 0 | G9: =IF(A9<>"",IF(AND(#REF!="Padrão",$H$4=#REF!),BDI!$B$17,IF(AND(#REF!="Padrão",$H$4=#REF!),BDI!#REF!,IF(AND(#REF!="Diferenciado",$H$4=#REF!),BDI!$E$17,IF(AND(#REF!="Diferenciado",$H$4=#REF!),BDI!#REF!,IF(#REF!="ZERO",0))))),"") -> 
A10: SF-00005 | B10: Demolição de alvenarias | C10: m3 | D10: 0 | E10: =OFFSET(INDEX(Composições!A:J,MATCH(Orçamentária!A10,Composições!A:A,0),8),2,0) -> 53.1313549 | F10: 0 | G10: =IF(A10<>"",IF(AND(#REF!="Padrão",$H$4=#REF!),BDI!$B$17,IF(AND(#REF!="Padrão",$H$4=#REF!),BDI!#REF!,IF(AND(#REF!="Diferenciado",$H$4=#REF!),BDI!$E$17,IF(AND(#REF!="Diferenciado",$H$4=#REF!),BDI!#REF!,IF(#REF!="ZERO",0))))),"") -> 
A11: SF-00006 | B11: Demolição de concreto simples | C11: m3 | D11: 1 | E11: =OFFSET(INDEX(Composições!A:J,MATCH(Orçamentária!A11,Composições!A:A,0),8),2,0) -> 298.24015 | F11: 298.24015 | G11: =BDI!$B$17 -> 0.191 | H11: 355.2 | I11: 355.2
A12: SF-00007 | B12: Demolição de contrapiso | C12: m2 | D12: 0 | E12: =OFFSET(INDEX(Composições!A:J,MATCH(Orçamentária!A12,Composições!A:A,0),8),2,0) -> 18.35324 | F12: 0 | G12: =IF(A12<>"",IF(AND(#REF!="Padrão",$H$4=#REF!),BDI!$B$17,IF(AND(#REF!="Padrão",$H$4=#REF!),BDI!#REF!,IF(AND(#REF!="Diferenciado",$H$4=#REF!),BDI!$E$17,IF(AND(#REF!="Diferenciado",$H$4=#REF!),BDI!#REF!,IF(#REF!="ZERO",0))))),"") -> 
A13: SF-00008 | B13: Demolição de fechamento ou parede em gesso acartonado | C13: m2 | D13: 20 | E13: =OFFSET(INDEX(Composições!A:J,MATCH(Orçamentária!A13,Composições!A:A,0),8),2,0) -> 7.16785165 | F13: 143.357033 | G13: =BDI!$B$17 -> 0.191 | H13: 8.54 | I13: 170.8
A14: SF-00009 | B14: Demolição de forro | C14: m2 | D14: 125 | E14: =OFFSET(INDEX(Composições!A:J,MATCH(Orçamentária!A14,Composições!A:A,0),8),2,0) -> 1.55999595 | F14: 194.9994937 | G14: =BDI!$B$17 -> 0.191 | H14: 1.86 | I14: 232.5
A15: SF-00010 | B15: Demolição de infraestrutura elétrica (eletrodutos, eletrocalhas, cabos) | C15: m | D15: 27 | E15: =OFFSET(INDEX(Composições!A:J,MATCH(Orçamentária!A15,Composições!A:A,0),8),2,0) -> 3.219949 | F15: 86.938623 | G15: =BDI!$B$17 -> 0.191 | H15: 3.83 | I15: 103.41
A16: SF-00011 | B16: Demolição de revestimento cerâmico, granito, mármore ou granitina | C16: m2 | D16: 18 | E16: =OFFSET(INDEX(Composições!A:J,MATCH(Orçamentária!A16,Composições!A:A,0),8),2,0) -> 11.69566565 | F16: 210.5219817 | G16: =BDI!$B$17 -> 0.191 | H16: 13.93 | I16: 250.74
A17: SF-00012 | B17: Demolição de revestimento em argamassa | C17: m2 | D17: 0 | E17: =OFFSET(INDEX(Composições!A:J,MATCH(Orçamentária!A17,Composições!A:A,0),8),2,0) -> 3.14554785 | F17: 0 | G17: =IF(A17<>"",IF(AND(#REF!="Padrão",$H$4=#REF!),BDI!$B$17,IF(AND(#REF!="Padrão",$H$4=#REF!),BDI!#REF!,IF(AND(#REF!="Diferenciado",$H$4=#REF!),BDI!$E$17,IF(AND(#REF!="Diferenciado",$H$4=#REF!),BDI!#REF!,IF(#REF!="ZERO",0))))),"") -> 
A18: SF-00013 | B18: Demolição de tubulação hidrossanitária embutida com conexões e acessórios | C18: m | D18: 0 | E18: =OFFSET(INDEX(Composições!A:J,MATCH(Orçamentária!A18,Composições!A:A,0),8),2,0) -> 0.47100525 | F18: 0 | G18: =IF(A18<>"",IF(AND(#REF!="Padrão",$H$4=#REF!),BDI!$B$17,IF(AND(#REF!="Padrão",$H$4=#REF!),BDI!#REF!,IF(AND(#REF!="Diferenciado",$H$4=#REF!),BDI!$E$17,IF(AND(#REF!="Diferenciado",$H$4=#REF!),BDI!#REF!,IF(#REF!="ZERO",0))))),"") -> 
A19: SF-00014 | B19: Demolição em concreto armado | C19: m3 | D19: 0 | E19: =OFFSET(INDEX(Composições!A:J,MATCH(Orçamentária!A19,Composições!A:A,0),8),2,0) -> 271.8359241 | F19: 0 | G19: =IF(A19<>"",IF(AND(#REF!="Padrão",$H$4=#REF!),BDI!$B$17,IF(AND(#REF!="Padrão",$H$4=#REF!),BDI!#REF!,IF(AND(#REF!="Diferenciado",$H$4=#REF!),BDI!$E$17,IF(AND(#REF!="Diferenciado",$H$4=#REF!),BDI!#REF!,IF(#REF!="ZERO",0))))),"") -> 
A20: SF-00015 | B20: Locação de caçambas | C20: un | D20: 3 | E20: 332.5 | F20: 997.5 | G20: =BDI!$E$17 -> 0.1126 | H20: 369.94 | I20: 1109.82
A21: SF-00016 | B21: Remoção de armários | C21: m2 | D21: 0 | E21: =OFFSET(INDEX(Composições!A:J,MATCH(Orçamentária!A21,Composições!A:A,0),8),2,0) -> 16.083025 | F21: 0 | G21: =IF(A21<>"",IF(AND(#REF!="Padrão",$H$4=#REF!),BDI!$B$17,IF(AND(#REF!="Padrão",$H$4=#REF!),BDI!#REF!,IF(AND(#REF!="Diferenciado",$H$4=#REF!),BDI!$E$17,IF(AND(#REF!="Diferenciado",$H$4=#REF!),BDI!#REF!,IF(#REF!="ZERO",0))))),"") -> 
A22: SF-00017 | B22: Remoção de bancadas | C22: m2 | D22: 0 | E22: =OFFSET(INDEX(Composições!A:J,MATCH(Orçamentária!A22,Composições!A:A,0),8),2,0) -> 24.299575 | F22: 0 | G22: =IF(A22<>"",IF(AND(#REF!="Padrão",$H$4=#REF!),BDI!$B$17,IF(AND(#REF!="Padrão",$H$4=#REF!),BDI!#REF!,IF(AND(#REF!="Diferenciado",$H$4=#REF!),BDI!$E$17,IF(AND(#REF!="Diferenciado",$H$4=#REF!),BDI!#REF!,IF(#REF!="ZERO",0))))),"") -> 
A23: SF-00018 | B23: Remoção de batentes de madeira | C23: un | D23: 0 | E23: =OFFSET(INDEX(Composições!A:J,MATCH(Orçamentária!A23,Composições!A:A,0),8),2,0) -> 9.17662 | F23: 0 | G23: =IF(A23<>"",IF(AND(#REF!="Padrão",$H$4=#REF!),BDI!$B$17,IF(AND(#REF!="Padrão",$H$4=#REF!),BDI!#REF!,IF(AND(#REF!="Diferenciado",$H$4=#REF!),BDI!$E$17,IF(AND(#REF!="Diferenciado",$H$4=#REF!),BDI!#REF!,IF(#REF!="ZERO",0))))),"") -> 
A24: SF-00019 | B24: Remoção de canaleta em alumínio | C24: m | D24: 0 | E24: =OFFSET(INDEX(Composições!A:J,MATCH(Orçamentária!A24,Composições!A:A,0),8),2,0) -> 5.094375 | F24: 0 | G24: =IF(A24<>"",IF(AND(#REF!="Padrão",$H$4=#REF!),BDI!$B$17,IF(AND(#REF!="Padrão",$H$4=#REF!),BDI!#REF!,IF(AND(#REF!="Diferenciado",$H$4=#REF!),BDI!$E$17,IF(AND(#REF!="Diferenciado",$H$4=#REF!),BDI!#REF!,IF(#REF!="ZERO",0))))),"") -> 
A25: SF-00020 | B25: Remoção de carpete | C25: m2 | D25: 0 | E25: =OFFSET(INDEX(Composições!A:J,MATCH(Orçamentária!A25,Composições!A:A,0),8),2,0) -> 2.294155 | F25: 0 | G25: =IF(A25<>"",IF(AND(#REF!="Padrão",$H$4=#REF!),BDI!$B$17,IF(AND(#REF!="Padrão",$H$4=#REF!),BDI!#REF!,IF(AND(#REF!="Diferenciado",$H$4=#REF!),BDI!$E$17,IF(AND(#REF!="Diferenciado",$H$4=#REF!),BDI!#REF!,IF(#REF!="ZERO",0))))),"") -> 
A26: SF-00021 | B26: Remoção de cortinas | C26: m | D26: 0 | E26: =OFFSET(INDEX(Composições!A:J,MATCH(Orçamentária!A26,Composições!A:A,0),8),2,0) -> 3.5537106 | F26: 0 | G26: =IF(A26<>"",IF(AND(#REF!="Padrão",$H$4=#REF!),BDI!$B$17,IF(AND(#REF!="Padrão",$H$4=#REF!),BDI!#REF!,IF(AND(#REF!="Diferenciado",$H$4=#REF!),BDI!$E$17,IF(AND(#REF!="Diferenciado",$H$4=#REF!),BDI!#REF!,IF(#REF!="ZERO",0))))),"") -> 
A27: SF-00022 | B27: Remoção de difusores, grelhas e acessórios de climatização | C27: un | D27: 2 | E27: =OFFSET(INDEX(Composições!A:J,MATCH(Orçamentária!A27,Composições!A:A,0),8),2,0) -> 26.0319 | F27: 52.0638 | G27: =BDI!$B$17 -> 0.191 | H27: 31 | I27: 62
A28: SF-00023 | B28: Remoção de divisória de mármore ou granito | C28: m2 | D28: 0 | E28: =OFFSET(INDEX(Composições!A:J,MATCH(Orçamentária!A28,Composições!A:A,0),8),2,0) -> 40.4928 | F28: 0 | G28: =IF(A28<>"",IF(AND(#REF!="Padrão",$H$4=#REF!),BDI!$B$17,IF(AND(#REF!="Padrão",$H$4=#REF!),BDI!#REF!,IF(AND(#REF!="Diferenciado",$H$4=#REF!),BDI!$E$17,IF(AND(#REF!="Diferenciado",$H$4=#REF!),BDI!#REF!,IF(#REF!="ZERO",0))))),"") -> 
A29: SF-00024 | B29: Remoção de divisórias de MDF e gesso acartonado | C29: m2 | D29: 27 | E29: =OFFSET(INDEX(Composições!A:J,MATCH(Orçamentária!A29,Composições!A:A,0),8),2,0) -> 7.16785165 | F29: 193.5319945 | G29: =BDI!$B$17 -> 0.191 | H29: 8.54 | I29: 230.58
A30: SF-00025 | B30: Remoção de dutos/tubulações | C30: m | D30: 0 | E30: =OFFSET(INDEX(Composições!A:J,MATCH(Orçamentária!A30,Composições!A:A,0),8),2,0) -> 10.6977125 | F30: 0 | G30: =IF(A30<>"",IF(AND(#REF!="Padrão",$H$4=#REF!),BDI!$B$17,IF(AND(#REF!="Padrão",$H$4=#REF!),BDI!#REF!,IF(AND(#REF!="Diferenciado",$H$4=#REF!),BDI!$E$17,IF(AND(#REF!="Diferenciado",$H$4=#REF!),BDI!#REF!,IF(#REF!="ZERO",0))))),"") -> 
A31: SF-00026 | B31: Remoção de esquadrias metálicas | C31: m2 | D31: 0 | E31: =OFFSET(INDEX(Composições!A:J,MATCH(Orçamentária!A31,Composições!A:A,0),8),2,0) -> 11.470775 | F31: 0 | G31: =IF(A31<>"",IF(AND(#REF!="Padrão",$H$4=#REF!),BDI!$B$17,IF(AND(#REF!="Padrão",$H$4=#REF!),BDI!#REF!,IF(AND(#REF!="Diferenciado",$H$4=#REF!),BDI!$E$17,IF(AND(#REF!="Diferenciado",$H$4=#REF!),BDI!#REF!,IF(#REF!="ZERO",0))))),"") -> 
A32: SF-00027 | B32: Remoção de exaustor | C32: un | D32: 0 | E32: =OFFSET(INDEX(Composições!A:J,MATCH(Orçamentária!A32,Composições!A:A,0),8),2,0) -> 8.2422 | F32: 0 | G32: =IF(A32<>"",IF(AND(#REF!="Padrão",$H$4=#REF!),BDI!$B$17,IF(AND(#REF!="Padrão",$H$4=#REF!),BDI!#REF!,IF(AND(#REF!="Diferenciado",$H$4=#REF!),BDI!$E$17,IF(AND(#REF!="Diferenciado",$H$4=#REF!),BDI!#REF!,IF(#REF!="ZERO",0))))),"") -> 
A33: SF-00028 | B33: Remoção de fechadura/puxador de porta | C33: un | D33: 0 | E33: =OFFSET(INDEX(Composições!A:J,MATCH(Orçamentária!A33,Composições!A:A,0),8),2,0) -> 6.4315 | F33: 0 | G33: =IF(A33<>"",IF(AND(#REF!="Padrão",$H$4=#REF!),BDI!$B$17,IF(AND(#REF!="Padrão",$H$4=#REF!),BDI!#REF!,IF(AND(#REF!="Diferenciado",$H$4=#REF!),BDI!$E$17,IF(AND(#REF!="Diferenciado",$H$4=#REF!),BDI!#REF!,IF(#REF!="ZERO",0))))),"") -> 
A34: SF-00029 | B34: Remoção de folha de porta e dobradiças / pivôs | C34: un | D34: 0 | E34: =OFFSET(INDEX(Composições!A:J,MATCH(Orçamentária!A34,Composições!A:A,0),8),2,0) -> 8.79382985 | F34: 0 | G34: =IF(A34<>"",IF(AND(#REF!="Padrão",$H$4=#REF!),BDI!$B$17,IF(AND(#REF!="Padrão",$H$4=#REF!),BDI!#REF!,IF(AND(#REF!="Diferenciado",$H$4=#REF!),BDI!$E$17,IF(AND(#REF!="Diferenciado",$H$4=#REF!),BDI!#REF!,IF(#REF!="ZERO",0))))),"") -> 
A35: SF-00030 | B35: Remoção de laminado melamínico (LDAP), em PVC ou vinílico | C35: m2 | D35: 0 | E35: =OFFSET(INDEX(Composições!A:J,MATCH(Orçamentária!A35,Composições!A:A,0),8),2,0) -> 20.647395 | F35: 0 | G35: =IF(A35<>"",IF(AND(#REF!="Padrão",$H$4=#REF!),BDI!$B$17,IF(AND(#REF!="Padrão",$H$4=#REF!),BDI!#REF!,IF(AND(#REF!="Diferenciado",$H$4=#REF!),BDI!$E$17,IF(AND(#REF!="Diferenciado",$H$4=#REF!),BDI!#REF!,IF(#REF!="ZERO",0))))),"") -> 
A36: SF-00031 | B36: Remoção de louças | C36: un | D36: 0 | E36: =OFFSET(INDEX(Composições!A:J,MATCH(Orçamentária!A36,Composições!A:A,0),8),2,0) -> 11.61704365 | F36: 0 | G36: =IF(A36<>"",IF(AND(#REF!="Padrão",$H$4=#REF!),BDI!$B$17,IF(AND(#REF!="Padrão",$H$4=#REF!),BDI!#REF!,IF(AND(#REF!="Diferenciado",$H$4=#REF!),BDI!$E$17,IF(AND(#REF!="Diferenciado",$H$4=#REF!),BDI!#REF!,IF(#REF!="ZERO",0))))),"") -> 
A37: SF-00032 | B37: Remoção de luminária | C37: un | D37: 39 | E37: =OFFSET(INDEX(Composições!A:J,MATCH(Orçamentária!A37,Composições!A:A,0),8),2,0) -> 6.14434825 | F37: 239.6295817 | G37: =BDI!$B$17 -> 0.191 | H37: 7.32 | I37: 285.48
A38: SF-00033 | B38: Remoção de metais e acessórios | C38: un | D38: 0 | E38: =OFFSET(INDEX(Composições!A:J,MATCH(Orçamentária!A38,Composições!A:A,0),8),2,0) -> 8.4712507 | F38: 0 | G38: =IF(A38<>"",IF(AND(#REF!="Padrão",$H$4=#REF!),BDI!$B$17,IF(AND(#REF!="Padrão",$H$4=#REF!),BDI!#REF!,IF(AND(#REF!="Diferenciado",$H$4=#REF!),BDI!$E$17,IF(AND(#REF!="Diferenciado",$H$4=#REF!),BDI!#REF!,IF(#REF!="ZERO",0))))),"") -> 
A39: SF-00034 | B39: Remoção de painéis de vidro temperado | C39: m2 | D39: 0 | E39: =OFFSET(INDEX(Composições!A:J,MATCH(Orçamentária!A39,Composições!A:A,0),8),2,0) -> 15.557447 | F39: 0 | G39: =IF(A39<>"",IF(AND(#REF!="Padrão",$H$4=#REF!),BDI!$B$17,IF(AND(#REF!="Padrão",$H$4=#REF!),BDI!#REF!,IF(AND(#REF!="Diferenciado",$H$4=#REF!),BDI!$E$17,IF(AND(#REF!="Diferenciado",$H$4=#REF!),BDI!#REF!,IF(#REF!="ZERO",0))))),"") -> 
A40: SF-00035 | B40: Remoção de película | C40: m2 | D40: 0 | E40: =OFFSET(INDEX(Composições!A:J,MATCH(Orçamentária!A40,Composições!A:A,0),8),2,0) -> 10.0244 | F40: 0 | G40: =IF(A40<>"",IF(AND(#REF!="Padrão",$H$4=#REF!),BDI!$B$17,IF(AND(#REF!="Padrão",$H$4=#REF!),BDI!#REF!,IF(AND(#REF!="Diferenciado",$H$4=#REF!),BDI!$E$17,IF(AND(#REF!="Diferenciado",$H$4=#REF!),BDI!#REF!,IF(#REF!="ZERO",0))))),"") -> 
A41: SF-00036 | B41: Remoção de persianas | C41: m | D41: 0 | E41: =OFFSET(INDEX(Composições!A:J,MATCH(Orçamentária!A41,Composições!A:A,0),8),2,0) -> 3.5537106 | F41: 0 | G41: =IF(A41<>"",IF(AND(#REF!="Padrão",$H$4=#REF!),BDI!$B$17,IF(AND(#REF!="Padrão",$H$4=#REF!),BDI!#REF!,IF(AND(#REF!="Diferenciado",$H$4=#REF!),BDI!$E$17,IF(AND(#REF!="Diferenciado",$H$4=#REF!),BDI!#REF!,IF(#REF!="ZERO",0))))),"") -> 
A42: SF-00037 | B42: Remoção de pintura ou textura | C42: m2 | D42: 0 | E42: =OFFSET(INDEX(Composições!A:J,MATCH(Orçamentária!A42,Composições!A:A,0),8),2,0) -> 8.0902 | F42: 0 | G42: =IF(A42<>"",IF(AND(#REF!="Padrão",$H$4=#REF!),BDI!$B$17,IF(AND(#REF!="Padrão",$H$4=#REF!),BDI!#REF!,IF(AND(#REF!="Diferenciado",$H$4=#REF!),BDI!$E$17,IF(AND(#REF!="Diferenciado",$H$4=#REF!),BDI!#REF!,IF(#REF!="ZERO",0))))),"") -> 
A43: SF-00038 | B43: Remoção de placas de forro | C43: m2 | D43: 0 | E43: =OFFSET(INDEX(Composições!A:J,MATCH(Orçamentária!A43,Composições!A:A,0),8),2,0) -> 4.67998785 | F43: 0 | G43: =IF(A43<>"",IF(AND(#REF!="Padrão",$H$4=#REF!),BDI!$B$17,IF(AND(#REF!="Padrão",$H$4=#REF!),BDI!#REF!,IF(AND(#REF!="Diferenciado",$H$4=#REF!),BDI!$E$17,IF(AND(#REF!="Diferenciado",$H$4=#REF!),BDI!#REF!,IF(#REF!="ZERO",0))))),"") -> 
A44: SF-00039 | B44: Remoção de quadros de elétricos ou de telecomunicações | C44: un | D44: 0 | E44: =OFFSET(INDEX(Composições!A:J,MATCH(Orçamentária!A44,Composições!A:A,0),8),2,0) -> 71.7915 | F44: 0 | G44: =IF(A44<>"",IF(AND(#REF!="Padrão",$H$4=#REF!),BDI!$B$17,IF(AND(#REF!="Padrão",$H$4=#REF!),BDI!#REF!,IF(AND(#REF!="Diferenciado",$H$4=#REF!),BDI!$E$17,IF(AND(#REF!="Diferenciado",$H$4=#REF!),BDI!#REF!,IF(#REF!="ZERO",0))))),"") -> 
A45: SF-00040 | B45: Remoção de revestimento acústico | C45: m2 | D45: 62 | E45: =OFFSET(INDEX(Composições!A:J,MATCH(Orçamentária!A45,Composições!A:A,0),8),2,0) -> 4.0451 | F45: 250.7962 | G45: =BDI!$B$17 -> 0.191 | H45: 4.82 | I45: 298.84
A46: SF-00041 | B46: Remoção de rodapé/rodabanca de mármore ou granito | C46: m | D46: 0 | E46: =OFFSET(INDEX(Composições!A:J,MATCH(Orçamentária!A46,Composições!A:A,0),8),2,0) -> 1.7677087 | F46: 0 | G46: =IF(A46<>"",IF(AND(#REF!="Padrão",$H$4=#REF!),BDI!$B$17,IF(AND(#REF!="Padrão",$H$4=#REF!),BDI!#REF!,IF(AND(#REF!="Diferenciado",$H$4=#REF!),BDI!$E$17,IF(AND(#REF!="Diferenciado",$H$4=#REF!),BDI!#REF!,IF(#REF!="ZERO",0))))),"") -> 
A47: SF-00042 | B47: Remoção de rodapés de madeira | C47: m2 | D47: 0 | E47: =OFFSET(INDEX(Composições!A:J,MATCH(Orçamentária!A47,Composições!A:A,0),8),2,0) -> 7.2055125 | F47: 0 | G47: =IF(A47<>"",IF(AND(#REF!="Padrão",$H$4=#REF!),BDI!$B$17,IF(AND(#REF!="Padrão",$H$4=#REF!),BDI!#REF!,IF(AND(#REF!="Diferenciado",$H$4=#REF!),BDI!$E$17,IF(AND(#REF!="Diferenciado",$H$4=#REF!),BDI!#REF!,IF(#REF!="ZERO",0))))),"") -> 
A48: SF-00043 | B48: Remoção de soleira de mármore ou granito | C48: m | D48: 0 | E48: =OFFSET(INDEX(Composições!A:J,MATCH(Orçamentária!A48,Composições!A:A,0),8),2,0) -> 11.124025 | F48: 0 | G48: =IF(A48<>"",IF(AND(#REF!="Padrão",$H$4=#REF!),BDI!$B$17,IF(AND(#REF!="Padrão",$H$4=#REF!),BDI!#REF!,IF(AND(#REF!="Diferenciado",$H$4=#REF!),BDI!$E$17,IF(AND(#REF!="Diferenciado",$H$4=#REF!),BDI!#REF!,IF(#REF!="ZERO",0))))),"") -> 
A49: SF-00044 | B49: Remoção de split/fancolete/ACJ (equipamento unitário) | C49: un | D49: 0 | E49: =OFFSET(INDEX(Composições!A:J,MATCH(Orçamentária!A49,Composições!A:A,0),8),2,0) -> 51.9745 | F49: 0 | G49: =IF(A49<>"",IF(AND(#REF!="Padrão",$H$4=#REF!),BDI!$B$17,IF(AND(#REF!="Padrão",$H$4=#REF!),BDI!#REF!,IF(AND(#REF!="Diferenciado",$H$4=#REF!),BDI!$E$17,IF(AND(#REF!="Diferenciado",$H$4=#REF!),BDI!#REF!,IF(#REF!="ZERO",0))))),"") -> 
A50: SF-00045 | B50: Remoção de vidro comum / espelho | C50: m2 | D50: 0 | E50: =OFFSET(INDEX(Composições!A:J,MATCH(Orçamentária!A50,Composições!A:A,0),8),2,0) -> 17.937406 | F50: 0 | G50: =IF(A50<>"",IF(AND(#REF!="Padrão",$H$4=#REF!),BDI!$B$17,IF(AND(#REF!="Padrão",$H$4=#REF!),BDI!#REF!,IF(AND(#REF!="Diferenciado",$H$4=#REF!),BDI!$E$17,IF(AND(#REF!="Diferenciado",$H$4=#REF!),BDI!#REF!,IF(#REF!="ZERO",0))))),"") -> 
A51: SF-00046 | B51: Retirada de entulhos | C51: m3 | D51: 15 | E51: =OFFSET(INDEX(Composições!A:J,MATCH(Orçamentária!A51,Composições!A:A,0),8),2,0) -> 20.2255 | F51: 303.3825 | G51: =BDI!$B$17 -> 0.191 | H51: 24.09 | I51: 361.35
A52: SF-00047 | B52: Absorvedor de energia para linha de vida | C52: un | D52: 0 | G52: =IF(A52<>"",IF(AND(#REF!="Padrão",$H$4=#REF!),BDI!$B$17,IF(AND(#REF!="Padrão",$H$4=#REF!),BDI!#REF!,IF(AND(#REF!="Diferenciado",$H$4=#REF!),BDI!$E$17,IF(AND(#REF!="Diferenciado",$H$4=#REF!),BDI!#REF!,IF(#REF!="ZERO",0))))),"") -> 
A53: SF-00048 | B53: Andaime fachadeiro | C53: m2 x mês | D53: 0 | E53: =OFFSET(INDEX(Composições!A:J,MATCH(Orçamentária!A53,Composições!A:A,0),8),2,0) -> 6.327 | F53: 0 | G53: =IF(A53<>"",IF(AND(#REF!="Padrão",$H$4=#REF!),BDI!$B$17,IF(AND(#REF!="Padrão",$H$4=#REF!),BDI!#REF!,IF(AND(#REF!="Diferenciado",$H$4=#REF!),BDI!$E$17,IF(AND(#REF!="Diferenciado",$H$4=#REF!),BDI!#REF!,IF(#REF!="ZERO",0))))),"") -> 
A54: SF-00049 | B54: Andaime tubular (aluguel/mês) | C54: m x mês | D54: 0 | E54: =OFFSET(INDEX(Composições!A:J,MATCH(Orçamentária!A54,Composições!A:A,0),8),2,0) -> 19 | F54: 0 | G54: =IF(A54<>"",IF(AND(#REF!="Padrão",$H$4=#REF!),BDI!$B$17,IF(AND(#REF!="Padrão",$H$4=#REF!),BDI!#REF!,IF(AND(#REF!="Diferenciado",$H$4=#REF!),BDI!$E$17,IF(AND(#REF!="Diferenciado",$H$4=#REF!),BDI!#REF!,IF(#REF!="ZERO",0))))),"") -> 
A55: SF-00050 | B55: Cabo de aço com 8 mm de diâmetro galvanizado para linha de vida | C55: m | D55: 0 | G55: =IF(A55<>"",IF(AND(#REF!="Padrão",$H$4=#REF!),BDI!$B$17,IF(AND(#REF!="Padrão",$H$4=#REF!),BDI!#REF!,IF(AND(#REF!="Diferenciado",$H$4=#REF!),BDI!$E$17,IF(AND(#REF!="Diferenciado",$H$4=#REF!),BDI!#REF!,IF(#REF!="ZERO",0))))),"") -> 
A56: SF-00051 | B56: Corda de poliamida 12 mm tipo bombeiro, para trabalho em altura | C56: m | D56: 0 | E56: =OFFSET(INDEX(Composições!A:J,MATCH(Orçamentária!A56,Composições!A:A,0),8),2,0) -> 5.770015 | F56: 0 | G56: =IF(A56<>"",IF(AND(#REF!="Padrão",$H$4=#REF!),BDI!$B$17,IF(AND(#REF!="Padrão",$H$4=#REF!),BDI!#REF!,IF(AND(#REF!="Diferenciado",$H$4=#REF!),BDI!$E$17,IF(AND(#REF!="Diferenciado",$H$4=#REF!),BDI!#REF!,IF(#REF!="ZERO",0))))),"") -> 
A57: SF-00052 | B57: Ensaio de ponto de ancoragem existente | C57: un | D57: 0 | G57: =IF(A57<>"",IF(AND(#REF!="Padrão",$H$4=#REF!),BDI!$B$17,IF(AND(#REF!="Padrão",$H$4=#REF!),BDI!#REF!,IF(AND(#REF!="Diferenciado",$H$4=#REF!),BDI!$E$17,IF(AND(#REF!="Diferenciado",$H$4=#REF!),BDI!#REF!,IF(#REF!="ZERO",0))))),"") -> 
A58: SF-00053 | B58: Escadas de acesso para andaime tubular | C58: m x mês | D58: 0 | G58: =IF(A58<>"",IF(AND(#REF!="Padrão",$H$4=#REF!),BDI!$B$17,IF(AND(#REF!="Padrão",$H$4=#REF!),BDI!#REF!,IF(AND(#REF!="Diferenciado",$H$4=#REF!),BDI!$E$17,IF(AND(#REF!="Diferenciado",$H$4=#REF!),BDI!#REF!,IF(#REF!="ZERO",0))))),"") -> 
A59: SF-00054 | B59: Esticador de cabo de aço | C59: un | D59: 0 | G59: =IF(A59<>"",IF(AND(#REF!="Padrão",$H$4=#REF!),BDI!$B$17,IF(AND(#REF!="Padrão",$H$4=#REF!),BDI!#REF!,IF(AND(#REF!="Diferenciado",$H$4=#REF!),BDI!$E$17,IF(AND(#REF!="Diferenciado",$H$4=#REF!),BDI!#REF!,IF(#REF!="ZERO",0))))),"") -> 
A60: SF-00055 | B60: Guarda-corpo com rodapé para andaime tubular | C60: m x mês | D60: 0 | G60: =IF(A60<>"",IF(AND(#REF!="Padrão",$H$4=#REF!),BDI!$B$17,IF(AND(#REF!="Padrão",$H$4=#REF!),BDI!#REF!,IF(AND(#REF!="Diferenciado",$H$4=#REF!),BDI!$E$17,IF(AND(#REF!="Diferenciado",$H$4=#REF!),BDI!#REF!,IF(#REF!="ZERO",0))))),"") -> 
A61: SF-00056 | B61: Indicador de tensão | C61: un | D61: 0 | G61: =IF(A61<>"",IF(AND(#REF!="Padrão",$H$4=#REF!),BDI!$B$17,IF(AND(#REF!="Padrão",$H$4=#REF!),BDI!#REF!,IF(AND(#REF!="Diferenciado",$H$4=#REF!),BDI!$E$17,IF(AND(#REF!="Diferenciado",$H$4=#REF!),BDI!#REF!,IF(#REF!="ZERO",0))))),"") -> 
A62: SF-00057 | B62: Isolamento de obra com tela plástica com malha de 5mm e estrutura de madeira pontaleteada | C62: m2 | D62: 0 | E62: =OFFSET(INDEX(Composições!A:J,MATCH(Orçamentária!A62,Composições!A:A,0),8),2,0) -> 28.18745 | F62: 0 | G62: =IF(A62<>"",IF(AND(#REF!="Padrão",$H$4=#REF!),BDI!$B$17,IF(AND(#REF!="Padrão",$H$4=#REF!),BDI!#REF!,IF(AND(#REF!="Diferenciado",$H$4=#REF!),BDI!$E$17,IF(AND(#REF!="Diferenciado",$H$4=#REF!),BDI!#REF!,IF(#REF!="ZERO",0))))),"") -> 
A63: SF-00058 | B63: Suporte intermediário curvo para linha de vida | C63: un | D63: 0 | G63: =IF(A63<>"",IF(AND(#REF!="Padrão",$H$4=#REF!),BDI!$B$17,IF(AND(#REF!="Padrão",$H$4=#REF!),BDI!#REF!,IF(AND(#REF!="Diferenciado",$H$4=#REF!),BDI!$E$17,IF(AND(#REF!="Diferenciado",$H$4=#REF!),BDI!#REF!,IF(#REF!="ZERO",0))))),"") -> 
A64: SF-00059 | B64: Kit de linha de vida para escada de marinheiro | C64: un | D64: 0 | G64: =IF(A64<>"",IF(AND(#REF!="Padrão",$H$4=#REF!),BDI!$B$17,IF(AND(#REF!="Padrão",$H$4=#REF!),BDI!#REF!,IF(AND(#REF!="Diferenciado",$H$4=#REF!),BDI!$E$17,IF(AND(#REF!="Diferenciado",$H$4=#REF!),BDI!#REF!,IF(#REF!="ZERO",0))))),"") -> 
A65: SF-00060 | B65: Kit para montagem de dois olhais | C65: un | D65: 0 | G65: =IF(A65<>"",IF(AND(#REF!="Padrão",$H$4=#REF!),BDI!$B$17,IF(AND(#REF!="Padrão",$H$4=#REF!),BDI!#REF!,IF(AND(#REF!="Diferenciado",$H$4=#REF!),BDI!$E$17,IF(AND(#REF!="Diferenciado",$H$4=#REF!),BDI!#REF!,IF(#REF!="ZERO",0))))),"") -> 
A66: SF-00061 | B66: Manilha com travamento por porca e cupilha | C66: un | D66: 0 | G66: =IF(A66<>"",IF(AND(#REF!="Padrão",$H$4=#REF!),BDI!$B$17,IF(AND(#REF!="Padrão",$H$4=#REF!),BDI!#REF!,IF(AND(#REF!="Diferenciado",$H$4=#REF!),BDI!$E$17,IF(AND(#REF!="Diferenciado",$H$4=#REF!),BDI!#REF!,IF(#REF!="ZERO",0))))),"") -> 
A67: SF-00062 | B67: Pilar de ancoragem para linha de vida | C67: un | D67: 0 | G67: =IF(A67<>"",IF(AND(#REF!="Padrão",$H$4=#REF!),BDI!$B$17,IF(AND(#REF!="Padrão",$H$4=#REF!),BDI!#REF!,IF(AND(#REF!="Diferenciado",$H$4=#REF!),BDI!$E$17,IF(AND(#REF!="Diferenciado",$H$4=#REF!),BDI!#REF!,IF(#REF!="ZERO",0))))),"") -> 
A68: SF-00063 | B68: Piso metálico para andaime tubular | C68: m2 x mês | D68: 0 | G68: =IF(A68<>"",IF(AND(#REF!="Padrão",$H$4=#REF!),BDI!$B$17,IF(AND(#REF!="Padrão",$H$4=#REF!),BDI!#REF!,IF(AND(#REF!="Diferenciado",$H$4=#REF!),BDI!$E$17,IF(AND(#REF!="Diferenciado",$H$4=#REF!),BDI!#REF!,IF(#REF!="ZERO",0))))),"") -> 
A69: SF-00064 | B69: Placa de ancoragem para extremidade | C69: un | D69: 0 | G69: =IF(A69<>"",IF(AND(#REF!="Padrão",$H$4=#REF!),BDI!$B$17,IF(AND(#REF!="Padrão",$H$4=#REF!),BDI!#REF!,IF(AND(#REF!="Diferenciado",$H$4=#REF!),BDI!$E$17,IF(AND(#REF!="Diferenciado",$H$4=#REF!),BDI!#REF!,IF(#REF!="ZERO",0))))),"") -> 
A70: SF-00065 | B70: Placa de ancoragem para montagem no pilar | C70: un | D70: 0 | G70: =IF(A70<>"",IF(AND(#REF!="Padrão",$H$4=#REF!),BDI!$B$17,IF(AND(#REF!="Padrão",$H$4=#REF!),BDI!#REF!,IF(AND(#REF!="Diferenciado",$H$4=#REF!),BDI!$E$17,IF(AND(#REF!="Diferenciado",$H$4=#REF!),BDI!#REF!,IF(#REF!="ZERO",0))))),"") -> 
A71: SF-00066 | B71: Ponto de ancoragem | C71: un | D71: 0 | F71: =IF(ISNUMBER(E71),D71*E71,"") ->  | G71: =IF(A71<>"",IF(AND(#REF!="Padrão",$H$4=#REF!),BDI!$B$17,IF(AND(#REF!="Padrão",$H$4=#REF!),BDI!#REF!,IF(AND(#REF!="Diferenciado",$H$4=#REF!),BDI!$E$17,IF(AND(#REF!="Diferenciado",$H$4=#REF!),BDI!#REF!,IF(#REF!="ZERO",0))))),"") ->  | H71: =IF(ISNUMBER(E71),ROUND(E71*(1+G71),2),"") ->  | I71: =IF(ISNUMBER(E71),ROUND(H71*D71,2),"") -> 
A72: SF-00067 | B72: Sapatas e rodízios para andaime tubular | C72: conj x mês | D72: 0 | G72: =IF(A72<>"",IF(AND(#REF!="Padrão",$H$4=#REF!),BDI!$B$17,IF(AND(#REF!="Padrão",$H$4=#REF!),BDI!#REF!,IF(AND(#REF!="Diferenciado",$H$4=#REF!),BDI!$E$17,IF(AND(#REF!="Diferenciado",$H$4=#REF!),BDI!#REF!,IF(#REF!="ZERO",0))))),"") -> 
A73: SF-00068 | B73: Sistema Guarda-corpo-Rodapé (GcR) metálico | C73: m x mês | D73: 0 | G73: =IF(A73<>"",IF(AND(#REF!="Padrão",$H$4=#REF!),BDI!$B$17,IF(AND(#REF!="Padrão",$H$4=#REF!),BDI!#REF!,IF(AND(#REF!="Diferenciado",$H$4=#REF!),BDI!$E$17,IF(AND(#REF!="Diferenciado",$H$4=#REF!),BDI!#REF!,IF(#REF!="ZERO",0))))),"") -> 
A74: SF-00069 | B74: Suporte intermediário reto para linha de vida | C74: un | D74: 0 | G74: =IF(A74<>"",IF(AND(#REF!="Padrão",$H$4=#REF!),BDI!$B$17,IF(AND(#REF!="Padrão",$H$4=#REF!),BDI!#REF!,IF(AND(#REF!="Diferenciado",$H$4=#REF!),BDI!$E$17,IF(AND(#REF!="Diferenciado",$H$4=#REF!),BDI!#REF!,IF(#REF!="ZERO",0))))),"") -> 
A75: SF-00070 | B75: Tapume | C75: m2 | D75: 93 | E75: =OFFSET(INDEX(Composições!A:J,MATCH(Orçamentária!A75,Composições!A:A,0),8),2,0) -> 110.654062 | F75: 10290.82777 | G75: =BDI!$B$17 -> 0.191 | H75: 131.79 | I75: 12256.47
A76: SF-00071 | B76: Trole para linha de vida horizontal | C76: un | D76: 0 | G76: =IF(A76<>"",IF(AND(#REF!="Padrão",$H$4=#REF!),BDI!$B$17,IF(AND(#REF!="Padrão",$H$4=#REF!),BDI!#REF!,IF(AND(#REF!="Diferenciado",$H$4=#REF!),BDI!$E$17,IF(AND(#REF!="Diferenciado",$H$4=#REF!),BDI!#REF!,IF(#REF!="ZERO",0))))),"") -> 
A77: SF-00072 | B77: Trole para travaqueda retrátil | C77: un | D77: 0 | G77: =IF(A77<>"",IF(AND(#REF!="Padrão",$H$4=#REF!),BDI!$B$17,IF(AND(#REF!="Padrão",$H$4=#REF!),BDI!#REF!,IF(AND(#REF!="Diferenciado",$H$4=#REF!),BDI!$E$17,IF(AND(#REF!="Diferenciado",$H$4=#REF!),BDI!#REF!,IF(#REF!="ZERO",0))))),"") -> 
A78: SF-00073 | B78: Limpeza final | C78: m2 | D78: 124 | E78: =OFFSET(INDEX(Composições!A:J,MATCH(Orçamentária!A78,Composições!A:A,0),8),2,0) -> 2.467511 | F78: 305.971364 | G78: =BDI!$B$17 -> 0.191 | H78: 2.94 | I78: 364.56
A79: SF-00074 | B79: Abertura/fechamento rasgo em alvenaria | C79: m | D79: 0 | E79: =OFFSET(INDEX(Composições!A:J,MATCH(Orçamentária!A79,Composições!A:A,0),8),2,0) -> 20.42927894 | F79: 0 | G79: =IF(A79<>"",IF(AND(#REF!="Padrão",$H$4=#REF!),BDI!$B$17,IF(AND(#REF!="Padrão",$H$4=#REF!),BDI!#REF!,IF(AND(#REF!="Diferenciado",$H$4=#REF!),BDI!$E$17,IF(AND(#REF!="Diferenciado",$H$4=#REF!),BDI!#REF!,IF(#REF!="ZERO",0))))),"") -> 
A80: SF-00075 | B80: Furo em concreto de 40mm até 75mm de diâmetro | C80: un | D80: 0 | E80: =OFFSET(INDEX(Composições!A:J,MATCH(Orçamentária!A80,Composições!A:A,0),8),2,0) -> 99.9398385 | F80: 0 | G80: =IF(A80<>"",IF(AND(#REF!="Padrão",$H$4=#REF!),BDI!$B$17,IF(AND(#REF!="Padrão",$H$4=#REF!),BDI!#REF!,IF(AND(#REF!="Diferenciado",$H$4=#REF!),BDI!$E$17,IF(AND(#REF!="Diferenciado",$H$4=#REF!),BDI!#REF!,IF(#REF!="ZERO",0))))),"") -> 
A81: SF-00076 | B81: Furo em concreto para diâmetros maiores que 75mm | C81: un | D81: 0 | E81: =OFFSET(INDEX(Composições!A:J,MATCH(Orçamentária!A81,Composições!A:A,0),8),2,0) -> 127.644888 | F81: 0 | G81: =IF(A81<>"",IF(AND(#REF!="Padrão",$H$4=#REF!),BDI!$B$17,IF(AND(#REF!="Padrão",$H$4=#REF!),BDI!#REF!,IF(AND(#REF!="Diferenciado",$H$4=#REF!),BDI!$E$17,IF(AND(#REF!="Diferenciado",$H$4=#REF!),BDI!#REF!,IF(#REF!="ZERO",0))))),"") -> 
A82: SF-00077 | B82: Concreto virado em betoneira, fck = 15 MPa | C82: m3 | D82: 0 | E82: =OFFSET(INDEX(Composições!A:J,MATCH(Orçamentária!A82,Composições!A:A,0),8),2,0) -> 872.3914233 | F82: 0 | G82: =IF(A82<>"",IF(AND(#REF!="Padrão",$H$4=#REF!),BDI!$B$17,IF(AND(#REF!="Padrão",$H$4=#REF!),BDI!#REF!,IF(AND(#REF!="Diferenciado",$H$4=#REF!),BDI!$E$17,IF(AND(#REF!="Diferenciado",$H$4=#REF!),BDI!#REF!,IF(#REF!="ZERO",0))))),"") -> 
A83: SF-00078 | B83: Concreto virado em betoneira, fck = 25MPa | C83: m3 | D83: 0 | E83: =OFFSET(INDEX(Composições!A:J,MATCH(Orçamentária!A83,Composições!A:A,0),8),2,0) -> 911.3395695 | F83: 0 | G83: =IF(A83<>"",IF(AND(#REF!="Padrão",$H$4=#REF!),BDI!$B$17,IF(AND(#REF!="Padrão",$H$4=#REF!),BDI!#REF!,IF(AND(#REF!="Diferenciado",$H$4=#REF!),BDI!$E$17,IF(AND(#REF!="Diferenciado",$H$4=#REF!),BDI!#REF!,IF(#REF!="ZERO",0))))),"") -> 
A84: SF-00079 | B84: Escoramento metálico | C84: m2 x mês | D84: 0 | E84: =OFFSET(INDEX(Composições!A:J,MATCH(Orçamentária!A84,Composições!A:A,0),8),2,0) -> 20.6302 | F84: 0 | G84: =IF(A84<>"",IF(AND(#REF!="Padrão",$H$4=#REF!),BDI!$B$17,IF(AND(#REF!="Padrão",$H$4=#REF!),BDI!#REF!,IF(AND(#REF!="Diferenciado",$H$4=#REF!),BDI!$E$17,IF(AND(#REF!="Diferenciado",$H$4=#REF!),BDI!#REF!,IF(#REF!="ZERO",0))))),"") -> 
A85: SF-00080 | B85: Estrutura metálica em aço | C85: kg | D85: 0 | E85: =OFFSET(INDEX(Composições!A:J,MATCH(Orçamentária!A85,Composições!A:A,0),8),2,0) -> 15.36853 | F85: 0 | G85: =IF(A85<>"",IF(AND(#REF!="Padrão",$H$4=#REF!),BDI!$B$17,IF(AND(#REF!="Padrão",$H$4=#REF!),BDI!#REF!,IF(AND(#REF!="Diferenciado",$H$4=#REF!),BDI!$E$17,IF(AND(#REF!="Diferenciado",$H$4=#REF!),BDI!#REF!,IF(#REF!="ZERO",0))))),"") -> 
A86: SF-00081 | B86: Forma para estruturas de concreto | C86: m2 | D86: 0 | E86: =OFFSET(INDEX(Composições!A:J,MATCH(Orçamentária!A86,Composições!A:A,0),8),2,0) -> 196.5507764 | F86: 0 | G86: =IF(A86<>"",IF(AND(#REF!="Padrão",$H$4=#REF!),BDI!$B$17,IF(AND(#REF!="Padrão",$H$4=#REF!),BDI!#REF!,IF(AND(#REF!="Diferenciado",$H$4=#REF!),BDI!$E$17,IF(AND(#REF!="Diferenciado",$H$4=#REF!),BDI!#REF!,IF(#REF!="ZERO",0))))),"") -> 
A87: SF-00082 | B87: Verga/contraverga/cinta em bloco de concreto canaleta 11,5 x 19 x 39 cm | C87: m | D87: 0 | E87: =OFFSET(INDEX(Composições!A:J,MATCH(Orçamentária!A87,Composições!A:A,0),8),2,0) -> 27.12185242 | F87: 0 | G87: =IF(A87<>"",IF(AND(#REF!="Padrão",$H$4=#REF!),BDI!$B$17,IF(AND(#REF!="Padrão",$H$4=#REF!),BDI!#REF!,IF(AND(#REF!="Diferenciado",$H$4=#REF!),BDI!$E$17,IF(AND(#REF!="Diferenciado",$H$4=#REF!),BDI!#REF!,IF(#REF!="ZERO",0))))),"") -> 
A88: SF-00083 | B88: Impermeabilização de superfície com revestimento bicomponente semi flexível | C88: m2 | D88: 22 | E88: =OFFSET(INDEX(Composições!A:J,MATCH(Orçamentária!A88,Composições!A:A,0),8),2,0) -> 29.00293 | F88: 638.06446 | G88: =BDI!$B$17 -> 0.191 | H88: 34.54 | I88: 759.88
A89: SF-00084 | B89: Alvenaria de vedação | C89: m2 | D89: 43 | E89: =OFFSET(INDEX(Composições!A:J,MATCH(Orçamentária!A89,Composições!A:A,0),8),2,0) -> 89.28412972 | F89: 3839.217578 | G89: =BDI!$B$17 -> 0.191 | H89: 106.34 | I89: 4572.62
A90: SF-00085 | B90: Fechamento ou shaft em gesso acartonado tipo drywall | C90: m2 | D90: 0 | E90: =OFFSET(INDEX(Composições!A:J,MATCH(Orçamentária!A90,Composições!A:A,0),8),2,0) -> 59.6421894 | F90: 0 | G90: =IF(A90<>"",IF(AND(#REF!="Padrão",$H$4=#REF!),BDI!$B$17,IF(AND(#REF!="Padrão",$H$4=#REF!),BDI!#REF!,IF(AND(#REF!="Diferenciado",$H$4=#REF!),BDI!$E$17,IF(AND(#REF!="Diferenciado",$H$4=#REF!),BDI!#REF!,IF(#REF!="ZERO",0))))),"") -> 
A91: SF-00086 | B91: Fixação (encunhamento) de Alvenaria de Vedação | C91: m | D91: 0 | E91: =OFFSET(INDEX(Composições!A:J,MATCH(Orçamentária!A91,Composições!A:A,0),8),2,0) -> 27.32468602 | F91: 0 | G91: =IF(A91<>"",IF(AND(#REF!="Padrão",$H$4=#REF!),BDI!$B$17,IF(AND(#REF!="Padrão",$H$4=#REF!),BDI!#REF!,IF(AND(#REF!="Diferenciado",$H$4=#REF!),BDI!$E$17,IF(AND(#REF!="Diferenciado",$H$4=#REF!),BDI!#REF!,IF(#REF!="ZERO",0))))),"") -> 
A92: SF-00087 | B92: Parede em gesso acartonado (drywall) | C92: m2 | D92: 0 | E92: =OFFSET(INDEX(Composições!A:J,MATCH(Orçamentária!A92,Composições!A:A,0),8),2,0) -> 86.7717156 | F92: 0 | G92: =IF(A92<>"",IF(AND(#REF!="Padrão",$H$4=#REF!),BDI!$B$17,IF(AND(#REF!="Padrão",$H$4=#REF!),BDI!#REF!,IF(AND(#REF!="Diferenciado",$H$4=#REF!),BDI!$E$17,IF(AND(#REF!="Diferenciado",$H$4=#REF!),BDI!#REF!,IF(#REF!="ZERO",0))))),"") -> 
A93: SF-00088 | B93: Reparos superficiais em painéis de gesso acartonado | C93: m2 | D93: 0 | E93: =OFFSET(INDEX(Composições!A:J,MATCH(Orçamentária!A93,Composições!A:A,0),8),2,0) -> 5.8025145 | F93: 0 | G93: =IF(A93<>"",IF(AND(#REF!="Padrão",$H$4=#REF!),BDI!$B$17,IF(AND(#REF!="Padrão",$H$4=#REF!),BDI!#REF!,IF(AND(#REF!="Diferenciado",$H$4=#REF!),BDI!$E$17,IF(AND(#REF!="Diferenciado",$H$4=#REF!),BDI!#REF!,IF(#REF!="ZERO",0))))),"") -> 
A94: SF-00089 | B94: Sóculo h=10 cm | C94: m2 | D94: 0 | E94: =OFFSET(INDEX(Composições!A:J,MATCH(Orçamentária!A94,Composições!A:A,0),8),2,0) -> 88.74083175 | F94: 0 | G94: =IF(A94<>"",IF(AND(#REF!="Padrão",$H$4=#REF!),BDI!$B$17,IF(AND(#REF!="Padrão",$H$4=#REF!),BDI!#REF!,IF(AND(#REF!="Diferenciado",$H$4=#REF!),BDI!$E$17,IF(AND(#REF!="Diferenciado",$H$4=#REF!),BDI!#REF!,IF(#REF!="ZERO",0))))),"") -> 
A95: SF-00090 | B95: Chapisco colante industrializado em vigas e pilares | C95: m2 | D95: 0 | E95: =OFFSET(INDEX(Composições!A:J,MATCH(Orçamentária!A95,Composições!A:A,0),8),2,0) -> 18.88941818 | F95: 0 | G95: =IF(A95<>"",IF(AND(#REF!="Padrão",$H$4=#REF!),BDI!$B$17,IF(AND(#REF!="Padrão",$H$4=#REF!),BDI!#REF!,IF(AND(#REF!="Diferenciado",$H$4=#REF!),BDI!$E$17,IF(AND(#REF!="Diferenciado",$H$4=#REF!),BDI!#REF!,IF(#REF!="ZERO",0))))),"") -> 
A96: SF-00091 | B96: Chapisco com argamassa traço 1:3 | C96: m2 | D96: 69 | E96: =OFFSET(INDEX(Composições!A:J,MATCH(Orçamentária!A96,Composições!A:A,0),8),2,0) -> 5.096425147 | F96: 351.6533351 | G96: =BDI!$B$17 -> 0.191 | H96: 6.07 | I96: 418.83
A97: SF-00092 | B97: Gesso cola | C97: m2 | D97: 0 | E97: =OFFSET(INDEX(Composições!A:J,MATCH(Orçamentária!A97,Composições!A:A,0),8),2,0) -> 12.40624 | F97: 0 | G97: =IF(A97<>"",IF(AND(#REF!="Padrão",$H$4=#REF!),BDI!$B$17,IF(AND(#REF!="Padrão",$H$4=#REF!),BDI!#REF!,IF(AND(#REF!="Diferenciado",$H$4=#REF!),BDI!$E$17,IF(AND(#REF!="Diferenciado",$H$4=#REF!),BDI!#REF!,IF(#REF!="ZERO",0))))),"") -> 
A98: SF-00093 | B98: Reboco com argamassa industrializada e=2,0 cm | C98: m2 | D98: 69 | E98: =OFFSET(INDEX(Composições!A:J,MATCH(Orçamentária!A98,Composições!A:A,0),8),2,0) -> 43.3089249 | F98: 2988.315818 | G98: =BDI!$B$17 -> 0.191 | H98: 51.58 | I98: 3559.02
A99: SF-00094 | B99: Regularização com argamassa industrializada e=0,5 cm | C99: m2 | D99: 0 | E99: =OFFSET(INDEX(Composições!A:J,MATCH(Orçamentária!A99,Composições!A:A,0),8),2,0) -> 14.61639362 | F99: 0 | G99: =IF(A99<>"",IF(AND(#REF!="Padrão",$H$4=#REF!),BDI!$B$17,IF(AND(#REF!="Padrão",$H$4=#REF!),BDI!#REF!,IF(AND(#REF!="Diferenciado",$H$4=#REF!),BDI!$E$17,IF(AND(#REF!="Diferenciado",$H$4=#REF!),BDI!#REF!,IF(#REF!="ZERO",0))))),"") -> 
A100: SF-00095 | B100: Tratamento de trincas superficiais | C100: m | D100: 0 | E100: =OFFSET(INDEX(Composições!A:J,MATCH(Orçamentária!A100,Composições!A:A,0),8),2,0) -> 16.8379729 | F100: 0 | G100: =IF(A100<>"",IF(AND(#REF!="Padrão",$H$4=#REF!),BDI!$B$17,IF(AND(#REF!="Padrão",$H$4=#REF!),BDI!#REF!,IF(AND(#REF!="Diferenciado",$H$4=#REF!),BDI!$E$17,IF(AND(#REF!="Diferenciado",$H$4=#REF!),BDI!#REF!,IF(#REF!="ZERO",0))))),"") -> 
A101: SF-00096 | B101: Aplicação de fundo selador base água | C101: m2 | D101: 0 | E101: =OFFSET(INDEX(Composições!A:J,MATCH(Orçamentária!A101,Composições!A:A,0),8),2,0) -> 3.5479555 | F101: 0 | G101: =IF(A101<>"",IF(AND(#REF!="Padrão",$H$4=#REF!),BDI!$B$17,IF(AND(#REF!="Padrão",$H$4=#REF!),BDI!#REF!,IF(AND(#REF!="Diferenciado",$H$4=#REF!),BDI!$E$17,IF(AND(#REF!="Diferenciado",$H$4=#REF!),BDI!#REF!,IF(#REF!="ZERO",0))))),"") -> 
A102: SF-00097 | B102: Fundo anticorrosivo e de aderência | C102: m2 | D102: 0 | E102: =OFFSET(INDEX(Composições!A:J,MATCH(Orçamentária!A102,Composições!A:A,0),8),2,0) -> 12.1717211 | F102: 0 | G102: =IF(A102<>"",IF(AND(#REF!="Padrão",$H$4=#REF!),BDI!$B$17,IF(AND(#REF!="Padrão",$H$4=#REF!),BDI!#REF!,IF(AND(#REF!="Diferenciado",$H$4=#REF!),BDI!$E$17,IF(AND(#REF!="Diferenciado",$H$4=#REF!),BDI!#REF!,IF(#REF!="ZERO",0))))),"") -> 
A103: SF-00098 | B103: Massa acrílica | C103: m2 | D103: 0 | E103: =OFFSET(INDEX(Composições!A:J,MATCH(Orçamentária!A103,Composições!A:A,0),8),2,0) -> 21.59730798 | F103: 0 | G103: =IF(A103<>"",IF(AND(#REF!="Padrão",$H$4=#REF!),BDI!$B$17,IF(AND(#REF!="Padrão",$H$4=#REF!),BDI!#REF!,IF(AND(#REF!="Diferenciado",$H$4=#REF!),BDI!$E$17,IF(AND(#REF!="Diferenciado",$H$4=#REF!),BDI!#REF!,IF(#REF!="ZERO",0))))),"") -> 
A104: SF-00099 | B104: Massa corrida | C104: m2 | D104: 253 | E104: =OFFSET(INDEX(Composições!A:J,MATCH(Orçamentária!A104,Composições!A:A,0),8),2,0) -> 17.0281401 | F104: 4308.119445 | G104: =BDI!$B$17 -> 0.191 | H104: 20.28 | I104: 5130.84
A105: SF-00100 | B105: Pintura com tinta látex acrílica Premium (paredes) | C105: m2 | D105: 97 | E105: =OFFSET(INDEX(Composições!A:J,MATCH(Orçamentária!A105,Composições!A:A,0),8),2,0) -> 15.641731 | F105: 1517.247907 | G105: =BDI!$B$17 -> 0.191 | H105: 18.63 | I105: 1807.11
A106: SF-00101 | B106: Pintura em verniz sintético | C106: m2 | D106: 0 | E106: =OFFSET(INDEX(Composições!A:J,MATCH(Orçamentária!A106,Composições!A:A,0),8),2,0) -> 24.0856382 | F106: 0 | G106: =IF(A106<>"",IF(AND(#REF!="Padrão",$H$4=#REF!),BDI!$B$17,IF(AND(#REF!="Padrão",$H$4=#REF!),BDI!#REF!,IF(AND(#REF!="Diferenciado",$H$4=#REF!),BDI!$E$17,IF(AND(#REF!="Diferenciado",$H$4=#REF!),BDI!#REF!,IF(#REF!="ZERO",0))))),"") -> 
A107: SF-00102 | B107: Pintura esmalte acetinado (metais e madeiras) | C107: m2 | D107: 0 | E107: =OFFSET(INDEX(Composições!A:J,MATCH(Orçamentária!A107,Composições!A:A,0),8),2,0) -> 24.7903706 | F107: 0 | G107: =IF(A107<>"",IF(AND(#REF!="Padrão",$H$4=#REF!),BDI!$B$17,IF(AND(#REF!="Padrão",$H$4=#REF!),BDI!#REF!,IF(AND(#REF!="Diferenciado",$H$4=#REF!),BDI!$E$17,IF(AND(#REF!="Diferenciado",$H$4=#REF!),BDI!#REF!,IF(#REF!="ZERO",0))))),"") -> 
A108: SF-00103 | B108: Pintura tinta látex acrílica standard (tetos) | C108: m2 | D108: 157 | E108: =OFFSET(INDEX(Composições!A:J,MATCH(Orçamentária!A108,Composições!A:A,0),8),2,0) -> 17.6604525 | F108: 2772.691042 | G108: =BDI!$B$17 -> 0.191 | H108: 21.03 | I108: 3301.71
A109: SF-00104 | B109: Cerâmica para revestimento de superfícies internas ou externas – Linha Administrativa | C109: m2 | D109: 0 | E109: =OFFSET(INDEX(Composições!A:J,MATCH(Orçamentária!A109,Composições!A:A,0),8),2,0) -> 77.30549 | F109: 0 | G109: =IF(A109<>"",IF(AND(#REF!="Padrão",$H$4=#REF!),BDI!$B$17,IF(AND(#REF!="Padrão",$H$4=#REF!),BDI!#REF!,IF(AND(#REF!="Diferenciado",$H$4=#REF!),BDI!$E$17,IF(AND(#REF!="Diferenciado",$H$4=#REF!),BDI!#REF!,IF(#REF!="ZERO",0))))),"") -> 
A110: SF-00105 | B110: Contrapiso em argamassa | C110: m2 | D110: 0 | E110: =OFFSET(INDEX(Composições!A:J,MATCH(Orçamentária!A110,Composições!A:A,0),8),2,0) -> 59.62616947 | F110: 0 | G110: =IF(A110<>"",IF(AND(#REF!="Padrão",$H$4=#REF!),BDI!$B$17,IF(AND(#REF!="Padrão",$H$4=#REF!),BDI!#REF!,IF(AND(#REF!="Diferenciado",$H$4=#REF!),BDI!$E$17,IF(AND(#REF!="Diferenciado",$H$4=#REF!),BDI!#REF!,IF(#REF!="ZERO",0))))),"") -> 
A111: SF-00106 | B111: Contrapiso em argamassa (e=2cm) ou Regularização de contrapiso existente | C111: m2 | D111: 18 | E111: =OFFSET(INDEX(Composições!A:J,MATCH(Orçamentária!A111,Composições!A:A,0),8),2,0) -> 38.4892571 | F111: 692.8066278 | G111: =BDI!$B$17 -> 0.191 | H111: 45.84 | I111: 825.12
A112: SF-00107 | B112: Granito cinza andorinha para piso | C112: m2 | D112: 0 | E112: =OFFSET(INDEX(Composições!A:J,MATCH(Orçamentária!A112,Composições!A:A,0),8),2,0) -> 271.973023 | F112: 0 | G112: =IF(A112<>"",IF(AND(#REF!="Padrão",$H$4=#REF!),BDI!$B$17,IF(AND(#REF!="Padrão",$H$4=#REF!),BDI!#REF!,IF(AND(#REF!="Diferenciado",$H$4=#REF!),BDI!$E$17,IF(AND(#REF!="Diferenciado",$H$4=#REF!),BDI!#REF!,IF(#REF!="ZERO",0))))),"") -> 
A113: SF-00108 | B113: Granito Cinza Andorinha para rodapé | C113: m2 | D113: 0 | E113: =OFFSET(INDEX(Composições!A:J,MATCH(Orçamentária!A113,Composições!A:A,0),8),2,0) -> 251.482888 | F113: 0 | G113: =IF(A113<>"",IF(AND(#REF!="Padrão",$H$4=#REF!),BDI!$B$17,IF(AND(#REF!="Padrão",$H$4=#REF!),BDI!#REF!,IF(AND(#REF!="Diferenciado",$H$4=#REF!),BDI!$E$17,IF(AND(#REF!="Diferenciado",$H$4=#REF!),BDI!#REF!,IF(#REF!="ZERO",0))))),"") -> 
A114: SF-00109 | B114: Granito Cinza Andorinha para soleira e peitoril | C114: m2 | D114: 0 | E114: =OFFSET(INDEX(Composições!A:J,MATCH(Orçamentária!A114,Composições!A:A,0),8),2,0) -> 180.4391879 | F114: 0 | G114: =IF(A114<>"",IF(AND(#REF!="Padrão",$H$4=#REF!),BDI!$B$17,IF(AND(#REF!="Padrão",$H$4=#REF!),BDI!#REF!,IF(AND(#REF!="Diferenciado",$H$4=#REF!),BDI!$E$17,IF(AND(#REF!="Diferenciado",$H$4=#REF!),BDI!#REF!,IF(#REF!="ZERO",0))))),"") -> 
A115: SF-00110 | B115: Granito Preto São Gabriel para piso | C115: m2 | D115: 0 | E115: =OFFSET(INDEX(Composições!A:J,MATCH(Orçamentária!A115,Composições!A:A,0),8),2,0) -> 65.817823 | F115: 0 | G115: =IF(A115<>"",IF(AND(#REF!="Padrão",$H$4=#REF!),BDI!$B$17,IF(AND(#REF!="Padrão",$H$4=#REF!),BDI!#REF!,IF(AND(#REF!="Diferenciado",$H$4=#REF!),BDI!$E$17,IF(AND(#REF!="Diferenciado",$H$4=#REF!),BDI!#REF!,IF(#REF!="ZERO",0))))),"") -> 
A116: SF-00111 | B116: Granito Preto São Gabriel para rodapé | C116: m2 | D116: 0 | E116: =OFFSET(INDEX(Composições!A:J,MATCH(Orçamentária!A116,Composições!A:A,0),8),2,0) -> 1825.477752 | F116: 0 | G116: =IF(A116<>"",IF(AND(#REF!="Padrão",$H$4=#REF!),BDI!$B$17,IF(AND(#REF!="Padrão",$H$4=#REF!),BDI!#REF!,IF(AND(#REF!="Diferenciado",$H$4=#REF!),BDI!$E$17,IF(AND(#REF!="Diferenciado",$H$4=#REF!),BDI!#REF!,IF(#REF!="ZERO",0))))),"") -> 
A117: SF-00112 | B117: Granito Preto São Gabriel para soleira e peitoril | C117: m2 | D117: 0 | E117: =OFFSET(INDEX(Composições!A:J,MATCH(Orçamentária!A117,Composições!A:A,0),8),2,0) -> 233.9061219 | F117: 0 | G117: =IF(A117<>"",IF(AND(#REF!="Padrão",$H$4=#REF!),BDI!$B$17,IF(AND(#REF!="Padrão",$H$4=#REF!),BDI!#REF!,IF(AND(#REF!="Diferenciado",$H$4=#REF!),BDI!$E$17,IF(AND(#REF!="Diferenciado",$H$4=#REF!),BDI!#REF!,IF(#REF!="ZERO",0))))),"") -> 
A118: SF-00113 | B118: Instalação de rodapé de madeira reaproveitado | C118: m | D118: 0 | E118: =OFFSET(INDEX(Composições!A:J,MATCH(Orçamentária!A118,Composições!A:A,0),8),2,0) -> 14.5644861 | F118: 0 | G118: =IF(A118<>"",IF(AND(#REF!="Padrão",$H$4=#REF!),BDI!$B$17,IF(AND(#REF!="Padrão",$H$4=#REF!),BDI!#REF!,IF(AND(#REF!="Diferenciado",$H$4=#REF!),BDI!$E$17,IF(AND(#REF!="Diferenciado",$H$4=#REF!),BDI!#REF!,IF(#REF!="ZERO",0))))),"") -> 
A119: SF-00114 | B119: Mármore Bege Bahia para piso e parede | C119: m2 | D119: 0 | E119: =OFFSET(INDEX(Composições!A:J,MATCH(Orçamentária!A119,Composições!A:A,0),8),2,0) -> 61.583823 | F119: 0 | G119: =IF(A119<>"",IF(AND(#REF!="Padrão",$H$4=#REF!),BDI!$B$17,IF(AND(#REF!="Padrão",$H$4=#REF!),BDI!#REF!,IF(AND(#REF!="Diferenciado",$H$4=#REF!),BDI!$E$17,IF(AND(#REF!="Diferenciado",$H$4=#REF!),BDI!#REF!,IF(#REF!="ZERO",0))))),"") -> 
A120: SF-00115 | B120: Mármore Branco Especial para piso e parede | C120: m2 | D120: 0 | E120: =OFFSET(INDEX(Composições!A:J,MATCH(Orçamentária!A120,Composições!A:A,0),8),2,0) -> 63.695023 | F120: 0 | G120: =IF(A120<>"",IF(AND(#REF!="Padrão",$H$4=#REF!),BDI!$B$17,IF(AND(#REF!="Padrão",$H$4=#REF!),BDI!#REF!,IF(AND(#REF!="Diferenciado",$H$4=#REF!),BDI!$E$17,IF(AND(#REF!="Diferenciado",$H$4=#REF!),BDI!#REF!,IF(#REF!="ZERO",0))))),"") -> 
A121: SF-00116 | B121: Rodapé de madeira | C121: m | D121: 0 | E121: =OFFSET(INDEX(Composições!A:J,MATCH(Orçamentária!A121,Composições!A:A,0),8),2,0) -> 32.3121486 | F121: 0 | G121: =IF(A121<>"",IF(AND(#REF!="Padrão",$H$4=#REF!),BDI!$B$17,IF(AND(#REF!="Padrão",$H$4=#REF!),BDI!#REF!,IF(AND(#REF!="Diferenciado",$H$4=#REF!),BDI!$E$17,IF(AND(#REF!="Diferenciado",$H$4=#REF!),BDI!#REF!,IF(#REF!="ZERO",0))))),"") -> 
A122: SF-00117 | B122: Acabamento abaulado em placas de granito ou mármore reaproveitadas | C122: m | D122: 0 | E122: =OFFSET(INDEX(Composições!A:J,MATCH(Orçamentária!A122,Composições!A:A,0),8),2,0) -> 54.074 | F122: 0 | G122: =IF(A122<>"",IF(AND(#REF!="Padrão",$H$4=#REF!),BDI!$B$17,IF(AND(#REF!="Padrão",$H$4=#REF!),BDI!#REF!,IF(AND(#REF!="Diferenciado",$H$4=#REF!),BDI!$E$17,IF(AND(#REF!="Diferenciado",$H$4=#REF!),BDI!#REF!,IF(#REF!="ZERO",0))))),"") -> 
A123: SF-00118 | B123: Acabamento em meia esquadria em placas de granito ou mármore reaproveitadas | C123: m | D123: 0 | E123: =OFFSET(INDEX(Composições!A:J,MATCH(Orçamentária!A123,Composições!A:A,0),8),2,0) -> 47.31475 | F123: 0 | G123: =IF(A123<>"",IF(AND(#REF!="Padrão",$H$4=#REF!),BDI!$B$17,IF(AND(#REF!="Padrão",$H$4=#REF!),BDI!#REF!,IF(AND(#REF!="Diferenciado",$H$4=#REF!),BDI!$E$17,IF(AND(#REF!="Diferenciado",$H$4=#REF!),BDI!#REF!,IF(#REF!="ZERO",0))))),"") -> 
A124: SF-00119 | B124: Acabamento reto em placas de granito ou mármore reaproveitadas | C124: m | D124: 0 | E124: =OFFSET(INDEX(Composições!A:J,MATCH(Orçamentária!A124,Composições!A:A,0),8),2,0) -> 27.037 | F124: 0 | G124: =IF(A124<>"",IF(AND(#REF!="Padrão",$H$4=#REF!),BDI!$B$17,IF(AND(#REF!="Padrão",$H$4=#REF!),BDI!#REF!,IF(AND(#REF!="Diferenciado",$H$4=#REF!),BDI!$E$17,IF(AND(#REF!="Diferenciado",$H$4=#REF!),BDI!#REF!,IF(#REF!="ZERO",0))))),"") -> 
A125: SF-00120 | B125: Corte de peça de granito ou mármore reaproveitada | C125: m | D125: 0 | E125: =OFFSET(INDEX(Composições!A:J,MATCH(Orçamentária!A125,Composições!A:A,0),8),2,0) -> 33.79625 | F125: 0 | G125: =IF(A125<>"",IF(AND(#REF!="Padrão",$H$4=#REF!),BDI!$B$17,IF(AND(#REF!="Padrão",$H$4=#REF!),BDI!#REF!,IF(AND(#REF!="Diferenciado",$H$4=#REF!),BDI!$E$17,IF(AND(#REF!="Diferenciado",$H$4=#REF!),BDI!#REF!,IF(#REF!="ZERO",0))))),"") -> 
A126: SF-00121 | B126: Corte em placas de granito ou mármore reaproveitadas, para instalação de cubas | C126: un | D126: 0 | E126: =OFFSET(INDEX(Composições!A:J,MATCH(Orçamentária!A126,Composições!A:A,0),8),2,0) -> 119.339 | F126: 0 | G126: =IF(A126<>"",IF(AND(#REF!="Padrão",$H$4=#REF!),BDI!$B$17,IF(AND(#REF!="Padrão",$H$4=#REF!),BDI!#REF!,IF(AND(#REF!="Diferenciado",$H$4=#REF!),BDI!$E$17,IF(AND(#REF!="Diferenciado",$H$4=#REF!),BDI!#REF!,IF(#REF!="ZERO",0))))),"") -> 
A127: SF-00122 | B127: Furo em placas de granito ou mármore reaproveitadas, para instalação de torneira ou misturador | C127: un | D127: 0 | E127: =OFFSET(INDEX(Composições!A:J,MATCH(Orçamentária!A127,Composições!A:A,0),8),2,0) -> 17.898 | F127: 0 | G127: =IF(A127<>"",IF(AND(#REF!="Padrão",$H$4=#REF!),BDI!$B$17,IF(AND(#REF!="Padrão",$H$4=#REF!),BDI!#REF!,IF(AND(#REF!="Diferenciado",$H$4=#REF!),BDI!$E$17,IF(AND(#REF!="Diferenciado",$H$4=#REF!),BDI!#REF!,IF(#REF!="ZERO",0))))),"") -> 
A128: SF-00123 | B128: Granito Cinza Andorinha 20mm para rodabancada | C128: m2 | D128: 0 | E128: =OFFSET(INDEX(Composições!A:J,MATCH(Orçamentária!A128,Composições!A:A,0),8),2,0) -> 38151.34212 | F128: 0 | G128: =IF(A128<>"",IF(AND(#REF!="Padrão",$H$4=#REF!),BDI!$B$17,IF(AND(#REF!="Padrão",$H$4=#REF!),BDI!#REF!,IF(AND(#REF!="Diferenciado",$H$4=#REF!),BDI!$E$17,IF(AND(#REF!="Diferenciado",$H$4=#REF!),BDI!#REF!,IF(#REF!="ZERO",0))))),"") -> 
A129: SF-00124 | B129: Granito Cinza Andorinha 20mm para bancadas | C129: m2 | D129: 0 | E129: =OFFSET(INDEX(Composições!A:J,MATCH(Orçamentária!A129,Composições!A:A,0),8),2,0) -> 173.8234097 | F129: 0 | G129: =IF(A129<>"",IF(AND(#REF!="Padrão",$H$4=#REF!),BDI!$B$17,IF(AND(#REF!="Padrão",$H$4=#REF!),BDI!#REF!,IF(AND(#REF!="Diferenciado",$H$4=#REF!),BDI!$E$17,IF(AND(#REF!="Diferenciado",$H$4=#REF!),BDI!#REF!,IF(#REF!="ZERO",0))))),"") -> 
A130: SF-00125 | B130: Granito Cinza Andorinha 20mm para divisória | C130: m2 | D130: 0 | E130: =OFFSET(INDEX(Composições!A:J,MATCH(Orçamentária!A130,Composições!A:A,0),8),2,0) -> 140.239897 | F130: 0 | G130: =IF(A130<>"",IF(AND(#REF!="Padrão",$H$4=#REF!),BDI!$B$17,IF(AND(#REF!="Padrão",$H$4=#REF!),BDI!#REF!,IF(AND(#REF!="Diferenciado",$H$4=#REF!),BDI!$E$17,IF(AND(#REF!="Diferenciado",$H$4=#REF!),BDI!#REF!,IF(#REF!="ZERO",0))))),"") -> 
A131: SF-00126 | B131: Granito Preto São Gabriel 20mm para rodabancada | C131: m2 | D131: 0 | E131: =OFFSET(INDEX(Composições!A:J,MATCH(Orçamentária!A131,Composições!A:A,0),8),2,0) -> 253.4389907 | F131: 0 | G131: =IF(A131<>"",IF(AND(#REF!="Padrão",$H$4=#REF!),BDI!$B$17,IF(AND(#REF!="Padrão",$H$4=#REF!),BDI!#REF!,IF(AND(#REF!="Diferenciado",$H$4=#REF!),BDI!$E$17,IF(AND(#REF!="Diferenciado",$H$4=#REF!),BDI!#REF!,IF(#REF!="ZERO",0))))),"") -> 
A132: SF-00127 | B132: Granito Preto São Gabriel 20mm para bancadas | C132: m2 | D132: 0 | E132: =OFFSET(INDEX(Composições!A:J,MATCH(Orçamentária!A132,Composições!A:A,0),8),2,0) -> 255.7333547 | F132: 0 | G132: =IF(A132<>"",IF(AND(#REF!="Padrão",$H$4=#REF!),BDI!$B$17,IF(AND(#REF!="Padrão",$H$4=#REF!),BDI!#REF!,IF(AND(#REF!="Diferenciado",$H$4=#REF!),BDI!$E$17,IF(AND(#REF!="Diferenciado",$H$4=#REF!),BDI!#REF!,IF(#REF!="ZERO",0))))),"") -> 
A133: SF-00128 | B133: Instalação de bancada de granito ou mármore reaproveitada | C133: m2 | D133: 0 | E133: =OFFSET(INDEX(Composições!A:J,MATCH(Orçamentária!A133,Composições!A:A,0),8),2,0) -> 153.8456467 | F133: 0 | G133: =IF(A133<>"",IF(AND(#REF!="Padrão",$H$4=#REF!),BDI!$B$17,IF(AND(#REF!="Padrão",$H$4=#REF!),BDI!#REF!,IF(AND(#REF!="Diferenciado",$H$4=#REF!),BDI!$E$17,IF(AND(#REF!="Diferenciado",$H$4=#REF!),BDI!#REF!,IF(#REF!="ZERO",0))))),"") -> 
A134: SF-00129 | B134: Instalação de rodapé/rodabanca reaproveitado(a), de mármore ou granito | C134: m2 | D134: 0 | E134: =OFFSET(INDEX(Composições!A:J,MATCH(Orçamentária!A134,Composições!A:A,0),8),2,0) -> 13.0248952 | F134: 0 | G134: =IF(A134<>"",IF(AND(#REF!="Padrão",$H$4=#REF!),BDI!$B$17,IF(AND(#REF!="Padrão",$H$4=#REF!),BDI!#REF!,IF(AND(#REF!="Diferenciado",$H$4=#REF!),BDI!$E$17,IF(AND(#REF!="Diferenciado",$H$4=#REF!),BDI!#REF!,IF(#REF!="ZERO",0))))),"") -> 
A135: SF-00130 | B135: Instalação de soleira ou peitoril, de mármore ou granito, reaproveitados | C135: m2 | D135: 0 | E135: =OFFSET(INDEX(Composições!A:J,MATCH(Orçamentária!A135,Composições!A:A,0),8),2,0) -> 59.201663 | F135: =IF(ISNUMBER(E135),D135*E135,"") -> 0 | G135: =IF(A135<>"",IF(AND(#REF!="Padrão",$H$4=#REF!),BDI!$B$17,IF(AND(#REF!="Padrão",$H$4=#REF!),BDI!#REF!,IF(AND(#REF!="Diferenciado",$H$4=#REF!),BDI!$E$17,IF(AND(#REF!="Diferenciado",$H$4=#REF!),BDI!#REF!,IF(#REF!="ZERO",0))))),"") ->  | H135: =IF(ISNUMBER(E135),ROUND(E135*(1+G135),2),"") ->  | I135: =IF(ISNUMBER(E135),ROUND(H135*D135,2),"") -> 
A136: SF-00131 | B136: Mármore Branco Especial 20mm para rodabancada | C136: m2 | D136: 0 | E136: =OFFSET(INDEX(Composições!A:J,MATCH(Orçamentária!A136,Composições!A:A,0),8),2,0) -> 59.669823 | F136: 0 | G136: =IF(A136<>"",IF(AND(#REF!="Padrão",$H$4=#REF!),BDI!$B$17,IF(AND(#REF!="Padrão",$H$4=#REF!),BDI!#REF!,IF(AND(#REF!="Diferenciado",$H$4=#REF!),BDI!$E$17,IF(AND(#REF!="Diferenciado",$H$4=#REF!),BDI!#REF!,IF(#REF!="ZERO",0))))),"") -> 
A137: SF-00132 | B137: Divisória em gesso acartonado revestido - Painel liso cego - Ed. Anexo I | C137: m2 | D137: 0 | G137: =IF(A137<>"",IF(AND(#REF!="Padrão",$H$4=#REF!),BDI!$B$17,IF(AND(#REF!="Padrão",$H$4=#REF!),BDI!#REF!,IF(AND(#REF!="Diferenciado",$H$4=#REF!),BDI!$E$17,IF(AND(#REF!="Diferenciado",$H$4=#REF!),BDI!#REF!,IF(#REF!="ZERO",0))))),"") -> 
A138: SF-00133 | B138: Divisória em gesso acartonado revestido - Painel liso, painel de vidro e bandeira – ed. Anexo I | C138: m2 | D138: 0 | G138: =IF(A138<>"",IF(AND(#REF!="Padrão",$H$4=#REF!),BDI!$B$17,IF(AND(#REF!="Padrão",$H$4=#REF!),BDI!#REF!,IF(AND(#REF!="Diferenciado",$H$4=#REF!),BDI!$E$17,IF(AND(#REF!="Diferenciado",$H$4=#REF!),BDI!#REF!,IF(#REF!="ZERO",0))))),"") -> 
A139: SF-00134 | B139: Divisória MDF com painel liso cego e bandeira | C139: m2 | D139: 0 | G139: =IF(A139<>"",IF(AND(#REF!="Padrão",$H$4=#REF!),BDI!$B$17,IF(AND(#REF!="Padrão",$H$4=#REF!),BDI!#REF!,IF(AND(#REF!="Diferenciado",$H$4=#REF!),BDI!$E$17,IF(AND(#REF!="Diferenciado",$H$4=#REF!),BDI!#REF!,IF(#REF!="ZERO",0))))),"") -> 
A140: SF-00135 | B140: Divisória MDF com painel liso, painel de vidro e bandeira | C140: m2 | D140: 0 | G140: =IF(A140<>"",IF(AND(#REF!="Padrão",$H$4=#REF!),BDI!$B$17,IF(AND(#REF!="Padrão",$H$4=#REF!),BDI!#REF!,IF(AND(#REF!="Diferenciado",$H$4=#REF!),BDI!$E$17,IF(AND(#REF!="Diferenciado",$H$4=#REF!),BDI!#REF!,IF(#REF!="ZERO",0))))),"") -> 
A141: SF-00136 | B141: Divisória MDF com painel paginado cego e bandeira - Interlegis | C141: m2 | D141: 0 | G141: =IF(A141<>"",IF(AND(#REF!="Padrão",$H$4=#REF!),BDI!$B$17,IF(AND(#REF!="Padrão",$H$4=#REF!),BDI!#REF!,IF(AND(#REF!="Diferenciado",$H$4=#REF!),BDI!$E$17,IF(AND(#REF!="Diferenciado",$H$4=#REF!),BDI!#REF!,IF(#REF!="ZERO",0))))),"") -> 
A142: SF-00137 | B142: Divisória MDF com painel paginado, painel de vidro e bandeira - Interlegis | C142: m2 | D142: 0 | G142: =IF(A142<>"",IF(AND(#REF!="Padrão",$H$4=#REF!),BDI!$B$17,IF(AND(#REF!="Padrão",$H$4=#REF!),BDI!#REF!,IF(AND(#REF!="Diferenciado",$H$4=#REF!),BDI!$E$17,IF(AND(#REF!="Diferenciado",$H$4=#REF!),BDI!#REF!,IF(#REF!="ZERO",0))))),"") -> 
A143: SF-00138 | B143: Instalação de divisória e porta de divisória com dobradiça reaproveitadas | C143: m2 | D143: 0 | E143: =OFFSET(INDEX(Composições!A:J,MATCH(Orçamentária!A143,Composições!A:A,0),8),2,0) -> 0 | F143: 0 | G143: =IF(A143<>"",IF(AND(#REF!="Padrão",$H$4=#REF!),BDI!$B$17,IF(AND(#REF!="Padrão",$H$4=#REF!),BDI!#REF!,IF(AND(#REF!="Diferenciado",$H$4=#REF!),BDI!$E$17,IF(AND(#REF!="Diferenciado",$H$4=#REF!),BDI!#REF!,IF(#REF!="ZERO",0))))),"") -> 
A144: SF-00139 | B144: Alçapão em forro de gesso acartonado | C144: m2 | D144: 0 | E144: =OFFSET(INDEX(Composições!A:J,MATCH(Orçamentária!A144,Composições!A:A,0),8),2,0) -> 69.0479 | F144: 0 | G144: =IF(A144<>"",IF(AND(#REF!="Padrão",$H$4=#REF!),BDI!$B$17,IF(AND(#REF!="Padrão",$H$4=#REF!),BDI!#REF!,IF(AND(#REF!="Diferenciado",$H$4=#REF!),BDI!$E$17,IF(AND(#REF!="Diferenciado",$H$4=#REF!),BDI!#REF!,IF(#REF!="ZERO",0))))),"") -> 
A145: SF-00140 | B145: Forro de PVC em réguas de 100 x 6000mm | C145: m2 | D145: 0 | E145: =OFFSET(INDEX(Composições!A:J,MATCH(Orçamentária!A145,Composições!A:A,0),8),2,0) -> 65.0189671 | F145: 0 | G145: =IF(A145<>"",IF(AND(#REF!="Padrão",$H$4=#REF!),BDI!$B$17,IF(AND(#REF!="Padrão",$H$4=#REF!),BDI!#REF!,IF(AND(#REF!="Diferenciado",$H$4=#REF!),BDI!$E$17,IF(AND(#REF!="Diferenciado",$H$4=#REF!),BDI!#REF!,IF(#REF!="ZERO",0))))),"") -> 
A146: SF-00141 | B146: Forro de PVC em réguas de 100 x 6000mm, sem estrutura | C146: m2 | D146: 0 | E146: =OFFSET(INDEX(Composições!A:J,MATCH(Orçamentária!A146,Composições!A:A,0),8),2,0) -> 28.6038711 | F146: 0 | G146: =IF(A146<>"",IF(AND(#REF!="Padrão",$H$4=#REF!),BDI!$B$17,IF(AND(#REF!="Padrão",$H$4=#REF!),BDI!#REF!,IF(AND(#REF!="Diferenciado",$H$4=#REF!),BDI!$E$17,IF(AND(#REF!="Diferenciado",$H$4=#REF!),BDI!#REF!,IF(#REF!="ZERO",0))))),"") -> 
A147: SF-00142 | B147: Forro de PVC modular em placas | C147: m2 | D147: 0 | E147: =OFFSET(INDEX(Composições!A:J,MATCH(Orçamentária!A147,Composições!A:A,0),8),2,0) -> 40.0392871 | F147: 0 | G147: =IF(A147<>"",IF(AND(#REF!="Padrão",$H$4=#REF!),BDI!$B$17,IF(AND(#REF!="Padrão",$H$4=#REF!),BDI!#REF!,IF(AND(#REF!="Diferenciado",$H$4=#REF!),BDI!$E$17,IF(AND(#REF!="Diferenciado",$H$4=#REF!),BDI!#REF!,IF(#REF!="ZERO",0))))),"") -> 
A148: SF-00143 | B148: Forro em chapas metálicas | C148: m2 | D148: 0 | E148: =OFFSET(INDEX(Composições!A:J,MATCH(Orçamentária!A148,Composições!A:A,0),8),2,0) -> 21.94025 | F148: 0 | G148: =IF(A148<>"",IF(AND(#REF!="Padrão",$H$4=#REF!),BDI!$B$17,IF(AND(#REF!="Padrão",$H$4=#REF!),BDI!#REF!,IF(AND(#REF!="Diferenciado",$H$4=#REF!),BDI!$E$17,IF(AND(#REF!="Diferenciado",$H$4=#REF!),BDI!#REF!,IF(#REF!="ZERO",0))))),"") -> 
A149: SF-00144 | B149: Forro em gesso acartonado monolítico | C149: m2 | D149: 124 | E149: =OFFSET(INDEX(Composições!A:J,MATCH(Orçamentária!A149,Composições!A:A,0),8),2,0) -> 69.3476953 | F149: 8599.114217 | G149: =BDI!$B$17 -> 0.191 | H149: 82.59 | I149: 10241.16
A150: SF-00145 | B150: Forro em gesso acartonado monolítico, sem estrutura | C150: m2 | D150: 0 | E150: =OFFSET(INDEX(Composições!A:J,MATCH(Orçamentária!A150,Composições!A:A,0),8),2,0) -> 41.7443224 | F150: 0 | G150: =IF(A150<>"",IF(AND(#REF!="Padrão",$H$4=#REF!),BDI!$B$17,IF(AND(#REF!="Padrão",$H$4=#REF!),BDI!#REF!,IF(AND(#REF!="Diferenciado",$H$4=#REF!),BDI!$E$17,IF(AND(#REF!="Diferenciado",$H$4=#REF!),BDI!#REF!,IF(#REF!="ZERO",0))))),"") -> 
A151: SF-00146 | B151: Forro mineral modulado | C151: m2 | D151: 0 | E151: =OFFSET(INDEX(Composições!A:J,MATCH(Orçamentária!A151,Composições!A:A,0),8),2,0) -> 114.9785 | F151: 0 | G151: =IF(A151<>"",IF(AND(#REF!="Padrão",$H$4=#REF!),BDI!$B$17,IF(AND(#REF!="Padrão",$H$4=#REF!),BDI!#REF!,IF(AND(#REF!="Diferenciado",$H$4=#REF!),BDI!$E$17,IF(AND(#REF!="Diferenciado",$H$4=#REF!),BDI!#REF!,IF(#REF!="ZERO",0))))),"") -> 
A152: SF-00147 | B152: Forro mineral modulado, sem estrutura | C152: m2 | D152: 0 | E152: =OFFSET(INDEX(Composições!A:J,MATCH(Orçamentária!A152,Composições!A:A,0),8),2,0) -> 32.0074 | F152: 0 | G152: =IF(A152<>"",IF(AND(#REF!="Padrão",$H$4=#REF!),BDI!$B$17,IF(AND(#REF!="Padrão",$H$4=#REF!),BDI!#REF!,IF(AND(#REF!="Diferenciado",$H$4=#REF!),BDI!$E$17,IF(AND(#REF!="Diferenciado",$H$4=#REF!),BDI!#REF!,IF(#REF!="ZERO",0))))),"") -> 
A153: SF-00148 | B153: Instalação de forro de PVC reaproveitado | C153: m2 | D153: 0 | E153: =OFFSET(INDEX(Composições!A:J,MATCH(Orçamentária!A153,Composições!A:A,0),8),2,0) -> 3.1037811 | F153: 0 | G153: =IF(A153<>"",IF(AND(#REF!="Padrão",$H$4=#REF!),BDI!$B$17,IF(AND(#REF!="Padrão",$H$4=#REF!),BDI!#REF!,IF(AND(#REF!="Diferenciado",$H$4=#REF!),BDI!$E$17,IF(AND(#REF!="Diferenciado",$H$4=#REF!),BDI!#REF!,IF(#REF!="ZERO",0))))),"") -> 
A154: SF-00149 | B154: Instalação de forro mineral reaproveitado | C154: m2 | D154: 0 | E154: =OFFSET(INDEX(Composições!A:J,MATCH(Orçamentária!A154,Composições!A:A,0),8),2,0) -> 50.445 | F154: 0 | G154: =IF(A154<>"",IF(AND(#REF!="Padrão",$H$4=#REF!),BDI!$B$17,IF(AND(#REF!="Padrão",$H$4=#REF!),BDI!#REF!,IF(AND(#REF!="Diferenciado",$H$4=#REF!),BDI!$E$17,IF(AND(#REF!="Diferenciado",$H$4=#REF!),BDI!#REF!,IF(#REF!="ZERO",0))))),"") -> 
A155: SF-00150 | B155: Tabica metálica em forro de gesso acartonado | C155: m | D155: 0 | E155: =OFFSET(INDEX(Composições!A:J,MATCH(Orçamentária!A155,Composições!A:A,0),8),2,0) -> 13.42626545 | F155: 0 | G155: =IF(A155<>"",IF(AND(#REF!="Padrão",$H$4=#REF!),BDI!$B$17,IF(AND(#REF!="Padrão",$H$4=#REF!),BDI!#REF!,IF(AND(#REF!="Diferenciado",$H$4=#REF!),BDI!$E$17,IF(AND(#REF!="Diferenciado",$H$4=#REF!),BDI!#REF!,IF(#REF!="ZERO",0))))),"") -> 
A156: SF-00151 | B156: Instalação de revestimento de piso têxtil (carpete) reaproveitado | C156: m2 | D156: 0 | E156: =OFFSET(INDEX(Composições!A:J,MATCH(Orçamentária!A156,Composições!A:A,0),8),2,0) -> 9.5722 | F156: 0 | G156: =IF(A156<>"",IF(AND(#REF!="Padrão",$H$4=#REF!),BDI!$B$17,IF(AND(#REF!="Padrão",$H$4=#REF!),BDI!#REF!,IF(AND(#REF!="Diferenciado",$H$4=#REF!),BDI!$E$17,IF(AND(#REF!="Diferenciado",$H$4=#REF!),BDI!#REF!,IF(#REF!="ZERO",0))))),"") -> 
A157: SF-00152 | B157: Baguetes metálicos | C157: m | D157: 0 | E157: =OFFSET(INDEX(Composições!A:J,MATCH(Orçamentária!A157,Composições!A:A,0),8),2,0) -> 4882.37075 | F157: 0 | G157: =IF(A157<>"",IF(AND(#REF!="Padrão",$H$4=#REF!),BDI!$B$17,IF(AND(#REF!="Padrão",$H$4=#REF!),BDI!#REF!,IF(AND(#REF!="Diferenciado",$H$4=#REF!),BDI!$E$17,IF(AND(#REF!="Diferenciado",$H$4=#REF!),BDI!#REF!,IF(#REF!="ZERO",0))))),"") -> 
A158: SF-00153 | B158: Cordão de massa de vidraceiro | C158: m | D158: 0 | E158: =OFFSET(INDEX(Composições!A:J,MATCH(Orçamentária!A158,Composições!A:A,0),8),2,0) -> 20.516675 | F158: 0 | G158: =IF(A158<>"",IF(AND(#REF!="Padrão",$H$4=#REF!),BDI!$B$17,IF(AND(#REF!="Padrão",$H$4=#REF!),BDI!#REF!,IF(AND(#REF!="Diferenciado",$H$4=#REF!),BDI!$E$17,IF(AND(#REF!="Diferenciado",$H$4=#REF!),BDI!#REF!,IF(#REF!="ZERO",0))))),"") -> 
A159: SF-00154 | B159: Espelho cristal, e=5 mm | C159: m2 | D159: 0 | E159: =OFFSET(INDEX(Composições!A:J,MATCH(Orçamentária!A159,Composições!A:A,0),8),2,0) -> 113.21625 | F159: 0 | G159: =IF(A159<>"",IF(AND(#REF!="Padrão",$H$4=#REF!),BDI!$B$17,IF(AND(#REF!="Padrão",$H$4=#REF!),BDI!#REF!,IF(AND(#REF!="Diferenciado",$H$4=#REF!),BDI!$E$17,IF(AND(#REF!="Diferenciado",$H$4=#REF!),BDI!#REF!,IF(#REF!="ZERO",0))))),"") -> 
A160: SF-00155 | B160: Instalação de vidro reaproveitado | C160: m2 | D160: 0 | E160: =OFFSET(INDEX(Composições!A:J,MATCH(Orçamentária!A160,Composições!A:A,0),8),2,0) -> 34.827 | F160: 0 | G160: =IF(A160<>"",IF(AND(#REF!="Padrão",$H$4=#REF!),BDI!$B$17,IF(AND(#REF!="Padrão",$H$4=#REF!),BDI!#REF!,IF(AND(#REF!="Diferenciado",$H$4=#REF!),BDI!$E$17,IF(AND(#REF!="Diferenciado",$H$4=#REF!),BDI!#REF!,IF(#REF!="ZERO",0))))),"") -> 
A161: SF-00156 | B161: Substituição da calafetação com selante | C161: m | D161: 0 | E161: =OFFSET(INDEX(Composições!A:J,MATCH(Orçamentária!A161,Composições!A:A,0),8),2,0) -> 22.40423475 | F161: 0 | G161: =IF(A161<>"",IF(AND(#REF!="Padrão",$H$4=#REF!),BDI!$B$17,IF(AND(#REF!="Padrão",$H$4=#REF!),BDI!#REF!,IF(AND(#REF!="Diferenciado",$H$4=#REF!),BDI!$E$17,IF(AND(#REF!="Diferenciado",$H$4=#REF!),BDI!#REF!,IF(#REF!="ZERO",0))))),"") -> 
A162: SF-00157 | B162: Vidro liso comum transparente 4mm | C162: m2 | D162: 0 | E162: =OFFSET(INDEX(Composições!A:J,MATCH(Orçamentária!A162,Composições!A:A,0),8),2,0) -> 121.3628135 | F162: 0 | G162: =IF(A162<>"",IF(AND(#REF!="Padrão",$H$4=#REF!),BDI!$B$17,IF(AND(#REF!="Padrão",$H$4=#REF!),BDI!#REF!,IF(AND(#REF!="Diferenciado",$H$4=#REF!),BDI!$E$17,IF(AND(#REF!="Diferenciado",$H$4=#REF!),BDI!#REF!,IF(#REF!="ZERO",0))))),"") -> 
A163: SF-00158 | B163: Vidro liso comum transparente 6mm | C163: m2 | D163: 0 | E163: =OFFSET(INDEX(Composições!A:J,MATCH(Orçamentária!A163,Composições!A:A,0),8),2,0) -> 136.26515 | F163: 0 | G163: =IF(A163<>"",IF(AND(#REF!="Padrão",$H$4=#REF!),BDI!$B$17,IF(AND(#REF!="Padrão",$H$4=#REF!),BDI!#REF!,IF(AND(#REF!="Diferenciado",$H$4=#REF!),BDI!$E$17,IF(AND(#REF!="Diferenciado",$H$4=#REF!),BDI!#REF!,IF(#REF!="ZERO",0))))),"") -> 
A164: SF-00159 | B164: Instalação de painéis de vidro temperado reaproveitados | C164: m2 | D164: 0 | E164: =OFFSET(INDEX(Composições!A:J,MATCH(Orçamentária!A164,Composições!A:A,0),8),2,0) -> 49.81515 | F164: 0 | G164: =IF(A164<>"",IF(AND(#REF!="Padrão",$H$4=#REF!),BDI!$B$17,IF(AND(#REF!="Padrão",$H$4=#REF!),BDI!#REF!,IF(AND(#REF!="Diferenciado",$H$4=#REF!),BDI!$E$17,IF(AND(#REF!="Diferenciado",$H$4=#REF!),BDI!#REF!,IF(#REF!="ZERO",0))))),"") -> 
A165: SF-00160 | B165: Mola hidráulica de piso | C165: un | D165: 0 | E165: =OFFSET(INDEX(Composições!A:J,MATCH(Orçamentária!A165,Composições!A:A,0),8),2,0) -> 1331.539356 | F165: 0 | G165: =IF(A165<>"",IF(AND(#REF!="Padrão",$H$4=#REF!),BDI!$B$17,IF(AND(#REF!="Padrão",$H$4=#REF!),BDI!#REF!,IF(AND(#REF!="Diferenciado",$H$4=#REF!),BDI!$E$17,IF(AND(#REF!="Diferenciado",$H$4=#REF!),BDI!#REF!,IF(#REF!="ZERO",0))))),"") -> 
A166: SF-00161 | B166: Instalação de persianas reaproveitadas | C166: m | D166: 0 | E166: =OFFSET(INDEX(Composições!A:J,MATCH(Orçamentária!A166,Composições!A:A,0),8),2,0) -> 7.1052894 | F166: 0 | G166: =IF(A166<>"",IF(AND(#REF!="Padrão",$H$4=#REF!),BDI!$B$17,IF(AND(#REF!="Padrão",$H$4=#REF!),BDI!#REF!,IF(AND(#REF!="Diferenciado",$H$4=#REF!),BDI!$E$17,IF(AND(#REF!="Diferenciado",$H$4=#REF!),BDI!#REF!,IF(#REF!="ZERO",0))))),"") -> 
A167: SF-00162 | B167: Persiana vertical em alumínio 90 mm, cor verde claro | C167: m2 | D167: 0 | G167: =IF(A167<>"",IF(AND(#REF!="Padrão",$H$4=#REF!),BDI!$B$17,IF(AND(#REF!="Padrão",$H$4=#REF!),BDI!#REF!,IF(AND(#REF!="Diferenciado",$H$4=#REF!),BDI!$E$17,IF(AND(#REF!="Diferenciado",$H$4=#REF!),BDI!#REF!,IF(#REF!="ZERO",0))))),"") -> 
A168: SF-00163 | B168: Persiana vertical em tecido Juta Resinado sem blecaute de 90mm, cor bege | C168: m2 | D168: 0 | G168: =IF(A168<>"",IF(AND(#REF!="Padrão",$H$4=#REF!),BDI!$B$17,IF(AND(#REF!="Padrão",$H$4=#REF!),BDI!#REF!,IF(AND(#REF!="Diferenciado",$H$4=#REF!),BDI!$E$17,IF(AND(#REF!="Diferenciado",$H$4=#REF!),BDI!#REF!,IF(#REF!="ZERO",0))))),"") -> 
A169: SF-00164 | B169: Persiana vertical em tecido sintético sem blecaute de 90mm, cores verde escuro ou branca | C169: m2 | D169: 0 | G169: =IF(A169<>"",IF(AND(#REF!="Padrão",$H$4=#REF!),BDI!$B$17,IF(AND(#REF!="Padrão",$H$4=#REF!),BDI!#REF!,IF(AND(#REF!="Diferenciado",$H$4=#REF!),BDI!$E$17,IF(AND(#REF!="Diferenciado",$H$4=#REF!),BDI!#REF!,IF(#REF!="ZERO",0))))),"") -> 
A170: SF-00165 | B170: Película jateada | C170: m2 | D170: 0 | G170: =IF(A170<>"",IF(AND(#REF!="Padrão",$H$4=#REF!),BDI!$B$17,IF(AND(#REF!="Padrão",$H$4=#REF!),BDI!#REF!,IF(AND(#REF!="Diferenciado",$H$4=#REF!),BDI!$E$17,IF(AND(#REF!="Diferenciado",$H$4=#REF!),BDI!#REF!,IF(#REF!="ZERO",0))))),"") -> 
A171: SF-00166 | B171: Tubo de ligação para bacia sanitária | C171: un | D171: 0 | E171: =OFFSET(INDEX(Composições!A:J,MATCH(Orçamentária!A171,Composições!A:A,0),8),2,0) -> 19.684 | F171: 0 | G171: =IF(A171<>"",IF(AND(#REF!="Padrão",$H$4=#REF!),BDI!$B$17,IF(AND(#REF!="Padrão",$H$4=#REF!),BDI!#REF!,IF(AND(#REF!="Diferenciado",$H$4=#REF!),BDI!$E$17,IF(AND(#REF!="Diferenciado",$H$4=#REF!),BDI!#REF!,IF(#REF!="ZERO",0))))),"") -> 
A172: SF-00167 | B172: Tubo PVC esgoto ou aguas pluviais predial DN 100mm | C172: m | D172: 0 | E172: =OFFSET(INDEX(Composições!A:J,MATCH(Orçamentária!A172,Composições!A:A,0),8),2,0) -> 57.5629871 | F172: 0 | G172: =IF(A172<>"",IF(AND(#REF!="Padrão",$H$4=#REF!),BDI!$B$17,IF(AND(#REF!="Padrão",$H$4=#REF!),BDI!#REF!,IF(AND(#REF!="Diferenciado",$H$4=#REF!),BDI!$E$17,IF(AND(#REF!="Diferenciado",$H$4=#REF!),BDI!#REF!,IF(#REF!="ZERO",0))))),"") -> 
A173: SF-00168 | B173: Tubo PVC esgoto ou aguas pluviais predial DN 40mm | C173: m | D173: 0 | E173: =OFFSET(INDEX(Composições!A:J,MATCH(Orçamentária!A173,Composições!A:A,0),8),2,0) -> 17.1514995 | F173: 0 | G173: =IF(A173<>"",IF(AND(#REF!="Padrão",$H$4=#REF!),BDI!$B$17,IF(AND(#REF!="Padrão",$H$4=#REF!),BDI!#REF!,IF(AND(#REF!="Diferenciado",$H$4=#REF!),BDI!$E$17,IF(AND(#REF!="Diferenciado",$H$4=#REF!),BDI!#REF!,IF(#REF!="ZERO",0))))),"") -> 
A174: SF-00169 | B174: Tubo PVC esgoto ou aguas pluviais predial DN 50mm | C174: m | D174: 0 | E174: =OFFSET(INDEX(Composições!A:J,MATCH(Orçamentária!A174,Composições!A:A,0),8),2,0) -> 25.2186259 | F174: 0 | G174: =IF(A174<>"",IF(AND(#REF!="Padrão",$H$4=#REF!),BDI!$B$17,IF(AND(#REF!="Padrão",$H$4=#REF!),BDI!#REF!,IF(AND(#REF!="Diferenciado",$H$4=#REF!),BDI!$E$17,IF(AND(#REF!="Diferenciado",$H$4=#REF!),BDI!#REF!,IF(#REF!="ZERO",0))))),"") -> 
A175: SF-00170 | B175: Tubo PVC esgoto ou aguas pluviais predial DN 75mm | C175: m | D175: 13 | E175: =OFFSET(INDEX(Composições!A:J,MATCH(Orçamentária!A175,Composições!A:A,0),8),2,0) -> 44.3079943 | F175: 576.0039259 | G175: =BDI!$B$17 -> 0.191 | H175: 52.77 | I175: 686.01
A176: SF-00171 | B176: Tubo PVC soldável água fria DN 25mm | C176: m | D176: 13 | E176: =OFFSET(INDEX(Composições!A:J,MATCH(Orçamentária!A176,Composições!A:A,0),8),2,0) -> 5.4045215 | F176: 70.2587795 | G176: =BDI!$B$17 -> 0.191 | H176: 6.44 | I176: 83.72
A177: SF-00172 | B177: Tubo PVC soldável água fria DN 32mm | C177: m | D177: 0 | E177: =OFFSET(INDEX(Composições!A:J,MATCH(Orçamentária!A177,Composições!A:A,0),8),2,0) -> 10.9764425 | F177: 0 | G177: =IF(A177<>"",IF(AND(#REF!="Padrão",$H$4=#REF!),BDI!$B$17,IF(AND(#REF!="Padrão",$H$4=#REF!),BDI!#REF!,IF(AND(#REF!="Diferenciado",$H$4=#REF!),BDI!$E$17,IF(AND(#REF!="Diferenciado",$H$4=#REF!),BDI!#REF!,IF(#REF!="ZERO",0))))),"") -> 
A178: SF-00173 | B178: Tubo PVC soldável água fria DN 40mm | C178: m | D178: 0 | E178: =OFFSET(INDEX(Composições!A:J,MATCH(Orçamentária!A178,Composições!A:A,0),8),2,0) -> 16.897935 | F178: 0 | G178: =IF(A178<>"",IF(AND(#REF!="Padrão",$H$4=#REF!),BDI!$B$17,IF(AND(#REF!="Padrão",$H$4=#REF!),BDI!#REF!,IF(AND(#REF!="Diferenciado",$H$4=#REF!),BDI!$E$17,IF(AND(#REF!="Diferenciado",$H$4=#REF!),BDI!#REF!,IF(#REF!="ZERO",0))))),"") -> 
A179: SF-00174 | B179: Tubo PVC soldável água fria DN 50mm | C179: m | D179: 0 | E179: =OFFSET(INDEX(Composições!A:J,MATCH(Orçamentária!A179,Composições!A:A,0),8),2,0) -> 18.6610115 | F179: 0 | G179: =IF(A179<>"",IF(AND(#REF!="Padrão",$H$4=#REF!),BDI!$B$17,IF(AND(#REF!="Padrão",$H$4=#REF!),BDI!#REF!,IF(AND(#REF!="Diferenciado",$H$4=#REF!),BDI!$E$17,IF(AND(#REF!="Diferenciado",$H$4=#REF!),BDI!#REF!,IF(#REF!="ZERO",0))))),"") -> 
A180: SF-00175 | B180: Base registro gaveta 3/4" | C180: un | D180: 0 | E180: =OFFSET(INDEX(Composições!A:J,MATCH(Orçamentária!A180,Composições!A:A,0),8),2,0) -> 10.622387 | F180: 0 | G180: =IF(A180<>"",IF(AND(#REF!="Padrão",$H$4=#REF!),BDI!$B$17,IF(AND(#REF!="Padrão",$H$4=#REF!),BDI!#REF!,IF(AND(#REF!="Diferenciado",$H$4=#REF!),BDI!$E$17,IF(AND(#REF!="Diferenciado",$H$4=#REF!),BDI!#REF!,IF(#REF!="ZERO",0))))),"") -> 
A181: SF-00176 | B181: Caixa sifonada de PVC DN 150mm | C181: un | D181: 1 | E181: =OFFSET(INDEX(Composições!A:J,MATCH(Orçamentária!A181,Composições!A:A,0),8),2,0) -> 109.2411973 | F181: 109.2411973 | G181: =BDI!$B$17 -> 0.191 | H181: 130.11 | I181: 130.11
A182: SF-00177 | B182: Caixa sifonada de PVC DN 250mm | C182: un | D182: 0 | E182: =OFFSET(INDEX(Composições!A:J,MATCH(Orçamentária!A182,Composições!A:A,0),8),2,0) -> 149.3311973 | F182: 0 | G182: =IF(A182<>"",IF(AND(#REF!="Padrão",$H$4=#REF!),BDI!$B$17,IF(AND(#REF!="Padrão",$H$4=#REF!),BDI!#REF!,IF(AND(#REF!="Diferenciado",$H$4=#REF!),BDI!$E$17,IF(AND(#REF!="Diferenciado",$H$4=#REF!),BDI!#REF!,IF(#REF!="ZERO",0))))),"") -> 
A183: SF-00178 | B183: Grelha quadrada para ralo 10x10cm | C183: un | D183: 0 | E183: =OFFSET(INDEX(Composições!A:J,MATCH(Orçamentária!A183,Composições!A:A,0),8),2,0) -> 3.033825 | F183: 0 | G183: =IF(A183<>"",IF(AND(#REF!="Padrão",$H$4=#REF!),BDI!$B$17,IF(AND(#REF!="Padrão",$H$4=#REF!),BDI!#REF!,IF(AND(#REF!="Diferenciado",$H$4=#REF!),BDI!$E$17,IF(AND(#REF!="Diferenciado",$H$4=#REF!),BDI!#REF!,IF(#REF!="ZERO",0))))),"") -> 
A184: SF-00179 | B184: Grelha quadrada para ralo 15x15cm | C184: un | D184: 0 | E184: =OFFSET(INDEX(Composições!A:J,MATCH(Orçamentária!A184,Composições!A:A,0),8),2,0) -> 2024.593825 | F184: 0 | G184: =IF(A184<>"",IF(AND(#REF!="Padrão",$H$4=#REF!),BDI!$B$17,IF(AND(#REF!="Padrão",$H$4=#REF!),BDI!#REF!,IF(AND(#REF!="Diferenciado",$H$4=#REF!),BDI!$E$17,IF(AND(#REF!="Diferenciado",$H$4=#REF!),BDI!#REF!,IF(#REF!="ZERO",0))))),"") -> 
A185: SF-00180 | B185: Ralo seco PVC DN 100x40mm | C185: un | D185: 0 | E185: =OFFSET(INDEX(Composições!A:J,MATCH(Orçamentária!A185,Composições!A:A,0),8),2,0) -> 15.96702715 | F185: 0 | G185: =IF(A185<>"",IF(AND(#REF!="Padrão",$H$4=#REF!),BDI!$B$17,IF(AND(#REF!="Padrão",$H$4=#REF!),BDI!#REF!,IF(AND(#REF!="Diferenciado",$H$4=#REF!),BDI!$E$17,IF(AND(#REF!="Diferenciado",$H$4=#REF!),BDI!#REF!,IF(#REF!="ZERO",0))))),"") -> 
A186: SF-00181 | B186: Assento para bacia convencional | C186: un | D186: 0 | E186: =OFFSET(INDEX(Composições!A:J,MATCH(Orçamentária!A186,Composições!A:A,0),8),2,0) -> 687.84255 | F186: 0 | G186: =IF(A186<>"",IF(AND(#REF!="Padrão",$H$4=#REF!),BDI!$B$17,IF(AND(#REF!="Padrão",$H$4=#REF!),BDI!#REF!,IF(AND(#REF!="Diferenciado",$H$4=#REF!),BDI!$E$17,IF(AND(#REF!="Diferenciado",$H$4=#REF!),BDI!#REF!,IF(#REF!="ZERO",0))))),"") -> 
A187: SF-00182 | B187: Bacia convencional – Linha Administrativa | C187: un | D187: 0 | E187: =OFFSET(INDEX(Composições!A:J,MATCH(Orçamentária!A187,Composições!A:A,0),8),2,0) -> 270.5825673 | F187: 0 | G187: =IF(A187<>"",IF(AND(#REF!="Padrão",$H$4=#REF!),BDI!$B$17,IF(AND(#REF!="Padrão",$H$4=#REF!),BDI!#REF!,IF(AND(#REF!="Diferenciado",$H$4=#REF!),BDI!$E$17,IF(AND(#REF!="Diferenciado",$H$4=#REF!),BDI!#REF!,IF(#REF!="ZERO",0))))),"") -> 
A188: SF-00183 | B188: Bacia convencional com saída horizontal | C188: un | D188: 0 | E188: =OFFSET(INDEX(Composições!A:J,MATCH(Orçamentária!A188,Composições!A:A,0),8),2,0) -> 86.20656725 | F188: 0 | G188: =IF(A188<>"",IF(AND(#REF!="Padrão",$H$4=#REF!),BDI!$B$17,IF(AND(#REF!="Padrão",$H$4=#REF!),BDI!#REF!,IF(AND(#REF!="Diferenciado",$H$4=#REF!),BDI!$E$17,IF(AND(#REF!="Diferenciado",$H$4=#REF!),BDI!#REF!,IF(#REF!="ZERO",0))))),"") -> 
A189: SF-00184 | B189: Cuba oval de embutir | C189: un | D189: 0 | E189: =OFFSET(INDEX(Composições!A:J,MATCH(Orçamentária!A189,Composições!A:A,0),8),2,0) -> 46.8005777 | F189: 0 | G189: =IF(A189<>"",IF(AND(#REF!="Padrão",$H$4=#REF!),BDI!$B$17,IF(AND(#REF!="Padrão",$H$4=#REF!),BDI!#REF!,IF(AND(#REF!="Diferenciado",$H$4=#REF!),BDI!$E$17,IF(AND(#REF!="Diferenciado",$H$4=#REF!),BDI!#REF!,IF(#REF!="ZERO",0))))),"") -> 
A190: SF-00185 | B190: Cuba retangular em aço inox | C190: un | D190: 0 | E190: =OFFSET(INDEX(Composições!A:J,MATCH(Orçamentária!A190,Composições!A:A,0),8),2,0) -> 26.4114649 | F190: 0 | G190: =IF(A190<>"",IF(AND(#REF!="Padrão",$H$4=#REF!),BDI!$B$17,IF(AND(#REF!="Padrão",$H$4=#REF!),BDI!#REF!,IF(AND(#REF!="Diferenciado",$H$4=#REF!),BDI!$E$17,IF(AND(#REF!="Diferenciado",$H$4=#REF!),BDI!#REF!,IF(#REF!="ZERO",0))))),"") -> 
A191: SF-00186 | B191: Cuba semiencaixe quadrada com mesa | C191: un | D191: 0 | E191: =OFFSET(INDEX(Composições!A:J,MATCH(Orçamentária!A191,Composições!A:A,0),8),2,0) -> 46.8005777 | F191: 0 | G191: =IF(A191<>"",IF(AND(#REF!="Padrão",$H$4=#REF!),BDI!$B$17,IF(AND(#REF!="Padrão",$H$4=#REF!),BDI!#REF!,IF(AND(#REF!="Diferenciado",$H$4=#REF!),BDI!$E$17,IF(AND(#REF!="Diferenciado",$H$4=#REF!),BDI!#REF!,IF(#REF!="ZERO",0))))),"") -> 
A192: SF-00187 | B192: Instalação de lavatório reaproveitado | C192: un | D192: 0 | E192: =OFFSET(INDEX(Composições!A:J,MATCH(Orçamentária!A192,Composições!A:A,0),8),2,0) -> 49.8454778 | F192: 0 | G192: =IF(A192<>"",IF(AND(#REF!="Padrão",$H$4=#REF!),BDI!$B$17,IF(AND(#REF!="Padrão",$H$4=#REF!),BDI!#REF!,IF(AND(#REF!="Diferenciado",$H$4=#REF!),BDI!$E$17,IF(AND(#REF!="Diferenciado",$H$4=#REF!),BDI!#REF!,IF(#REF!="ZERO",0))))),"") -> 
A193: SF-00188 | B193: Instalação de mictório reaproveitado | C193: un | D193: 0 | E193: =OFFSET(INDEX(Composições!A:J,MATCH(Orçamentária!A193,Composições!A:A,0),8),2,0) -> 50.34789575 | F193: 0 | G193: =IF(A193<>"",IF(AND(#REF!="Padrão",$H$4=#REF!),BDI!$B$17,IF(AND(#REF!="Padrão",$H$4=#REF!),BDI!#REF!,IF(AND(#REF!="Diferenciado",$H$4=#REF!),BDI!$E$17,IF(AND(#REF!="Diferenciado",$H$4=#REF!),BDI!#REF!,IF(#REF!="ZERO",0))))),"") -> 
A194: SF-00189 | B194: Instalação de vaso sanitário reaproveitado | C194: un | D194: 0 | E194: =OFFSET(INDEX(Composições!A:J,MATCH(Orçamentária!A194,Composições!A:A,0),8),2,0) -> 86.20656725 | F194: 0 | G194: =IF(A194<>"",IF(AND(#REF!="Padrão",$H$4=#REF!),BDI!$B$17,IF(AND(#REF!="Padrão",$H$4=#REF!),BDI!#REF!,IF(AND(#REF!="Diferenciado",$H$4=#REF!),BDI!$E$17,IF(AND(#REF!="Diferenciado",$H$4=#REF!),BDI!#REF!,IF(#REF!="ZERO",0))))),"") -> 
A195: SF-00190 | B195: Lavatório suspenso | C195: un | D195: 0 | E195: =OFFSET(INDEX(Composições!A:J,MATCH(Orçamentária!A195,Composições!A:A,0),8),2,0) -> 133.3219778 | F195: 0 | G195: =IF(A195<>"",IF(AND(#REF!="Padrão",$H$4=#REF!),BDI!$B$17,IF(AND(#REF!="Padrão",$H$4=#REF!),BDI!#REF!,IF(AND(#REF!="Diferenciado",$H$4=#REF!),BDI!$E$17,IF(AND(#REF!="Diferenciado",$H$4=#REF!),BDI!#REF!,IF(#REF!="ZERO",0))))),"") -> 
A196: SF-00191 | B196: Mictório – Linha Administrativa | C196: un | D196: 0 | E196: =OFFSET(INDEX(Composições!A:J,MATCH(Orçamentária!A196,Composições!A:A,0),8),2,0) -> 371.3623957 | F196: 0 | G196: =IF(A196<>"",IF(AND(#REF!="Padrão",$H$4=#REF!),BDI!$B$17,IF(AND(#REF!="Padrão",$H$4=#REF!),BDI!#REF!,IF(AND(#REF!="Diferenciado",$H$4=#REF!),BDI!$E$17,IF(AND(#REF!="Diferenciado",$H$4=#REF!),BDI!#REF!,IF(#REF!="ZERO",0))))),"") -> 
A197: SF-00192 | B197: Tanque 38 litros | C197: un | D197: 0 | E197: =OFFSET(INDEX(Composições!A:J,MATCH(Orçamentária!A197,Composições!A:A,0),8),2,0) -> 98.7807568 | F197: 0 | G197: =IF(A197<>"",IF(AND(#REF!="Padrão",$H$4=#REF!),BDI!$B$17,IF(AND(#REF!="Padrão",$H$4=#REF!),BDI!#REF!,IF(AND(#REF!="Diferenciado",$H$4=#REF!),BDI!$E$17,IF(AND(#REF!="Diferenciado",$H$4=#REF!),BDI!#REF!,IF(#REF!="ZERO",0))))),"") -> 
A198: SF-00193 | B198: Acabamento para registro GD | C198: un | D198: 0 | E198: =OFFSET(INDEX(Composições!A:J,MATCH(Orçamentária!A198,Composições!A:A,0),8),2,0) -> 2.1166 | F198: 0 | G198: =IF(A198<>"",IF(AND(#REF!="Padrão",$H$4=#REF!),BDI!$B$17,IF(AND(#REF!="Padrão",$H$4=#REF!),BDI!#REF!,IF(AND(#REF!="Diferenciado",$H$4=#REF!),BDI!$E$17,IF(AND(#REF!="Diferenciado",$H$4=#REF!),BDI!#REF!,IF(#REF!="ZERO",0))))),"") -> 
A199: SF-00194 | B199: Acabamento para registro PQ | C199: un | D199: 1 | E199: =OFFSET(INDEX(Composições!A:J,MATCH(Orçamentária!A199,Composições!A:A,0),8),2,0) -> 52.0166 | F199: =IF(ISNUMBER(E199),D199*E199,"") -> 52.0166 | G199: =BDI!$B$17 -> 0.191 | H199: =IF(ISNUMBER(E199),ROUND(E199*(1+G199),2),"") -> 61.95 | I199: =IF(ISNUMBER(E199),ROUND(H199*D199,2),"") -> 61.95
A200: SF-00195 | B200: Ducha higiênica | C200: un | D200: 0 | E200: =OFFSET(INDEX(Composições!A:J,MATCH(Orçamentária!A200,Composições!A:A,0),8),2,0) -> 23.6835 | F200: 0 | G200: =IF(A200<>"",IF(AND(#REF!="Padrão",$H$4=#REF!),BDI!$B$17,IF(AND(#REF!="Padrão",$H$4=#REF!),BDI!#REF!,IF(AND(#REF!="Diferenciado",$H$4=#REF!),BDI!$E$17,IF(AND(#REF!="Diferenciado",$H$4=#REF!),BDI!#REF!,IF(#REF!="ZERO",0))))),"") -> 
A201: SF-00196 | B201: Instalação de metais e acessórios reaproveitados | C201: un | D201: 0 | E201: =OFFSET(INDEX(Composições!A:J,MATCH(Orçamentária!A201,Composições!A:A,0),8),2,0) -> 4.7634064 | F201: 0 | G201: =IF(A201<>"",IF(AND(#REF!="Padrão",$H$4=#REF!),BDI!$B$17,IF(AND(#REF!="Padrão",$H$4=#REF!),BDI!#REF!,IF(AND(#REF!="Diferenciado",$H$4=#REF!),BDI!$E$17,IF(AND(#REF!="Diferenciado",$H$4=#REF!),BDI!#REF!,IF(#REF!="ZERO",0))))),"") -> 
... 3276 more rows

Sheet BDI
A1: =Orçamentária!A1 -> Implementação de sistema de climatização para a sala de leitura da Biblioteca do Senado Federal
A2: BENEFÍCIOS E DESPESAS INDIRETAS - BDI
A4: BDI Edificações | D4: BDI mero fornecimento
A5: Componentes do BDI | B5: Cálculo sem CPRB | D5: Componentes do BDI | E5: Cálculo sem CPRB
B6: não-desonerado | E6: não-desonerado
B7: % considerado | E7: % considerado
A8: AC | B8: 0.035 | D8: AC | E8: 0.0175
A9: S+G | B9: 0.008 | D9: S+G | E9: 0.0039
A10: R | B10: 0.0125 | D10: R | E10: 0.0056
A11: DF | B11: 0.0076 | D11: DF | E11: 0.0085
A12: L | B12: 0.0678 | D12: L | E12: 0.035
A13: PIS | B13: 0.0065 | D13: PIS | E13: 0.0065
A14: COFINS | B14: 0.03 | D14: COFINS | E14: 0.03
A15: CPRB | B15: 0 | D15: CPRB | E15: 0
A16: ISS | B16: 0.01 | D16: ISS | E16: 0
A17: BDI Edificações | B17: =ROUND(((1+B8+B9+B10)*(1+B11)*(1+B12))/(1-(B13+B14+B15+B16))-1,4) -> 0.191 | D17: BDI mero fornecimento | E17: =ROUND(((1+E8+E9+E10)*(1+E11)*(1+E12))/(1-(E13+E14+E15+E16))-1,4) -> 0.1126
A39: Fontes: Acórdãos 2.369/2011-TCU-Plenário e 2.622/2013-TCU-Plenário.
J52: 3
